Workbook

Sheet Cover
M2: Example and Worksheet Checklist
G3: How to Make Decisions Under Uncertainty
N5: Overview Of the Method
N6: Deterministic Cash Flow
N7: Simple Decision Tree
N8: Risk Tolerance
N9: Decision Tree Example
N10: Distribution Examples
N11: Simple Monte Carlo Example
F12: Hubbard Decision Research | N12: Information Value Calculation for Continuous Distributions
F13: 2S410 Canterbury Ct
F14: Glen Ellyn, IL 60137
F15: www.hubbardresearch.com

Sheet Deterministic Cash Flow
A1: Deterministic Cash Flow Example
A2: Instructions: Below a simple deterministic cashflow is included. This cashflow illustrates how several variables can be combines to produce an estimated NPV, but it falls short by not including any estimates of uncertainty on the variables. In a more realistic example it would be possible to observe a range of outcomes, including possible negative values.
B5: Input Variables | D5: Point Est.
B6: Percent reduction in labor cost | D6: 0.03
B7: Current total labor cost | D7: 75000000
B8: Initial development costs (2020) | D8: 5000000
B9: Cost of money | D9: 0.065
B11: Cash Flow
C12: 2020 | D12: 2021 | E12: 2022 | F12: 2023 | G12: 2024
B13: Total costs | C13: =D8 -> 5000000
B14: Total benefits | D14: =$D7*$D6 -> 2250000 | E14: =$D7*$D6 -> 2250000 | F14: =$D7*$D6 -> 2250000 | G14: =$D7*$D6 -> 2250000
B15: Net benefit | C15: =C14-C13 -> -5000000 | D15: =D14-D13 -> 2250000 | E15: =E14-E13 -> 2250000 | F15: =F14-F13 -> 2250000 | G15: =G14-G13 -> 2250000
B17: Results
B18: Net Present Value | C18: =NPV(D9, C15:G15) -> 2542766.999

Sheet DecisionTreeSimple
A1: Example: Simple Decision Tree
A2: Instructions: The simple decision tree shows an example of a decision to invest in a project with an uncertain outcome. One outcome is that the investment is no undertaken and has a certain payoff of zero. Otherwise if the investment is undertaken there is a probability of success and failure allowing us to calculate an expected value of the investment.
A5: Decision Tree w/Partial Information | J5: Payoff | K5: Probability
A7: Payoff if Successful | B7: 50 | F7: Choice: | G7: Invest
A8: Payoff if Unsuccessful | B8: -30 | F8: Expected Gain: | G8: =J8*L8+J11*L11 -> 18 | J8: =B$7 -> 50 | K8: P(S) | L8: =B10 -> 0.6
A9: Payoff w/o investing | B9: 0
A10: P(Success) | B10: 0.6
A11: Opportunity Loss (OL) | B11: =ABS(IF(G8>G13,J11,J8)) -> 30 | J11: =$B$8 -> -30 | K11: P(~S) | L11: =1-L8 -> 0.4
A12: EOL | B12: =IF(G8>G13,L11,L8)*B11 -> 12 | F12: Choice: | G12: Don't Invest
F13: Expected Gain: | G13: =J14 -> 0
J14: =$B$9 -> 0

Sheet Risk Tolerance
A1: Quantifying Risk Tolerance
A2: Instructions: This example introduces two ways to quantify and express risk tolerance. The first method is constant absolute risk aversion (CARA) which uses a formulation of a bet to capture risk aversion. In this example the user needs to chose a bet such that a coin flip where the user wins $X or loses $X/2 is attractive. The second is a loss exceedance tolerance which quantifies a set of barely acceptable bets which can be compared to a loss exceedance curve. If the loss exceedance curve is above the risk tolerance than that portion will have an unacceptably high risk
A3: Constant Absolute Risk Aversion | I3: Loss Exceedance Tolerance | M3: Loss Exceedance Curve
B5: X | D5: Award | E5: Probability | F5: Utility | G5: Certain Monetary Equivalent | J5: Loss Threshold | K5: Acceptable Probability for Loss Exceeded
B6: 850000 | D6: 1500000 | E6: 0.25 | F6: =1-EXP(-D6/B6) -> 0.8287628571 | G6: =-B6*LN(1-F6*E6) -> 197346.6959 | J6: 100000 | K6: 0.8
J7: 1000000 | K7: 0.2
C8: Flip a coin… | J8: 5000000 | K8: 0.05
J9: 10000000 | K9: 0.01
J11: Example Histogram for Loss Exceedance Curve
J12: Loss | K12: Prob. of Inherent Loss or Greater
J13: 0.0001 | K13: 0.758
J14: 500000.0001 | K14: 0.573
C15: Win $X | E15: Lose $X/2 | J15: 1000000 | K15: 0.513
J16: 1070000 | K16: 0.502
J17: 1144900 | K17: 0.489
J18: 1225043 | K18: 0.476
J19: 1310796.01 | K19: 0.47
J20: 1402551.731 | K20: 0.463
J21: 1500730.352 | K21: 0.451
J22: 1605781.477 | K22: 0.441
J23: 1718186.18 | K23: 0.43
J24: 1838459.213 | K24: 0.423
J25: 1967151.357 | K25: 0.409
J26: 2104851.953 | K26: 0.4
J27: 2252191.589 | K27: 0.385
J28: 2409845 | K28: 0.374
J29: 2578534.15 | K29: 0.351
J30: 2759031.541 | K30: 0.331
J31: 2952163.749 | K31: 0.307
J32: 3158815.211 | K32: 0.288
J33: 3379932.276 | K33: 0.268
J34: 3616527.535 | K34: 0.246
J35: 3869684.463 | K35: 0.218
J36: 4140562.375 | K36: 0.207
J37: 4430401.742 | K37: 0.193
J38: 4740529.863 | K38: 0.178
J39: 5072366.954 | K39: 0.167
J40: 5427432.641 | K40: 0.152
J41: 5807352.926 | K41: 0.134
J42: 6213867.63 | K42: 0.11
J43: 6648838.364 | K43: 0.103
J44: 7114257.05 | K44: 0.084
J45: 7612255.043 | K45: 0.071
J46: 8145112.896 | K46: 0.061
J47: 8715270.799 | K47: 0.052
J48: 9325339.755 | K48: 0.045
J49: 9978113.538 | K49: 0.041
J50: 10676581.49 | K50: 0.036
J51: 11423942.19 | K51: 0.026
J52: 12223618.14 | K52: 0.021
J53: 13079271.41 | K53: 0.02
J54: 13994820.41 | K54: 0.019
J55: 14974457.84 | K55: 0.014
J56: 16022669.89 | K56: 0.01
J57: 17144256.78 | K57: 0.01
J58: 18344354.76 | K58: 0.008
J59: 19628459.59 | K59: 0.008
J60: 21002451.76 | K60: 0.007
J61: 22472623.38 | K61: 0.006
J62: 24045707.02 | K62: 0.006
J63: 25728906.51 | K63: 0.006
J64: 27529929.97 | K64: 0.006
J65: 29457025.07 | K65: 0.004
J66: 31519016.82 | K66: 0.003
J67: 33725348 | K67: 0.002

Sheet Risk Tolerance Table
A1: Worksheet: Risk Tolerance
A2: Instructions: This tab allows a user to define an unambiguous risk tolerance by assessing just-barely-acceptable bets representing a typical investment, a relative safe one, and a longshot. Two different models are used to represent risk tolerance of the decision maker: Constant Absolute Risk Aversion (CARA) and Relative Risk Aversion (RRA) These three models try to find a best fit solution for the risk tolerance of the investor but minimizing the "fit" in row 9 by changing values in rows 7 and 8. Notes that two of the models require an "initial wealth" assumption while one (CARA) does not.. Since RRA varies two parameters to fit the stated preferences, it will usually find the best fit.
B3: Scale: | C3: 10000 | E3: =ABS(MIN(C5:C7))/C3 +0.1 -> 2.1 | F3: <-Min wealth
B4: $Gain | C4: $Loss (input negative) | D4: P(Gain) | E4: CARA CME | F4: RRA CME | G4: Expected payoff
A5: Safe bet | B5: 45000 | C5: -20000 | D5: 0.7 | E5: =(-E$9*LN(1-(1-EXP(-(B5/$C$3)/E$9))*D5-(1-EXP(-(C5/$C$3)/E$9))*(1-D5))) -> 1.248374636 | F5: =(EXP(LN(((B5/$C$3)+$F$10)^(1-$F$9)*D5+((C5/$C$3)+$F$10)^(1-$F$9)*(1-D5))/(1-$F$9))-$F$10) -> 0.8642946641 | G5: =D5*B5+(1-D5)*C5 -> 25500 | K5: 0.01 | L5: Percentile low | M5: -10819123.74
A6: Typical investment | B6: 100000 | C6: -20000 | D6: 0.5 | E6: =(-E$9*LN(1-(1-EXP(-(B6/$C$3)/E$9))*D6-(1-EXP(-(C6/$C$3)/E$9))*(1-D6))) -> 0.4918619891 | F6: =(EXP(LN(((B6/$C$3)+$F$10)^(1-$F$9)*D6+((C6/$C$3)+$F$10)^(1-$F$9)*(1-D6))/(1-$F$9))-$F$10) -> 0.3643337338 | G6: =D6*B6+(1-D6)*C6 -> 40000 | K6: 0.99 | L6: Percentile high | M6: 39789988.46
A7: longshot | B7: 500000 | C7: -20000 | D7: 0.2 | E7: =(-E$9*LN(1-(1-EXP(-(B7/$C$3)/E$9))*D7-(1-EXP(-(C7/$C$3)/E$9))*(1-D7))) -> -1.145153286 | F7: =(EXP(LN(((B7/$C$3)+$F$10)^(1-$F$9)*D7+((C7/$C$3)+$F$10)^(1-$F$9)*(1-D7))/(1-$F$9))-$F$10) -> -0.8779808094 | G7: =D7*B7+(1-D7)*C7 -> 84000
B8: Use "Solver" to set to these conditions (see instruction for Solver below): | D8: Set Objective: By changing cells: | E8: $E$11 $E$9 | F8: $F$11 $F$9:$F$10
C9: Utility Coefficients: | E9: 3.830932727 | F9: 0.695746569 | K9: Yes
C10: Initial Wealth: | E10: NA | F10: 2.1 | K10: No
C11: Fit (lower is better fit): | E11: =SUMSQ(E5:E7) -> 3.111743496 | F11: =IFERROR(SUMSQ(F5:F7),10^20) -> 1.650594638
C12: Conditions: | E12: Utility Coef >=.01 | F12: Utility Coef >=.01
F13: Wealth greater than max loss

Sheet DecisionTreeWinfo
A1: Worksheet: Decision Tree Example
A2: Instructions: This decision tree example concerns an investment decision which has an uncertain outcome. The user can enter the payoffs in the yellow cells below. It is also possible that with some investigation the probability of success would change based on the result of the experiment. This adds a decision of whether to run the experiment. The values for the probability of success given a positive result can also be input in the yellow cells as well as the cost of the experiment. The tree will use the values to calculate the expected gain with and without the experiment as well as any opportunity loss.
A5: Decision Tree w/Partial Information | P5: Payoff | Q5: Probability
A7: Payoff if Successful | B7: 50 | H7: Result: | I7: Positive | L7: Choice: | M7: Invest | P7: =B$7 -> 50 | Q7: P(S|G) | R7: =B15 -> 0.9230769231
A8: Payoff if Unsuccessful | B8: -30 | H8: P(Positive): | I8: =B14 -> 0.52 | L8: Expected Gain: | M8: =P7*R7+P10*R10 -> 43.84615385
A9: Payoff w/o investing | B9: 0 | H9: Best Gain: | I9: =MAX(M8,M12) -> 43.84615385
A10: P(Success) | B10: 0.6 | H10: Opp. Loss | I10: =ABS(IF(I9=M8,P10*R10,P7*R7)) -> 2.307692308 | P10: =$B$8 -> -30 | Q10: P(S|G) | R10: =1-R7 -> 0.07692307692
A11: P(Pos|Success) | B11: 0.8 | L11: Choice: | M11: Don't Invest
A12: P(Pos|No Success) | B12: 0.1 | L12: Expected Gain: | M12: =P13 -> 0
A13: Cost of Study | B13: 2 | P13: =$B$9 -> 0
A14: P(Pos) | B14: =B11*B10+B12*(1-B10) -> 0.52 | D14: Measure
A15: P(Success|Pos) | B15: =B11*B10/B14 -> 0.9230769231 | D15: Expected Gain: | E15: =I8*I9+I17*I18 -> 22.8
A16: P(Success|~Pos) | B16: =(1-B11)*B10/(1-B14) -> 0.25 | D16: OL | E16: =B21 -> 7.2 | H16: Result: | I16: Negative | L16: Choice: | M16: Invest | P16: =B$7 -> 50 | Q16: P(S|~G) | R16: =B16 -> 0.25
A17: Value of Study | B17: =E15-E27 -> 4.8 | H17: P(Negative): | I17: =1-I8 -> 0.48 | L17: Expected Gain: | M17: =P16*R16+P19*R19 -> -10
A18: Net Value of Study | B18: =B17-B13 -> 2.8 | H18: Best Gain: | I18: =MAX(L17,L23) -> 0
A19: Opportunity Loss (OL) | B19: =IF(E27=M25,ABS(P28),ABS(P25)) -> 30 | H19: Opp. Loss | I19: =ABS(IF(I18=M17,P19*R19,P16*R16)) -> 12.5 | P19: =$B$8 -> -30 | Q19: P(~S|~G) | R19: =1-R16 -> 0.75
A20: EOL before study | B20: =IF(E27=M25,R28,R25)*B19 -> 12 | L20: Choice: | M20: Don't Invest
A21: EOL after study | B21: =I10*I8+I19*I17 -> 7.2 | L21: Expected Gain: | M21: =P22 -> 0
A22: Change in EOL | B22: =E28-B21 -> 4.8 | P22: =$B$9 -> 0
A24: Rules: | L24: Choice: | M24: Invest
A25: The following rules can be used to solve the above calculated probabilities. | L25: Expected Gain: | M25: =P25*R25+P28*R28 -> 18 | P25: =B$7 -> 50 | Q25: P(S) | R25: =B10 -> 0.6
D26: Don't Measure
A27: The law of total probability | D27: Best Gain: | E27: =MAX(M25,M30) -> 18
D28: Opp. Loss | E28: =ABS(IF(E27=M25,P28*R28,P25*R25)) -> 12 | P28: =$B$8 -> -30 | Q28: P(~S) | R28: =1-R25 -> 0.4
A29: Bayes Theorem | L29: Choice: | M29: Don't Invest
L30: Expected Gain: | M30: =P31 -> 0
P31: =$B$9 -> 0

Sheet Distributions
A1: Selected Distributions
A2: Instructions: This page provides information on several desitributions used in the Simple MC example. It also provides an example of how to implement each.
A3: Trial ID | B3: 7692
A5: Uniform
A6: One of the simplest distributions you can use is the uniform distribution. There is no chance of a value being above the maximum or below the minimum, and every value between the min and max are equally likely. ■■ When to use: When you know the minimum and maximum values, but any value in between is equally likely. ■■ Examples: The proportion of people that would buy a product, number of employees that do some activity. ■■ Mean = (min + max)/2 ■■ Simulated value = rand * (max - min) + min
A7: Simulated Value | B7: Minimum | C7: Mode or Probability | D7: Maximum | E7: Variable ID | F7: HDR PRNG
A8: =F8*(D8-B8)+B8 -> 0.5925695827 | B8: 0 | C8: N/A | D8: 1 | E8: 1 | F8: =((MOD((MOD(MOD(999999999999989,MOD($B$3*2499997+E8*1800451,7450589)*4658+7450581)*383,99991)*7440893+MOD(MOD(999999999999989,MOD($B$3*2246527+E8*2399993,7450987)*7580+7560584)*17669,7440893))*1343,4294967296))+0.5)/2^32 -> 0.5925695827
A10: Triangular
A11: For a triangular distribution, the UB and LB represent absolute limits. There is no chance that a value could be generated outside of these bounds. In addition to the UB and LB, this distribution also has a mode that can vary to any value between the UB and LB. This is sometimes useful as a substitute for a lognormal, when you want to set absolute limits on what the values can be but you want to skew the output in a way similar to the lognormal. It is useful in any situation where you know of absolute limits but the most likely value might not be in the middle, like the normal distribution. ■■When to Use: When you want control over where the most likely value is compared to the range, and when the range has absolute limits. ■■ Examples: Number of records lost if you think the most likely number is near the top of the range and yet you have a finite number of records you know cannot be exceeded. ■■ Mean: =(min+mode+max)/3 ■■ Simulated value = IF(rand<(mode-min)/(max-min), 1, 0) * (min + SQRT(rand*(max-min)*(mode-min))) + IF(rand>= (mode-min)/(max-min), 1, 0) * (max - SQRT((1-rand) * (max - min) * (max - mode)))
A12: Random Result | B12: Minimum | C12: Mode or Probability | D12: Maximum | E12: Variable ID | F12: HDR PRNG
A13: =IF(F13<(C13-B13)/(D13-B13), 1, 0) * (B13 + SQRT(F13*(D13-B13)*(C13-B13))) + IF(F13>= (C13-B13)/(D13-B13), 1, 0) * (D13 - SQRT((1-F13) * (D13 - B13) * (D13 - C13))) -> 1.993521046 | B13: 1 | C13: 3 | D13: 4 | E13: 2 | F13: =((MOD((MOD(MOD(999999999999989,MOD($B$3*2499997+E13*1800451,7450589)*4658+7450581)*383,99991)*7440893+MOD(MOD(999999999999989,MOD($B$3*2246527+E13*2399993,7450987)*7580+7560584)*17669,7440893))*1343,4294967296))+0.5)/2^32 -> 0.1645140114
A15: Binary
A16: Unlike the other distributions mentioned here, a discrete binary distribution (also known as a Bernoulli distribution) generates just two possible outcomes: success or failure. The probability of success is p and the probability of failure is q = (1 – p). For example, if success means to flip a fair coin heads‐up, the probability of success is p = .5, and the probability of failure is q = (1 – .5) = .5. ■■ When to use: This is used in either/or situations—something either happens or it doesn’t. ■■ Example: The occurrence of a data breach in a given period of time. ■■ Mean: =P ■■ Simulated value = if(rand<probability, 1, 0)
A17: Random Result | B17: Minimum | C17: Mode or Probability | D17: Maximum | E17: Variable ID | F17: HDR PRNG
A18: =IF(F18<C18,1,0) -> 1 | B18: N/A | C18: 0.3 | D18: N/A | E18: 3 | F18: =((MOD((MOD(MOD(999999999999989,MOD($B$3*2499997+E18*1800451,7450589)*4658+7450581)*383,99991)*7440893+MOD(MOD(999999999999989,MOD($B$3*2246527+E18*2399993,7450987)*7580+7560584)*17669,7440893))*1343,4294967296))+0.5)/2^32 -> 0.09852374636
A20: Normal
A21: A normal (or Gaussian) distribution is a bell‐shaped curve that is symmetrically distributed about the mean. Many natural phenomenon follow this distribution but in some applications it will underestimate the probability of extreme events. ■ When to Use: When there is equal probability of observing a result above or below the mean. ■ Examples: Test scores, travel time. ■ Mean: =(UB + LB)/2
A22: Simulated Value | B22: Lower Bound (P5) | D22: Upper Bound (P95) | E22: Variable ID | F22: HDR PRNG
A23: =_xlfn.NORM.INV(F23, (D23+B23)/2, (D23-B23)/3.29) -> 1819.142134 | B23: 1000 | D23: 2000 | E23: 4 | F23: =((MOD((MOD(MOD(999999999999989,MOD($B$3*2499997+E23*1800451,7450589)*4658+7450581)*383,99991)*7440893+MOD(MOD(999999999999989,MOD($B$3*2246527+E23*2399993,7450987)*7580+7560584)*17669,7440893))*1343,4294967296))+0.5)/2^32 -> 0.8531357989
A25: Lognormal
A26: The lognormal distribution is an often preferred alternative to the normal distribution when a sample can only take positive values. It also allows for the possibility of extreme values on the upper end and, therefore, may fit some phenomena better than a normal. ■ When to Use: To model positive values that are primarily moderate in scope but have potential for rare extreme events. ■ Examples: Losses incurred by a cyberattack, the cost of a project. ■ Excel Formula: =lognorm.inv(rand(),(ln(UB) + ln(LB))/2, (ln(UB)‐ln(LB))/3.29) ■ Mean: = ((ln(UB)+ln(LB))/2)
A27: Simulated Value | B27: Lower Bound (P5) | D27: Upper Bound (P95) | E27: Variable ID | F27: HDR PRNG
A28: =_xlfn.LOGNORM.INV(F28, (LN(D28)+LN(B28))/2, (LN(D28)-LN(B28))/3.29) -> 1863.816519 | B28: 1000 | D28: 2000 | E28: 5 | F28: =((MOD((MOD(MOD(999999999999989,MOD($B$3*2499997+E28*1800451,7450589)*4658+7450581)*383,99991)*7440893+MOD(MOD(999999999999989,MOD($B$3*2246527+E28*2399993,7450987)*7580+7560584)*17669,7440893))*1343,4294967296))+0.5)/2^32 -> 0.9049485695

Sheet Simple MC
A1: Worksheet: Simple Monte Carlo | F1: More calculations to the right. Un-collapse columns. >>> | U1: Excel What-If Data Table to Compute Monte Carlo Simulation
A2: Instructions: This worksheet provides an example of a simple Monte Carlo Model. In this example we model a project that would reduce potential labor costs for an upfront investment. Describe the Variables you want to use in your simulation here. Each distribution has a "Shape" (aka, probability distribution) described in the table below. Variables declared on this page can be used as random values on the Decision Model Summary table. Always recalculate by pressing the "Recalculate" button in cell I6. after making changes. Detailed calculations are grouped under hidden columns. Click on "+" signs in column headings to ungroup hidden columns. Below one will also find the model results as well as inputs for risk tolerance.
AMK5: Threshold Approximation for continuous variables
A6: Scenario # | B6: =ScenarioNum -> 257 | F6: Scenario NPV | H6: =IFERROR(NPV(CostM,C26:H26), "Check Variable Input") -> -89.83836188 | U6: Trial ID: | V6: 257 | X6: 1 | Y6: 2 | Z6: 3 | AA6: 4 | AB6: 5 | AC6: 6 | AD6: 7 | AE6: 8 | AF6: 9 | AG6: 10 | AH6: 11 | AI6: 12 | AJ6: 13 | AK6: 14 | AL6: 15 | AM6: 16 | AN6: 17 | AO6: 18 | AP6: 19 | AQ6: 20 | AR6: 21 | AS6: 22 | AT6: 23 | AU6: 24 | AV6: 25 | AW6: 26 | AX6: 27 | AY6: 28 | AZ6: 29 | BA6: 30 | BB6: 31 | BC6: 32 | BD6: 33 | BE6: 34 | BF6: 35 | BG6: 36 | BH6: 37 | BI6: 38 | BJ6: 39 | BK6: 40 | BL6: 41 | BM6: 42 | BN6: 43 | BO6: 44 | BP6: 45 | BQ6: 46 | BR6: 47 | BS6: 48 | BT6: 49 | BU6: 50 | BV6: 51 | BW6: 52 | BX6: 53 | BY6: 54 | BZ6: 55 | CA6: 56 | CB6: 57 | CC6: 58 | CD6: 59 | CE6: 60 | CF6: 61 | CG6: 62 | CH6: 63 | CI6: 64 | CJ6: 65 | CK6: 66 | CL6: 67 | CM6: 68 | CN6: 69 | CO6: 70 | CP6: 71 | CQ6: 72 | CR6: 73 | CS6: 74 | CT6: 75 | CU6: 76 | CV6: 77 | CW6: 78 | CX6: 79 | CY6: 80 | CZ6: 81 | DA6: 82 | DB6: 83 | DC6: 84 | DD6: 85 | DE6: 86 | DF6: 87 | DG6: 88 | DH6: 89 | DI6: 90 | DJ6: 91 | DK6: 92 | DL6: 93 | DM6: 94 | DN6: 95 | DO6: 96 | DP6: 97 | DQ6: 98 | DR6: 99 | DS6: 100 | DT6: 101 | DU6: 102 | DV6: 103 | DW6: 104 | DX6: 105 | DY6: 106 | DZ6: 107 | EA6: 108 | EB6: 109 | EC6: 110 | ED6: 111 | EE6: 112 | EF6: 113 | EG6: 114 | EH6: 115 | EI6: 116 | EJ6: 117 | EK6: 118 | EL6: 119 | EM6: 120 | EN6: 121 | EO6: 122 | EP6: 123 | EQ6: 124 | ER6: 125 | ES6: 126 | ET6: 127 | EU6: 128 | EV6: 129 | EW6: 130 | EX6: 131 | EY6: 132 | EZ6: 133 | FA6: 134 | FB6: 135 | FC6: 136 | FD6: 137 | FE6: 138 | FF6: 139 | FG6: 140 | FH6: 141 | FI6: 142 | FJ6: 143 | FK6: 144 | FL6: 145 | FM6: 146 | FN6: 147 | FO6: 148 | FP6: 149 | FQ6: 150 | FR6: 151 | FS6: 152 | FT6: 153 | FU6: 154 | FV6: 155 | FW6: 156 | FX6: 157 | FY6: 158 | FZ6: 159 | GA6: 160 | GB6: 161 | GC6: 162 | GD6: 163 | GE6: 164 | GF6: 165 | GG6: 166 | GH6: 167 | GI6: 168 | GJ6: 169 | GK6: 170 | GL6: 171 | GM6: 172 | GN6: 173 | GO6: 174 | GP6: 175 | GQ6: 176 | GR6: 177 | GS6: 178 | GT6: 179 | GU6: 180 | GV6: 181 | GW6: 182 | GX6: 183 | GY6: 184 | GZ6: 185 | HA6: 186 | HB6: 187 | HC6: 188 | HD6: 189 | HE6: 190 | HF6: 191 | HG6: 192 | HH6: 193 | HI6: 194 | HJ6: 195 | HK6: 196 | HL6: 197 | HM6: 198 | HN6: 199 | HO6: 200 | HP6: 201 | HQ6: 202 | HR6: 203 | HS6: 204 | HT6: 205 | HU6: 206 | HV6: 207 | HW6: 208 | HX6: 209 | HY6: 210 | HZ6: 211 | IA6: 212 | IB6: 213 | IC6: 214 | ID6: 215 | IE6: 216 | IF6: 217 | IG6: 218 | IH6: 219 | II6: 220 | IJ6: 221 | IK6: 222 | IL6: 223 | IM6: 224 | IN6: 225 | IO6: 226 | IP6: 227 | IQ6: 228 | IR6: 229 | IS6: 230 | IT6: 231 | IU6: 232 | IV6: 233 | IW6: 234 | IX6: 235 | IY6: 236 | IZ6: 237 | JA6: 238 | JB6: 239 | JC6: 240 | JD6: 241 | JE6: 242 | JF6: 243 | JG6: 244 | JH6: 245 | JI6: 246 | JJ6: 247 | JK6: 248 | JL6: 249 | JM6: 250 | JN6: 251 | JO6: 252 | JP6: 253 | JQ6: 254 | JR6: 255 | JS6: 256 | JT6: 257 | JU6: 258 | JV6: 259 | JW6: 260 | JX6: 261 | JY6: 262 | JZ6: 263 | KA6: 264 | KB6: 265 | KC6: 266 | KD6: 267 | KE6: 268 | KF6: 269 | KG6: 270 | KH6: 271 | KI6: 272 | KJ6: 273 | KK6: 274 | KL6: 275 | KM6: 276 | KN6: 277 | KO6: 278 | KP6: 279 | KQ6: 280 | KR6: 281 | KS6: 282 | KT6: 283 | KU6: 284 | KV6: 285 | KW6: 286 | KX6: 287 | KY6: 288 | KZ6: 289 | LA6: 290 | LB6: 291 | LC6: 292 | LD6: 293 | LE6: 294 | LF6: 295 | LG6: 296 | LH6: 297 | LI6: 298 | LJ6: 299 | LK6: 300 | LL6: 301 | LM6: 302 | LN6: 303 | LO6: 304 | LP6: 305 | LQ6: 306 | LR6: 307 | LS6: 308 | LT6: 309 | LU6: 310 | LV6: 311 | LW6: 312 | LX6: 313 | LY6: 314 | LZ6: 315 | MA6: 316 | MB6: 317 | MC6: 318 | MD6: 319 | ME6: 320 | MF6: 321 | MG6: 322 | MH6: 323 | MI6: 324 | MJ6: 325 | MK6: 326 | ML6: 327 | MM6: 328 | MN6: 329 | MO6: 330 | MP6: 331 | MQ6: 332 | MR6: 333 | MS6: 334 | MT6: 335 | MU6: 336 | MV6: 337 | MW6: 338 | MX6: 339 | MY6: 340 | MZ6: 341 | NA6: 342 | NB6: 343 | NC6: 344 | ND6: 345 | NE6: 346 | NF6: 347 | NG6: 348 | NH6: 349 | NI6: 350 | NJ6: 351 | NK6: 352 | NL6: 353 | NM6: 354 | NN6: 355 | NO6: 356 | NP6: 357 | NQ6: 358 | NR6: 359 | NS6: 360 | NT6: 361 | NU6: 362 | NV6: 363 | NW6: 364 | NX6: 365 | NY6: 366 | NZ6: 367 | OA6: 368 | OB6: 369 | OC6: 370 | OD6: 371 | OE6: 372 | OF6: 373 | OG6: 374 | OH6: 375 | OI6: 376 | OJ6: 377 | OK6: 378 | OL6: 379 | OM6: 380 | ON6: 381 | OO6: 382 | OP6: 383 | OQ6: 384 | OR6: 385 | OS6: 386 | OT6: 387 | OU6: 388 | OV6: 389 | OW6: 390 | OX6: 391 | OY6: 392 | OZ6: 393 | PA6: 394 | PB6: 395 | PC6: 396 | PD6: 397 | PE6: 398 | PF6: 399 | PG6: 400 | PH6: 401 | PI6: 402 | PJ6: 403 | PK6: 404 | PL6: 405 | PM6: 406 | PN6: 407 | PO6: 408 | PP6: 409 | PQ6: 410 | PR6: 411 | PS6: 412 | PT6: 413 | PU6: 414 | PV6: 415 | PW6: 416 | PX6: 417 | PY6: 418 | PZ6: 419 | QA6: 420 | QB6: 421 | QC6: 422 | QD6: 423 | QE6: 424 | QF6: 425 | QG6: 426 | QH6: 427 | QI6: 428 | QJ6: 429 | QK6: 430 | QL6: 431 | QM6: 432 | QN6: 433 | QO6: 434 | QP6: 435 | QQ6: 436 | QR6: 437 | QS6: 438 | QT6: 439 | QU6: 440 | QV6: 441 | QW6: 442 | QX6: 443 | QY6: 444 | QZ6: 445 | RA6: 446 | RB6: 447 | RC6: 448 | RD6: 449 | RE6: 450 | RF6: 451 | RG6: 452 | RH6: 453 | RI6: 454 | RJ6: 455 | RK6: 456 | RL6: 457 | RM6: 458 | RN6: 459 | RO6: 460 | RP6: 461 | RQ6: 462 | RR6: 463 | RS6: 464 | RT6: 465 | RU6: 466 | RV6: 467 | RW6: 468 | RX6: 469 | RY6: 470 | RZ6: 471 | SA6: 472 | SB6: 473 | SC6: 474 | SD6: 475 | SE6: 476 | SF6: 477 | SG6: 478 | SH6: 479 | SI6: 480 | SJ6: 481 | SK6: 482 | SL6: 483 | SM6: 484 | SN6: 485 | SO6: 486 | SP6: 487 | SQ6: 488 | SR6: 489 | SS6: 490 | ST6: 491 | SU6: 492 | SV6: 493 | SW6: 494 | SX6: 495 | SY6: 496 | SZ6: 497 | TA6: 498 | TB6: 499 | TC6: 500 | TD6: 501 | TE6: 502 | TF6: 503 | TG6: 504 | TH6: 505 | TI6: 506 | TJ6: 507 | TK6: 508 | TL6: 509 | TM6: 510 | TN6: 511 | TO6: 512 | TP6: 513 | TQ6: 514 | TR6: 515 | TS6: 516 | TT6: 517 | TU6: 518 | TV6: 519 | TW6: 520 | TX6: 521 | TY6: 522 | TZ6: 523 | UA6: 524 | UB6: 525 | UC6: 526 | UD6: 527 | UE6: 528 | UF6: 529 | UG6: 530 | UH6: 531 | UI6: 532 | UJ6: 533 | UK6: 534 | UL6: 535 | UM6: 536 | UN6: 537 | UO6: 538 | UP6: 539 | UQ6: 540 | UR6: 541 | US6: 542 | UT6: 543 | UU6: 544 | UV6: 545 | UW6: 546 | UX6: 547 | UY6: 548 | UZ6: 549 | VA6: 550 | VB6: 551 | VC6: 552 | VD6: 553 | VE6: 554 | VF6: 555 | VG6: 556 | VH6: 557 | VI6: 558 | VJ6: 559 | VK6: 560 | VL6: 561 | VM6: 562 | VN6: 563 | VO6: 564 | VP6: 565 | VQ6: 566 | VR6: 567 | VS6: 568 | VT6: 569 | VU6: 570 | VV6: 571 | VW6: 572 | VX6: 573 | VY6: 574 | VZ6: 575 | WA6: 576 | WB6: 577 | WC6: 578 | WD6: 579 | WE6: 580 | WF6: 581 | WG6: 582 | WH6: 583 | WI6: 584 | WJ6: 585 | WK6: 586 | WL6: 587 | WM6: 588 | WN6: 589 | WO6: 590 | WP6: 591 | WQ6: 592 | WR6: 593 | WS6: 594 | WT6: 595 | WU6: 596 | WV6: 597 | WW6: 598 | WX6: 599 | WY6: 600 | WZ6: 601 | XA6: 602 | XB6: 603 | XC6: 604 | XD6: 605 | XE6: 606 | XF6: 607 | XG6: 608 | XH6: 609 | XI6: 610 | XJ6: 611 | XK6: 612 | XL6: 613 | XM6: 614 | XN6: 615 | XO6: 616 | XP6: 617 | XQ6: 618 | XR6: 619 | XS6: 620 | XT6: 621 | XU6: 622 | XV6: 623 | XW6: 624 | XX6: 625 | XY6: 626 | XZ6: 627 | YA6: 628 | YB6: 629 | YC6: 630 | YD6: 631 | YE6: 632 | YF6: 633 | YG6: 634 | YH6: 635 | YI6: 636 | YJ6: 637 | YK6: 638 | YL6: 639 | YM6: 640 | YN6: 641 | YO6: 642 | YP6: 643 | YQ6: 644 | YR6: 645 | YS6: 646 | YT6: 647 | YU6: 648 | YV6: 649 | YW6: 650 | YX6: 651 | YY6: 652 | YZ6: 653 | ZA6: 654 | ZB6: 655 | ZC6: 656 | ZD6: 657 | ZE6: 658 | ZF6: 659 | ZG6: 660 | ZH6: 661 | ZI6: 662 | ZJ6: 663 | ZK6: 664 | ZL6: 665 | ZM6: 666 | ZN6: 667 | ZO6: 668 | ZP6: 669 | ZQ6: 670 | ZR6: 671 | ZS6: 672 | ZT6: 673 | ZU6: 674 | ZV6: 675 | ZW6: 676 | ZX6: 677 | ZY6: 678 | ZZ6: 679 | AAA6: 680 | AAB6: 681 | AAC6: 682 | AAD6: 683 | AAE6: 684 | AAF6: 685 | AAG6: 686 | AAH6: 687 | AAI6: 688 | AAJ6: 689 | AAK6: 690 | AAL6: 691 | AAM6: 692 | AAN6: 693 | AAO6: 694 | AAP6: 695 | AAQ6: 696 | AAR6: 697 | AAS6: 698 | AAT6: 699 | AAU6: 700 | AAV6: 701 | AAW6: 702 | AAX6: 703 | AAY6: 704 | AAZ6: 705 | ABA6: 706 | ABB6: 707 | ABC6: 708 | ABD6: 709 | ABE6: 710 | ABF6: 711 | ABG6: 712 | ABH6: 713 | ABI6: 714 | ABJ6: 715 | ABK6: 716 | ABL6: 717 | ABM6: 718 | ABN6: 719 | ABO6: 720 | ABP6: 721 | ABQ6: 722 | ABR6: 723 | ABS6: 724 | ABT6: 725 | ABU6: 726 | ABV6: 727 | ABW6: 728 | ABX6: 729 | ABY6: 730 | ABZ6: 731 | ACA6: 732 | ACB6: 733 | ACC6: 734 | ACD6: 735 | ACE6: 736 | ACF6: 737 | ACG6: 738 | ACH6: 739 | ACI6: 740 | ACJ6: 741 | ACK6: 742 | ACL6: 743 | ACM6: 744 | ACN6: 745 | ACO6: 746 | ACP6: 747 | ACQ6: 748 | ACR6: 749 | ACS6: 750 | ACT6: 751 | ACU6: 752 | ACV6: 753 | ACW6: 754 | ACX6: 755 | ACY6: 756 | ACZ6: 757 | ADA6: 758 | ADB6: 759 | ADC6: 760 | ADD6: 761 | ADE6: 762 | ADF6: 763 | ADG6: 764 | ADH6: 765 | ADI6: 766 | ADJ6: 767 | ADK6: 768 | ADL6: 769 | ADM6: 770 | ADN6: 771 | ADO6: 772 | ADP6: 773 | ADQ6: 774 | ADR6: 775 | ADS6: 776 | ADT6: 777 | ADU6: 778 | ADV6: 779 | ADW6: 780 | ADX6: 781 | ADY6: 782 | ADZ6: 783 | AEA6: 784 | AEB6: 785 | AEC6: 786 | AED6: 787 | AEE6: 788 | AEF6: 789 | AEG6: 790 | AEH6: 791 | AEI6: 792 | AEJ6: 793 | AEK6: 794 | AEL6: 795 | AEM6: 796 | AEN6: 797 | AEO6: 798 | AEP6: 799 | AEQ6: 800 | AER6: 801 | AES6: 802 | AET6: 803 | AEU6: 804 | AEV6: 805 | AEW6: 806 | AEX6: 807 | AEY6: 808 | AEZ6: 809 | AFA6: 810 | AFB6: 811 | AFC6: 812 | AFD6: 813 | AFE6: 814 | AFF6: 815 | AFG6: 816 | AFH6: 817 | AFI6: 818 | AFJ6: 819 | AFK6: 820 | AFL6: 821 | AFM6: 822 | AFN6: 823 | AFO6: 824 | AFP6: 825 | AFQ6: 826 | AFR6: 827 | AFS6: 828 | AFT6: 829 | AFU6: 830 | AFV6: 831 | AFW6: 832 | AFX6: 833 | AFY6: 834 | AFZ6: 835 | AGA6: 836 | AGB6: 837 | AGC6: 838 | AGD6: 839 | AGE6: 840 | AGF6: 841 | AGG6: 842 | AGH6: 843 | AGI6: 844 | AGJ6: 845 | AGK6: 846 | AGL6: 847 | AGM6: 848 | AGN6: 849 | AGO6: 850 | AGP6: 851 | AGQ6: 852 | AGR6: 853 | AGS6: 854 | AGT6: 855 | AGU6: 856 | AGV6: 857 | AGW6: 858 | AGX6: 859 | AGY6: 860 | AGZ6: 861 | AHA6: 862 | AHB6: 863 | AHC6: 864 | AHD6: 865 | AHE6: 866 | AHF6: 867 | AHG6: 868 | AHH6: 869 | AHI6: 870 | AHJ6: 871 | AHK6: 872 | AHL6: 873 | AHM6: 874 | AHN6: 875 | AHO6: 876 | AHP6: 877 | AHQ6: 878 | AHR6: 879 | AHS6: 880 | AHT6: 881 | AHU6: 882 | AHV6: 883 | AHW6: 884 | AHX6: 885 | AHY6: 886 | AHZ6: 887 | AIA6: 888 | AIB6: 889 | AIC6: 890 | AID6: 891 | AIE6: 892 | AIF6: 893 | AIG6: 894 | AIH6: 895 | AII6: 896 | AIJ6: 897 | AIK6: 898 | AIL6: 899 | AIM6: 900 | AIN6: 901 | AIO6: 902 | AIP6: 903 | AIQ6: 904 | AIR6: 905 | AIS6: 906 | AIT6: 907 | AIU6: 908 | AIV6: 909 | AIW6: 910 | AIX6: 911 | AIY6: 912 | AIZ6: 913 | AJA6: 914 | AJB6: 915 | AJC6: 916 | AJD6: 917 | AJE6: 918 | AJF6: 919 | AJG6: 920 | AJH6: 921 | AJI6: 922 | AJJ6: 923 | AJK6: 924 | AJL6: 925 | AJM6: 926 | AJN6: 927 | AJO6: 928 | AJP6: 929 | AJQ6: 930 | AJR6: 931 | AJS6: 932 | AJT6: 933 | AJU6: 934 | AJV6: 935 | AJW6: 936 | AJX6: 937 | AJY6: 938 | AJZ6: 939 | AKA6: 940 | AKB6: 941 | AKC6: 942 | AKD6: 943 | AKE6: 944 | AKF6: 945 | AKG6: 946 | AKH6: 947 | AKI6: 948 | AKJ6: 949 | AKK6: 950 | AKL6: 951 | AKM6: 952 | AKN6: 953 | AKO6: 954 | AKP6: 955 | AKQ6: 956 | AKR6: 957 | AKS6: 958 | AKT6: 959 | AKU6: 960 | AKV6: 961 | AKW6: 962 | AKX6: 963 | AKY6: 964 | AKZ6: 965 | ALA6: 966 | ALB6: 967 | ALC6: 968 | ALD6: 969 | ALE6: 970 | ALF6: 971 | ALG6: 972 | ALH6: 973 | ALI6: 974 | ALJ6: 975 | ALK6: 976 | ALL6: 977 | ALM6: 978 | ALN6: 979 | ALO6: 980 | ALP6: 981 | ALQ6: 982 | ALR6: 983 | ALS6: 984 | ALT6: 985 | ALU6: 986 | ALV6: 987 | ALW6: 988 | ALX6: 989 | ALY6: 990 | ALZ6: 991 | AMA6: 992 | AMB6: 993 | AMC6: 994 | AMD6: 995 | AME6: 996 | AMF6: 997 | AMG6: 998 | AMH6: 999 | AMI6: 1000 | AMK6: Clustering Variables by Nth size | ANF6: Average NPV by variable cluster | ANY6: Selection of nearest points and forecast
A7: Variable Summary | V7: NPV | W7: =H6 -> -89.83836188 | X7: 5925.80228 | Y7: 3948.560645 | Z7: -5660.02532 | AA7: 9678.626117 | AB7: 7928.734098 | AC7: 12682.96947 | AD7: -337.61639 | AE7: 9228.902517 | AF7: -6207.257644 | AG7: 12190.88643 | AH7: -10146.66372 | AI7: 4858.752946 | AJ7: 2105.519945 | AK7: -414.0136912 | AL7: -4829.601602 | AM7: 20090.23881 | AN7: 15136.98908 | AO7: 5385.149321 | AP7: -284.0158198 | AQ7: 2928.739415 | AR7: 11942.81369 | AS7: 1168.403882 | AT7: 1784.184977 | AU7: 3715.249695 | AV7: 14524.42306 | AW7: 8604.994206 | AX7: 1801.82014 | AY7: 2715.92285 | AZ7: -4852.058577 | BA7: 6275.611265 | BB7: 674.8320995 | BC7: -4241.90851 | BD7: -1459.597014 | BE7: 7344.059235 | BF7: -2648.011617 | BG7: -6710.984085 | BH7: 8541.505351 | BI7: -3986.19226 | BJ7: 1599.861353 | BK7: -7600.95082 | BL7: 9628.639948 | BM7: 2637.393812 | BN7: 1939.153271 | BO7: -1458.700167 | BP7: 1740.080855 | BQ7: 1094.157321 | BR7: -3887.939834 | BS7: 4134.446348 | BT7: 3678.937583 | BU7: 5411.029446 | BV7: 24496.44209 | BW7: 3831.025152 | BX7: 211.4509044 | BY7: 6001.212007 | BZ7: 8697.516805 | CA7: 2066.441586 | CB7: 3751.341508 | CC7: -607.7958311 | CD7: 12202.42892 | CE7: 3458.323394 | CF7: 7278.706997 | CG7: -256.655328 | CH7: -2641.2765 | CI7: -7892.263418 | CJ7: -3789.92905 | CK7: 7819.949057 | CL7: -4433.447752 | CM7: 1570.090672 | CN7: 10938.07501 | CO7: 12173.20651 | CP7: 2563.717087 | CQ7: 236.9557019 | CR7: 14576.59483 | CS7: 2205.276302 | CT7: 18906.94865 | CU7: 1327.352114 | CV7: 4879.491668 | CW7: -3320.438373 | CX7: 8085.426629 | CY7: 5569.393205 | CZ7: 5543.28265 | DA7: 2179.335455 | DB7: 993.8997675 | DC7: 13614.08459 | DD7: 4962.110501 | DE7: 19043.28355 | DF7: 2597.343781 | DG7: 8675.949283 | DH7: 16410.2598 | DI7: -7655.583751 | DJ7: -11065.57175 | DK7: 15914.68396 | DL7: 12715.59059 | DM7: 4029.867709 | DN7: 4583.194939 | DO7: 15080.0108 | DP7: -5619.058807 | DQ7: -2907.217325 | DR7: -5927.304458 | DS7: 1104.307731 | DT7: 1776.951509 | DU7: -5362.354608 | DV7: -5250.995436 | DW7: 7098.385615 | DX7: 2108.815621 | DY7: 3599.501969 | DZ7: 4322.462029 | EA7: 2598.786244 | EB7: 11042.51039 | EC7: -2695.504981 | ED7: 860.2921205 | EE7: 1779.989411 | EF7: 457.1010486 | EG7: 4032.126055 | EH7: 21186.44352 | EI7: 5503.456349 | EJ7: 4190.690457 | EK7: 13169.11622 | EL7: -1517.354706 | EM7: 5913.329573 | EN7: 5235.241282 | EO7: 13664.54269 | EP7: 3456.399306 | EQ7: 1449.401191 | ER7: 3817.066498 | ES7: 3687.761654 | ET7: -1508.112589 | EU7: 10980.866 | EV7: 6550.214452 | EW7: 8396.336103 | EX7: 7989.206902 | EY7: 12429.30067 | EZ7: 872.8611159 | FA7: 2286.369192 | FB7: -983.2107704 | FC7: -210.0724135 | FD7: 1151.443712 | FE7: 11581.99742 | FF7: 13713.544 | FG7: 11973.00297 | FH7: 1578.777892 | FI7: 8733.600373 | FJ7: 3065.968988 | FK7: -2324.148681 | FL7: 6501.427689 | FM7: 7875.94708 | FN7: 5183.168872 | FO7: 722.7309905 | FP7: -1066.951117 | FQ7: 12514.17911 | FR7: -4382.141117 | FS7: 13814.6881 | FT7: 2773.899977 | FU7: 2265.669351 | FV7: 10621.05634 | FW7: 2691.581409 | FX7: 3023.173934 | FY7: 1321.084324 | FZ7: 18570.47702 | GA7: 1654.96814 | GB7: 3942.479378 | GC7: 14784.25216 | GD7: -9689.079523 | GE7: 8516.715411 | GF7: -3144.743119 | GG7: 4039.133891 | GH7: -3683.797961 | GI7: 23220.91938 | GJ7: 7164.553245 | GK7: 4523.803031 | GL7: -272.5348178 | GM7: 4508.019607 | GN7: 437.1032582 | GO7: 1458.544154 | GP7: 9297.009442 | GQ7: 7384.928198 | GR7: 564.6180866 | GS7: 6260.895363 | GT7: 3700.525127 | GU7: -980.0070208 | GV7: 15162.71864 | GW7: -4627.553275 | GX7: 11709.64572 | GY7: 10.07580819 | GZ7: 10459.98748 | HA7: 14496.66873 | HB7: -432.3707148 | HC7: 5862.586323 | HD7: 4778.063335 | HE7: -995.2641063 | HF7: 7736.363032 | HG7: 13484.71182 | HH7: -9978.450674 | HI7: 79.81286373 | HJ7: 2676.521751 | HK7: -4274.733435 | HL7: 2435.52202 | HM7: 3234.300934 | HN7: 5621.716223 | HO7: 2075.990993 | HP7: 2603.417768 | HQ7: 10092.35852 | HR7: 2992.30706 | HS7: 14198.52463 | HT7: 7027.854773 | HU7: -5772.381106 | HV7: 6199.910978 | HW7: 793.5494444 | HX7: 8738.038803 | HY7: 7760.721695 | HZ7: 10678.6169 | IA7: 7981.990314 | IB7: 3046.438509 | IC7: 4350.105108 | ID7: 7457.242978 | IE7: 11466.03841 | IF7: 4549.887422 | IG7: 3670.638521 | IH7: 2623.088829 | II7: 19207.08163 | IJ7: 7214.791968 | IK7: -6515.52147 | IL7: 3102.818529 | IM7: 9072.49338 | IN7: -1831.822629 | IO7: -6092.871639 | IP7: 5217.753984 | IQ7: 4660.26171 | IR7: 3982.885349 | IS7: -377.7748085 | IT7: 19847.16228 | IU7: 2029.922716 | IV7: 27994.27057 | IW7: -822.2940402 | IX7: 650.7331834 | IY7: 14439.9164 | IZ7: 6346.219779 | JA7: 12112.77507 | JB7: -5701.739881 | JC7: 4266.96591 | JD7: -2565.566904 | JE7: 12797.245 | JF7: 15159.53173 | JG7: 12530.23136 | JH7: -791.9358112 | JI7: 10422.52436 | JJ7: 5961.248142 | JK7: 6897.568118 | JL7: 12638.45445 | JM7: -697.8628383 | JN7: 9314.776778 | JO7: 7972.692683 | JP7: 15264.6987 | JQ7: 2175.61217 | JR7: -92.99644886 | JS7: -10208.58506 | JT7: -89.83836188 | JU7: 9789.857272 | JV7: 7988.34883 | JW7: 3249.133154 | JX7: 4439.056959 | JY7: 4932.285851 | JZ7: 3024.96106 | KA7: 17125.91885 | KB7: 8562.812875 | KC7: 7572.934458 | KD7: 489.4886742 | KE7: -6050.351738 | KF7: 16725.34638 | KG7: 8272.443006 | KH7: 615.6914771 | KI7: 6158.5287 | KJ7: 2886.910795 | KK7: 11935.29009 | KL7: 13026.28621 | KM7: 825.5229913 | KN7: 7996.491463 | KO7: 1105.681641 | KP7: -2323.601027 | KQ7: 11563.07367 | KR7: -183.0147855 | KS7: 5625.516094 | KT7: 1763.087821 | KU7: 1202.139399 | KV7: 17610.29367 | KW7: -2362.412413 | KX7: -5118.870257 | KY7: 8352.566248 | KZ7: 9536.533467 | LA7: 3472.297305 | LB7: 128.7949636 | LC7: 784.3340655 | LD7: 12735.94461 | LE7: 5616.842513 | LF7: 802.941693 | LG7: 4027.434513 | LH7: 16098.57128 | LI7: 2630.642102 | LJ7: 1892.559798 | LK7: 3371.4206 | LL7: 3142.887864 | LM7: 5898.30833 | LN7: -250.0890978 | LO7: -3739.966275 | LP7: 2348.830775 | LQ7: 10751.89014 | LR7: 6721.643735 | LS7: 13555.99952 | LT7: 1304.644381 | LU7: 8206.182881 | LV7: 21867.91302 | LW7: 10990.01688 | LX7: -187.787724 | LY7: 14048.54432 | LZ7: -946.0993134 | MA7: 1752.661516 | MB7: 12644.48036 | MC7: 9653.253706 | MD7: -38.21865685 | ME7: 1569.196352 | MF7: 3951.806004 | MG7: 12896.47495 | MH7: 8155.631778 | MI7: 3967.622377 | MJ7: 11311.37255 | MK7: 11960.46824 | ML7: -1914.07601 | MM7: 3860.899697 | MN7: -834.4933701 | MO7: 6132.752397 | MP7: -5625.055667 | MQ7: 5119.31093 | MR7: -10658.95991 | MS7: 1324.569252 | MT7: 4186.425302 | MU7: 15969.37269 | MV7: 10334.36033 | MW7: -2124.243418 | MX7: 1773.381885 | MY7: 16814.07183 | MZ7: 2694.156278 | NA7: 18777.15883 | NB7: -1242.96486 | NC7: 5945.265152 | ND7: 4805.001462 | NE7: 18199.92483 | NF7: 15360.13081 | NG7: 716.7181134 | NH7: 7695.454145 | NI7: 3964.644118 | NJ7: -3677.930818 | NK7: 11278.63979 | NL7: 12215.41409 | NM7: 5869.796202 | NN7: 9038.725825 | NO7: 2423.510762 | NP7: 7151.922568 | NQ7: 11446.78684 | NR7: 342.1105023 | NS7: 5902.566061 | NT7: 2713.679511 | NU7: -5148.324556 | NV7: -1476.904592 | NW7: 7160.334456 | NX7: -5304.230621 | NY7: 1594.739644 | NZ7: -10259.77326 | OA7: 9339.460161 | OB7: 6210.917108 | OC7: 14622.21814 | OD7: -3551.897354 | OE7: 31951.15813 | OF7: 892.6739629 | OG7: -12586.78465 | OH7: 13803.65244 | OI7: 8743.42402 | OJ7: 16851.0631 | OK7: 7881.338112 | OL7: 3540.635751 | OM7: 7753.586334 | ON7: 2050.135915 | OO7: 2020.369685 | OP7: 8442.959025 | OQ7: 5715.901192 | OR7: -3036.669616 | OS7: 734.1596037 | OT7: -3625.114887 | OU7: 11637.97175 | OV7: 3727.010062 | OW7: 2781.656708 | OX7: 9142.786909 | OY7: 7413.148578 | OZ7: -1579.957341 | PA7: 12547.74843 | PB7: 13365.68483 | PC7: -811.5453287 | PD7: 18476.94986 | PE7: 16364.90878 | PF7: -4697.101664 | PG7: 4601.772067 | PH7: 6211.879175 | PI7: -5440.52782 | PJ7: 4213.52499 | PK7: 10914.66652 | PL7: 16061.18143 | PM7: 8708.818729 | PN7: -13565.90749 | PO7: 6427.34125 | PP7: 5461.828195 | PQ7: -379.9806898 | PR7: 14716.05105 | PS7: -1744.627696 | PT7: -260.9128253 | PU7: 12771.68221 | PV7: 9066.293556 | PW7: 8033.188544 | PX7: 9168.084494 | PY7: 7839.973438 | PZ7: 3819.465395 | QA7: 9464.469638 | QB7: 345.532414 | QC7: 8420.906562 | QD7: 1340.676094 | QE7: 11310.56974 | QF7: 5303.853861 | QG7: 11631.88937 | QH7: 9296.366586 | QI7: 14156.9126 | QJ7: 4940.050679 | QK7: 8487.976437 | QL7: -4161.423647 | QM7: 14264.47807 | QN7: -3912.131836 | QO7: 4852.892442 | QP7: 9663.09685 | QQ7: 19456.36313 | QR7: 6798.691536 | QS7: 3871.132033 | QT7: 3534.280681 | QU7: -317.5125491 | QV7: 408.3290989 | QW7: 4410.564752 | QX7: 8373.399133 | QY7: 14737.18335 | QZ7: -2809.834433 | RA7: 10431.08838 | RB7: 933.7653617 | RC7: 3869.812471 | RD7: 4363.015865 | RE7: 8040.959153 | RF7: 19956.82818 | RG7: -2284.568109 | RH7: 2777.747267 | RI7: 1069.890235 | RJ7: 6389.335108 | RK7: 4509.082971 | RL7: -2976.82659 | RM7: 6758.153615 | RN7: 6100.929349 | RO7: 6964.020792 | RP7: -2294.370105 | RQ7: 3471.959958 | RR7: 22021.33742 | RS7: 4988.157961 | RT7: 9047.242425 | RU7: -2460.165143 | RV7: 7474.275849 | RW7: -10305.25751 | RX7: 4244.356606 | RY7: 1904.866108 | RZ7: 7114.74557 | SA7: 17443.62298 | SB7: 5196.035375 | SC7: 2510.46683 | SD7: 7308.372713 | SE7: 16962.83813 | SF7: 22550.80578 | SG7: 9824.570671 | SH7: 13952.27078 | SI7: 1418.648527 | SJ7: 3995.326521 | SK7: 17081.80308 | SL7: 10161.81445 | SM7: 1546.967902 | SN7: -29.06765193 | SO7: 17378.25855 | SP7: 2392.009235 | SQ7: 8952.846155 | SR7: -665.0341528 | SS7: 11084.30094 | ST7: 13355.74731 | SU7: 7116.240843 | SV7: 1441.335786 | SW7: 15015.06307 | SX7: 3090.145519 | SY7: -2337.533906 | SZ7: 3650.962353 | TA7: 393.1957908 | TB7: -1812.334027 | TC7: -2582.49152 | TD7: 6599.131838 | TE7: -1288.407535 | TF7: 285.0179423 | TG7: 2884.112191 | TH7: 5428.279556 | TI7: 7370.68643 | TJ7: 4850.306711 | TK7: 9788.142915 | TL7: 25408.69858 | TM7: -1761.972721 | TN7: 3134.260105 | TO7: 7420.975322 | TP7: 2047.489842 | TQ7: 11734.01601 | TR7: 10456.98757 | TS7: -2864.440166 | TT7: 2196.694733 | TU7: 5166.98909 | TV7: -3371.477409 | TW7: 1721.321707 | TX7: 3125.455248 | TY7: 8380.554531 | TZ7: 3594.641635 | UA7: 4976.682599 | UB7: 10609.02823 | UC7: 7007.015493 | UD7: 1392.270083 | UE7: 12606.28923 | UF7: -3677.097577 | UG7: 7823.575546 | UH7: 16046.49982 | UI7: -453.1148331 | UJ7: 14201.75629 | UK7: 5165.581592 | UL7: -7585.435113 | UM7: -2313.35843 | UN7: 6068.861489 | UO7: 3955.438863 | UP7: 8851.633418 | UQ7: 2659.941887 | UR7: 4948.142317 | US7: 7551.677909 | UT7: 16858.42412 | UU7: -112.2741372 | UV7: 3532.4996 | UW7: 9220.616138 | UX7: 291.6819088 | UY7: 2673.880173 | UZ7: 9168.238161 | VA7: 13584.5383 | VB7: 9726.421512 | VC7: 24129.45854 | VD7: 4515.679805 | VE7: 13996.43016 | VF7: 2450.485611 | VG7: 15196.80824 | VH7: 10956.21961 | VI7: 7335.028758 | VJ7: 4403.443075 | VK7: 10317.09735 | VL7: 8029.702661 | VM7: 11894.14284 | VN7: 1614.9157 | VO7: 11394.06959 | VP7: 15122.00314 | VQ7: 10628.56792 | VR7: 3272.042614 | VS7: -1231.815417 | VT7: 942.812069 | VU7: 6356.77716 | VV7: -2203.04645 | VW7: 461.9029294 | VX7: -1346.008924 | VY7: 8478.830326 | VZ7: 8240.939978 | WA7: 1865.634485 | WB7: 8791.186674 | WC7: 418.4751445 | WD7: -1902.600229 | WE7: 8291.832661 | WF7: 14973.33257 | WG7: 2715.724428 | WH7: 1779.9992 | WI7: 4344.976975 | WJ7: 5364.173072 | WK7: -5760.144522 | WL7: 4055.108104 | WM7: -2411.500869 | WN7: 11615.48068 | WO7: 3318.916195 | WP7: 3315.984143 | WQ7: -6299.162734 | WR7: 2711.552594 | WS7: 9154.923274 | WT7: 17915.62065 | WU7: -3053.65774 | WV7: -669.7120564 | WW7: 3813.975799 | WX7: 6872.704125 | WY7: -1490.265936 | WZ7: 2860.992403 | XA7: 5037.739123 | XB7: 2625.488318 | XC7: 11759.18422 | XD7: 6501.557013 | XE7: 2302.659699 | XF7: 5407.925473 | XG7: 3879.051336 | XH7: 13310.64341 | XI7: 6047.567315 | XJ7: 4348.872444 | XK7: 3593.906636 | XL7: 368.9684301 | XM7: 10892.84801 | XN7: 212.4883177 | XO7: -934.9432561 | XP7: 3457.185059 | XQ7: 11458.97676 | XR7: 8884.179062 | XS7: 10970.30955 | XT7: 6051.067938 | XU7: 11218.2893 | XV7: 4428.368492 | XW7: 2568.649505 | XX7: 7735.557048 | XY7: 5057.988889 | XZ7: 1624.089831 | YA7: -3590.451959 | YB7: 13094.58258 | YC7: 1887.24357 | YD7: 19601.35516 | YE7: -6792.454453 | YF7: 4863.443572 | YG7: -65.70382777 | YH7: -172.3976101 | YI7: 1633.574339 | YJ7: 13655.3905 | YK7: 1430.619923 | YL7: 14929.94862 | YM7: 1838.453668 | YN7: -502.1001774 | YO7: 13100.36099 | YP7: -2797.084348 | YQ7: 2258.444326 | YR7: -2730.270585 | YS7: 11209.11031 | YT7: 8427.347717 | YU7: 11476.34587 | YV7: 5683.730441 | YW7: -1969.952428 | YX7: 5860.816887 | YY7: -3976.397961 | YZ7: 3396.214999 | ZA7: 284.5708764 | ZB7: 7127.92585 | ZC7: 10228.05648 | ZD7: 7726.726452 | ZE7: -6410.525946 | ZF7: 5085.520794 | ZG7: 2930.058651 | ZH7: 10023.36798 | ZI7: 10034.06691 | ZJ7: -3537.048794 | ZK7: -4757.434932 | ZL7: 3635.685045 | ZM7: -1552.072058 | ZN7: 15550.9348 | ZO7: -7033.080579 | ZP7: 845.6084768 | ZQ7: -1825.907164 | ZR7: 18534.8321 | ZS7: 10958.09403 | ZT7: -5719.965532 | ZU7: 3076.951187 | ZV7: -535.5290088 | ZW7: -952.9672726 | ZX7: 2592.19828 | ZY7: 1177.500029 | ZZ7: 2774.047395 | AAA7: 9336.96069 | AAB7: 811.2871126 | AAC7: 2080.975182 | AAD7: 9488.47627 | AAE7: -455.1479314 | AAF7: 7217.551344 | AAG7: 7074.228514 | AAH7: 17806.6814 | AAI7: -659.3100841 | AAJ7: 3948.212138 | AAK7: 789.1000962 | AAL7: 15723.52793 | AAM7: 5734.425348 | AAN7: 7559.639422 | AAO7: 441.540677 | AAP7: 9377.543969 | AAQ7: 6475.716075 | AAR7: 5317.063783 | AAS7: 4280.172465 | AAT7: 250.1867421 | AAU7: 3564.902801 | AAV7: 10965.08212 | AAW7: 5167.644456 | AAX7: 7769.647979 | AAY7: 7548.143271 | AAZ7: 7203.983316 | ABA7: 6078.750116 | ABB7: 5955.771504 | ABC7: 238.0741173 | ABD7: 4053.240734 | ABE7: 5079.348323 | ABF7: -2780.770819 | ABG7: 2143.4408 | ABH7: -9562.21611 | ABI7: 16107.57998 | ABJ7: 1608.39423 | ABK7: 17762.96815 | ABL7: 552.6543667 | ABM7: 6024.957568 | ABN7: 17624.90008 | ABO7: 6827.459046 | ABP7: 11017.09234 | ABQ7: -8048.714246 | ABR7: -2149.419258 | ABS7: 16929.09496 | ABT7: -2012.389374 | ABU7: -3347.401536 | ABV7: 3248.107129 | ABW7: -1223.865723 | ABX7: 2950.527803 | ABY7: 1854.631085 | ABZ7: 14353.69959 | ACA7: 11019.22692 | ACB7: 3169.73939 | ACC7: 1539.832289 | ACD7: 6279.183201 | ACE7: -4485.48887 | ACF7: 3269.047449 | ACG7: 1046.258742 | ACH7: 5502.973543 | ACI7: 7306.862831 | ACJ7: 5520.204796 | ACK7: 3787.672629 | ACL7: 13185.90502 | ACM7: 16779.31738 | ACN7: -5181.400278 | ACO7: 10371.1587 | ACP7: 9309.240066 | ACQ7: 7721.13545 | ACR7: 3363.291812 | ACS7: 14589.61779 | ACT7: 3241.644026 | ACU7: -1640.68008 | ACV7: -8276.347811 | ACW7: 5796.07603 | ACX7: 7539.842743 | ACY7: 16584.17761 | ACZ7: 9145.326822 | ADA7: -1080.94117 | ADB7: 3592.119644 | ADC7: 3510.863206 | ADD7: 17605.79121 | ADE7: 4205.710192 | ADF7: -976.3387942 | ADG7: 6026.888758 | ADH7: 825.5898718 | ADI7: -895.9575576 | ADJ7: 3965.754465 | ADK7: -2510.034384 | ADL7: 5722.412898 | ADM7: 2419.77533 | ADN7: 8379.208686 | ADO7: -2355.11693 | ADP7: -8280.542276 | ADQ7: 4482.895138 | ADR7: 12116.59293 | ADS7: 2341.713787 | ADT7: 1551.161565 | ADU7: 12987.91492 | ADV7: 15842.53819 | ADW7: 7157.770575 | ADX7: 10921.04826 | ADY7: 13254.39754 | ADZ7: 11751.6245 | AEA7: -1017.355028 | AEB7: -12739.21501 | AEC7: 12539.39214 | AED7: 7155.796768 | AEE7: 101.7468006 | AEF7: 2815.257194 | AEG7: 6166.399606 | AEH7: 1995.585248 | AEI7: 7909.010703 | AEJ7: -2531.293922 | AEK7: 14055.25425 | AEL7: -6481.33355 | AEM7: 5671.940956 | AEN7: 12501.27918 | AEO7: 10211.79882 | AEP7: -12598.73227 | AEQ7: -4118.404081 | AER7: 3879.873681 | AES7: -3001.428948 | AET7: 5125.62822 | AEU7: 20583.01909 | AEV7: 9322.903064 | AEW7: 9936.499023 | AEX7: -4143.785096 | AEY7: -9.253862429 | AEZ7: 3161.047218 | AFA7: 2635.838829 | AFB7: 5769.885509 | AFC7: 13577.12917 | AFD7: -6520.083999 | AFE7: 15361.03158 | AFF7: 6218.053962 | AFG7: -30.71645357 | AFH7: 10406.27829 | AFI7: 16887.96203 | AFJ7: -2058.642872 | AFK7: 3754.194034 | AFL7: 8801.882762 | AFM7: 1605.838225 | AFN7: -2879.544956 | AFO7: -1006.756775 | AFP7: -6597.697453 | AFQ7: 1429.658027 | AFR7: -3374.617345 | AFS7: -6343.836383 | AFT7: 15464.29118 | AFU7: 5182.415503 | AFV7: 595.7652512 | AFW7: 1908.147901 | AFX7: 10361.81389 | AFY7: -4526.913256 | AFZ7: 1679.663652 | AGA7: -8307.463303 | AGB7: -3351.021785 | AGC7: -2239.580643 | AGD7: 7649.647403 | AGE7: -7614.756886 | AGF7: 724.0464767 | AGG7: 15679.84038 | AGH7: 5345.806224 | AGI7: 12647.58691 | AGJ7: 5556.581855 | AGK7: -3221.78057 | AGL7: 19978.81552 | AGM7: 1786.590938 | AGN7: 254.124109 | AGO7: 5620.266602 | AGP7: 12993.2993 | AGQ7: 14750.87711 | AGR7: 5822.417295 | AGS7: 3658.5096 | AGT7: 6574.658022 | AGU7: 488.2956965 | AGV7: -4486.137333 | AGW7: 10164.82089 | AGX7: 10337.84905 | AGY7: 8383.258061 | AGZ7: 11448.51566 | AHA7: -1784.884442 | AHB7: 14353.99806 | AHC7: 5548.473133 | AHD7: -5018.090158 | AHE7: 5647.853801 | AHF7: 3733.639323 | AHG7: -4590.578686 | AHH7: 1411.71913 | AHI7: 8447.899386 | AHJ7: 7638.686344 | AHK7: 16685.68387 | AHL7: -12019.29371 | AHM7: 15095.00866 | AHN7: -1230.654058 | AHO7: 4588.858404 | AHP7: 1803.820634 | AHQ7: 1591.651989 | AHR7: 18677.85056 | AHS7: -2146.230693 | AHT7: 8999.635572 | AHU7: -7114.263189 | AHV7: 15292.12827 | AHW7: -11297.57778 | AHX7: -6838.88889 | AHY7: -3336.918865 | AHZ7: -808.1123959 | AIA7: 4752.577893 | AIB7: 16264.51481 | AIC7: -13548.66733 | AID7: 12080.39413 | AIE7: 7577.951621 | AIF7: 13146.44488 | AIG7: -5722.603874 | AIH7: 15045.37879 | AII7: 6911.852008 | AIJ7: 7097.811694 | AIK7: 12566.94295 | AIL7: 5835.479848 | AIM7: -1209.133704 | AIN7: 6555.618408 | AIO7: 4861.99732 | AIP7: 8817.728903 | AIQ7: -149.8836747 | AIR7: -867.0975231 | AIS7: 3788.402286 | AIT7: 2386.904861 | AIU7: 2514.433675 | AIV7: 10636.24314 | AIW7: 1924.818806 | AIX7: 6090.903071 | AIY7: 12553.21528 | AIZ7: 1423.899115 | AJA7: -11668.43883 | AJB7: 4107.900595 | AJC7: 7040.016617 | AJD7: -4951.481462 | AJE7: 1259.345632 | AJF7: -1539.369958 | AJG7: 2614.404673 | AJH7: 3597.902653 | AJI7: 4139.990307 | AJJ7: -579.1892722 | AJK7: 1103.691608 | AJL7: 15995.96293 | AJM7: -1513.482138 | AJN7: 1456.302849 | AJO7: 10982.8319 | AJP7: -1575.581453 | AJQ7: 637.7723899 | AJR7: -26.04464573 | AJS7: -665.8413287 | AJT7: 14081.10537 | AJU7: 16735.13313 | AJV7: -224.6769735 | AJW7: 5341.664678 | AJX7: -207.5795573 | AJY7: 43.06164903 | AJZ7: 1476.603394 | AKA7: 5621.012833 | AKB7: 11042.5373 | AKC7: 16870.58416 | AKD7: 3359.872894 | AKE7: 4369.77761 | AKF7: 9794.153144 | AKG7: -7693.665663 | AKH7: 913.1183948 | AKI7: 1590.2157 | AKJ7: 7073.642826 | AKK7: -8.268524409 | AKL7: -2354.799567 | AKM7: -10510.81791 | AKN7: -1980.345249 | AKO7: -1911.296149 | AKP7: 16902.22184 | AKQ7: 12142.55799 | AKR7: 15837.01681 | AKS7: 9886.907797 | AKT7: 7082.651085 | AKU7: 4725.338278 | AKV7: 793.1072319 | AKW7: 6687.464925 | AKX7: 3044.150803 | AKY7: 7450.454022 | AKZ7: 10351.00461 | ALA7: 13137.96604 | ALB7: 6660.176708 | ALC7: 986.1331725 | ALD7: 6589.114304 | ALE7: 7803.033131 | ALF7: 59.11407468 | ALG7: 3532.181925 | ALH7: 5970.165587 | ALI7: 7663.082192 | ALJ7: 10997.46903 | ALK7: 5344.039877 | ALL7: 1081.391711 | ALM7: -4.075317342 | ALN7: 8883.089851 | ALO7: 19849.36235 | ALP7: -8684.49633 | ALQ7: 5518.91874 | ALR7: 8518.475839 | ALS7: -1920.200673 | ALT7: -4998.048818 | ALU7: 2343.879119 | ALV7: 6603.98037 | ALW7: 21197.84473 | ALX7: 9003.032595 | ALY7: 12526.8182 | ALZ7: -2394.80069 | AMA7: 9866.249591 | AMB7: 6773.585522 | AMC7: 5652.124079 | AMD7: -767.8646563 | AME7: 1012.707689 | AMF7: 8470.126575 | AMG7: 1432.065339 | AMH7: 1014.17416 | AMI7: -4713.868238 | AMK7: 1 | AML7: 50 | AMM7: 100 | AMN7: 150 | AMO7: 200 | AMP7: 250 | AMQ7: 300 | AMR7: 350 | AMS7: 400 | AMT7: 450 | AMU7: 500 | AMV7: 550 | AMW7: 600 | AMX7: 650 | AMY7: 700 | AMZ7: 750 | ANA7: 800 | ANB7: 850 | ANC7: 900 | AND7: 950 | ANE7: 1000
A8: VarID | B8: Variable Name | C8: Short Name | D8: Simulated Value | E8: Shape | F8: Lower Bound | G8: Mode or P | H8: Upper Bound | I8: Notes | J8: EVPI Estimate | K8: Mean | L8: Uniform PRNG | M8: P(X<T) | N8: P(X>T) | O8: EOL(X<T) | P8: EOL(X>T) | Q8: Threshold Estimate | S8: Normal | V8: RRA | W8: =(((W7/'Risk Tolerance Table'!$C$3)+'Risk Tolerance Table'!$F$10)^(1-'Risk Tolerance Table'!$F$9)-1)/(1-'Risk Tolerance Table'!$F$9) -> 0.8269827409 | X8: 1.155943977 | Y8: 1.054038264 | Z8: 0.4569771893 | AA8: 1.335863076 | AB8: 1.253995257 | AC8: 1.469146785 | AD8: 0.8120900275 | AE8: 1.315139783 | AF8: 0.4158289507 | AG8: 1.447898967 | AH8: 0.08291604954 | AI8: 1.101621656 | AJ8: 0.9538562613 | AK8: 0.807473114 | AL8: 0.5175115995 | AM8: 1.765653331 | AN8: 1.572002461 | AO8: 1.128610938 | AP8: 0.8153221826 | AQ8: 0.9992663589 | AR8: 1.437104171 | AS8: 0.9007719152 | AT8: 0.9358253932 | AU8: 1.041647156 | AV8: 1.546794491 | AW8: 1.286031792 | AX8: 0.9368195166 | AY8: 0.9876325579 | AZ8: 0.5159033831 | BA8: 1.173425921 | BB8: 0.8721828338 | BC8: 0.5590566761 | BD8: 0.743052802 | BE8: 1.225874699 | BF8: 0.666850688 | BG8: 0.3770051119 | BH8: 1.28304592 | BI8: 0.5768175015 | BJ8: 0.9254025828 | BK8: 0.306018073 | BL8: 1.333570194 | BM8: 0.9833213559 | BN8: 0.9445429688 | BO8: 0.7431090744 | BP8: 0.9333368248 | BQ8: 0.8964998343 | BR8: 0.5835922537 | BS8: 1.063853043 | BT8: 1.039711316 | BU8: 1.12992816 | BV8: 1.924690306 | BW8: 1.047806097 | BX8: 0.844927243 | BY8: 1.159725932 | BZ8: 1.29037515 | CA8: 0.9516728376 | CB8: 1.043569292 | CC8: 0.7957085794 | CD8: 1.448399866 | CE8: 1.027907322 | CF8: 1.222706516 | CG8: 0.8169697984 | CH8: 0.6672920887 | CI8: 0.2820705312 | CJ8: 0.5903234337 | CK8: 1.248793264 | CL8: 0.5456293709 | CM8: 0.9237136203 | CN8: 1.392795704 | CO8: 1.447131493 | CP8: 0.9792674733 | CQ8: 0.8464381234 | CR8: 1.548953162 | CS8: 0.9594183182 | CT8: 1.720935038 | CU8: 0.9098842977 | CV8: 1.102692165 | CW8: 0.6222023734 | CX8: 1.261464272 | CY8: 1.137968905 | CZ8: 1.136645471 | DA8: 0.9579735526 | DB8: 0.890715225 | DC8: 1.508767976 | DD8: 1.106950941 | DE8: 1.72613397 | DF8: 0.9811187927 | DG8: 1.289363532 | DH8: 1.623463235 | DI8: 0.3015547306 | DJ8: -0.006572188388 | DK8: 1.603580981 | DL8: 1.47054769 | DM8: 1.058337521 | DN8: 1.087340629 | DO8: 1.569670321 | DP8: 0.460016248 | DQ8: 0.6497767505 | DR8: 0.4370094592 | DS8: 0.8970844687 | DT8: 0.9354174758 | DU8: 0.4789324998 | DV8: 0.4870712749 | DW8: 1.213938294 | DX8: 0.954040283 | DY8: 1.035469592 | DZ8: 1.073729047 | EA8: 0.9811981665 | EB8: 1.397446028 | EC8: 0.6637349015 | ED8: 0.882977814 | EE8: 0.9355888033 | EF8: 0.8594271437 | EG8: 1.058456797 | EH8: 1.806287936 | EI8: 1.134625096 | EJ8: 1.066812781 | EK8: 1.489927242 | EL8: 0.7394250223 | EM8: 1.155317734 | EN8: 1.120963328 | EO8: 1.510893801 | EP8: 1.027804048 | EQ8: 0.9168506929 | ER8: 1.047064595 | ES8: 1.040181919 | ET8: 0.7400060251 | EU8: 1.394702389 | EV8: 1.187040428 | EW8: 1.276201816 | EX8: 1.256881123 | EY8: 1.458220708 | EZ8: 0.8837071023 | FA8: 0.9639275215 | FB8: 0.7726939229 | FC8: 0.8197714901 | FD8: 0.8997969204 | FE8: 1.421301963 | FF8: 1.512956191 | FG8: 1.438420862 | FH8: 0.9242066273 | FI8: 1.292066497 | FJ8: 1.006730005 | FK8: 0.6879494368 | FL8: 1.184628555 | FM8: 1.251472737 | FN8: 1.118299722 | FO8: 0.8749769974 | FP8: 0.7675193596 | FQ8: 1.461883012 | FR8: 0.5492366206 | FS8: 1.517206794 | FT8: 0.9908091021 | FU8: 0.9627775381 | FV8: 1.3786143 | FW8: 0.9862972894 | FX8: 1.004405651 | FY8: 0.9095258263 | FZ8: 1.708051087 | GA8: 0.9285248435 | GB8: 1.053716314 | GC8: 1.557523475 | GD8: 0.1255210914 | GE8: 1.28187884 | GF8: 0.6339807925 | GG8: 1.05882687 | GH8: 0.5975822901 | GI8: 1.879796597 | GJ8: 1.217160265 | GK8: 1.084248589 | GL8: 0.8160137389 | GM8: 1.083426036 | GN8: 0.858251073 | GO8: 0.9173714989 | GP8: 1.318291875 | GQ8: 1.227853385 | GR8: 0.8657371868 | GS8: 1.172693637 | GT8: 1.040862411 | GU8: 0.7728915926 | GV8: 1.573054741 | GW8: 0.5319115157 | GX8: 1.426906265 | GY8: 0.8329533547 | GZ8: 1.371371177 | HA8: 1.545645222 | HB8: 0.8063619693 | HC8: 1.152767882 | HD8: 1.097450856 | HE8: 0.7719500407 | HF8: 1.244786974 | HG8: 1.503307569 | HH8: 0.09872085611 | HI8: 0.8371089657 | HJ8: 0.9854707023 | HK8: 0.5567631883 | HL8: 0.9721927796 | HM8: 1.01584492 | HN8: 1.140618219 | HO8: 0.9522066287 | HP8: 0.9814530007 | HQ8: 1.354742048 | HR8: 1.00272737 | HS8: 1.533259874 | HT8: 1.210498042 | HU8: 0.4486131063 | HV8: 1.169656031 | HW8: 0.8791003215 | HX8: 1.292274441 | HY8: 1.245955324 | HZ8: 1.38119652 | IA8: 1.256536955 | IB8: 1.005669591 | IC8: 1.075176764 | ID8: 1.231349682 | IE8: 1.416197612 | IF8: 1.085607201 | IG8: 1.039268605 | IH8: 0.9825349475 | II8: 1.732363909 | IJ8: 1.219603077 | IK8: 0.3921814049 | IL8: 1.008729134 | IM8: 1.30788218 | IN8: 0.7195407862 | IO8: 0.4245165021 | IP8: 1.120069229 | IQ8: 1.091345416 | IR8: 1.055854432 | IS8: 0.8096646197 | IT8: 1.756540942 | IU8: 0.9496300926 | IV8: 2.043467359 | IW8: 0.7825953166 | IX8: 0.870775408 | IY8: 1.543293239 | IZ8: 1.176935684 | JA8: 1.444506052 | JB8: 0.4538768295 | JC8: 1.070819294 | JD8: 0.6722461503 | JE8: 1.474050185 | JF8: 1.572924432 | JG8: 1.462574903 | JH8: 0.7844571283 | JI8: 1.369682797 | JJ8: 1.157722577 | JK8: 1.204127236 | JL8: 1.467233576 | JM8: 0.7902141129 | JN8: 1.319113364 | JO8: 1.256093452 | JP8: 1.577220379 | JQ8: 0.9577660933 | JR8: 0.8267936985 | JS8: 0.07705519086 | JT8: 0.8269827409 | JU8: 1.340955975 | JV8: 1.256840204 | JW8: 1.016645948 | JX8: 1.079827889 | JY8: 1.105414651 | JZ8: 1.004502774 | KA8: 1.651854261 | KB8: 1.284048507 | KC8: 1.236930336 | KD8: 0.8613302445 | KE8: 0.4277340389 | KF8: 1.636009235 | KG8: 1.270342168 | KH8: 0.868726955 | KI8: 1.167592098 | KJ8: 0.996985462 | KK8: 1.436775901 | KL8: 1.483843397 | KM8: 0.8809588909 | KN8: 1.257228472 | KO8: 0.8971635876 | KP8: 0.6879848985 | KQ8: 1.42046983 | KR8: 0.8213968446 | KS8: 1.14081048 | KT8: 0.9346354079 | KU8: 0.9027097379 | KV8: 1.670860211 | KW8: 0.6854699906 | KX8: 0.4966759812 | KY8: 1.274133643 | KZ8: 1.329338411 | LA8: 1.028657191 | LB8: 0.8400220797 | LC8: 0.8785642946 | LD8: 1.471421309 | LE8: 1.140371598 | LF8: 0.8796464741 | LG8: 1.058209003 | LH8: 1.610979994 | LI8: 0.9829502257 | LJ8: 0.9419262218 | LK8: 1.023237238 | LL8: 1.010900529 | LM8: 1.154563265 | LN8: 0.8173649839 | LO8: 0.5937445156 | LP8: 0.9673932805 | LQ8: 1.384478908 | LR8: 1.195491888 | LS8: 1.506318152 | LT8: 0.9085852497 | LU8: 1.267201245 | LV8: 1.831179908 | LW8: 1.395109904 | LX8: 0.8211102405 | LY8: 1.52700186 | LZ8: 0.7749823336 | MA8: 0.9340470288 | MB8: 1.467492666 | MC8: 1.334699561 | MD8: 0.8300698741 | ME8: 0.9236628594 | MF8: 1.054210054 | MG8: 1.478298654 | MH8: 1.26480164 | MI8: 1.055047061 | MJ8: 1.409369662 | MK8: 1.437874268 | ML8: 0.7143023878 | MM8: 1.049392098 | MN8: 0.7818466062 | MO8: 1.166305404 | MP8: 0.4595717293 | MQ8: 1.115028228 | MR8: 0.03370702806 | MS8: 0.9097251472 | MT8: 1.066588497 | MU8: 1.605784147 | MV8: 1.365703906 | MW8: 0.7008459231 | MX8: 0.9352161405 | MY8: 1.63952891 | MZ8: 0.986438581 | NA8: 1.715974198 | NB8: 0.7565934429 | NC8: 1.156920785 | ND8: 1.098844281 | NE8: 1.693773647 | NF8: 1.581111173 | NG8: 0.8746264739 | NH8: 1.24282325 | NI8: 1.054889479 | NJ8: 0.5979826706 | NK8: 1.407921712 | NL8: 1.448963226 | NM8: 1.153130383 | NN8: 1.306311873 | NO8: 0.9715285366 | NP8: 1.216545632 | NQ8: 1.415348958 | NR8: 0.852654097 | NS8: 1.154777147 | NT8: 0.9875095377 | NU8: 0.4945396599 | NV8: 0.7419664911 | NW8: 1.216954992 | NX8: 0.4831855509 | NY8: 0.9251121262 | NZ8: 0.07219253416 | OA8: 1.320254066 | OB8: 1.170204592 | OC8: 1.550839078 | OD8: 0.6065606457 | OE8: 2.170921696 | OF8: 0.8848561074 | OG8: -0.1683184139 | OH8: 1.516743436 | OI8: 1.292526714 | OJ8: 1.640994631 | OK8: 1.251730504 | OL8: 1.032320086 | OM8: 1.245613152 | ON8: 0.9507610305 | OO8: 0.9490953557 | OP8: 1.278402444 | OQ8: 1.145378048 | OR8: 0.6411859177 | OS8: 0.8756430476 | OT8: 0.6015826488 | OU8: 1.423761351 | OV8: 1.04227369 | OW8: 0.9912336814 | OX8: 1.311147139 | OY8: 1.229218529 | OZ8: 0.7354844696 | PA8: 1.463329668 | PB8: 1.49827122 | PC8: 0.7832547371 | PD8: 1.704456276 | PE8: 1.621651419 | PF8: 0.5269688514 | PG8: 1.08830676 | PH8: 1.170252535 | PI8: 0.473195027 | PJ8: 1.068013092 | PK8: 1.391751914 | PL8: 1.609477622 | PM8: 1.290905059 | PN8: -0.2835272817 | PO8: 1.180960244 | PP8: 1.132511056 | PQ8: 0.8095312982 | PR8: 1.554712544 | PS8: 0.7250768435 | PT8: 0.8167135164 | PU8: 1.472954325 | PV8: 1.307593959 | PW8: 1.258977373 | PX8: 1.312320853 | PY8: 1.249751835 | PZ8: 1.047192048 | QA8: 1.326021281 | QB8: 0.8528560168 | QC8: 1.277361858 | QD8: 0.9106460987 | QE8: 1.409334161 | QF8: 1.124467385 | QG8: 1.423494246 | QH8: 1.318262146 | QI8: 1.531525451 | QJ8: 1.105814741 | QK8: 1.280524991 | QL8: 0.5646669815 | QM8: 1.536005947 | QN8: 0.5819266709 | QO8: 1.101319035 | QP8: 1.335151022 | QQ8: 1.741811351 | QR8: 1.199278502 | QS8: 1.049935014 | QT8: 1.031979758 | QU8: 0.8133029873 | QV8: 0.8565575236 | QW8: 1.078339318 | QX8: 1.275118287 | QY8: 1.555583918 | QZ8: 0.6562112198 | RA8: 1.370068882 | RB8: 0.8872368137 | RC8: 1.049865009 | RD8: 1.075852547 | RE8: 1.259347505 | RF8: 1.760656726 | RG8: 0.6905104967 | RH8: 0.9910197028 | RI8: 0.8951013623 | RJ8: 1.179075734 | RK8: 1.083481464 | RL8: 0.6451626112 | RM8: 1.197287125 | RN8: 1.164715697 | RO8: 1.207379245 | RP8: 0.6898766101 | RQ8: 1.028639092 | RR8: 1.836746002 | RS8: 1.108291662 | RT8: 1.30670804 | RU8: 0.6791196031 | RV8: 1.232172293 | RW8: 0.06785817945 | RX8: 1.069632576 | RY8: 0.9426177192 | RZ8: 1.214735417 | SA8: 1.664339186 | SB8: 1.118958212 | SC8: 0.9763320139 | SD8: 1.224145298 | SE8: 1.645417492 | SF8: 1.855849203 | SG8: 1.342542763 | SH8: 1.522974966 | SI8: 0.9150978608 | SJ8: 1.056512283 | SK8: 1.650114912 | SL8: 1.357894221 | SM8: 0.92240074 | SN8: 0.8306166008 | SO8: 1.66177642 | SP8: 0.9697853223 | SQ8: 1.302312633 | SR8: 0.7922187614 | SS8: 1.399303934 | ST8: 1.497850189 | SU8: 1.214808257 | SV8: 0.9163911448 | SW8: 1.567008862 | SX8: 1.008041849 | SY8: 0.6870824918 | SZ8: 1.038218572 | TA8: 0.8556661929 | TB8: 0.7207796469 | TC8: 0.6711399173 | TD8: 1.189455776 | TE8: 0.7537616317 | TF8: 0.8492818582 | TG8: 0.9968327562 | TH8: 1.13080564 | TI8: 1.22716409 | TJ8: 1.101185499 | TK8: 1.340877578 | TL8: 1.956264015 | TM8: 0.7239769895 | TN8: 1.010433195 | TO8: 1.229596976 | TP8: 0.9506130207 | TQ8: 1.427974494 | TR8: 1.371236029 | TS8: 0.6526061651 | TT8: 0.9589404954 | TU8: 1.117471344 | TV8: 0.6187655148 | TW8: 0.9322773248 | TX8: 1.009956148 | TY8: 1.275456367 | TZ8: 1.035209749 | UA8: 1.107701115 | UB8: 1.378074294 | UC8: 1.209480422 | UD8: 0.913593016 | UE8: 1.465850052 | UF8: 0.5980395242 | UG8: 1.248966899 | UH8: 1.608887407 | UI8: 0.8051055039 | UJ8: 1.533394512 | UK8: 1.117399266 | UL8: 0.3072833494 | UM8: 0.6886479938 | UN8: 1.163112446 | UO8: 1.054402339 | UP8: 1.297589108 | UQ8: 0.9845602517 | UR8: 1.106231583 | US8: 1.235906156 | UT8: 1.641286181 | UU8: 0.8256393089 | UV8: 1.031884367 | UW8: 1.31475594 | UX8: 0.8496757973 | UY8: 0.9853256749 | UZ8: 1.31232798 | VA8: 1.507522175 | VB8: 1.338053038 | VC8: 1.911864533 | VD8: 1.083825291 | VE8: 1.524823005 | VF8: 0.9730199602 | VG8: 1.574448127 | VH8: 1.39360441 | VI8: 1.225437217 | VJ8: 1.077967066 | VK8: 1.364923907 | VL8: 1.25881131 | VM8: 1.434979645 | VN8: 0.9262560629 | VO8: 1.413023265 | VP8: 1.571389329 | VQ8: 1.378951461 | VR8: 1.017882524 | VS8: 0.7572875405 | VT8: 0.8877605346 | VU8: 1.177459921 | VV8: 0.6957735035 | VW8: 0.859709429 | VX8: 0.7501656016 | VY8: 1.28009394 | VZ8: 1.26884945 | WA8: 0.9404123733 | WB8: 1.294762786 | WC8: 0.8571548661 | WD8: 0.7150341773 | WE8: 1.271260359 | WF8: 1.565297047 | WG8: 0.9876216772 | WH8: 0.9355893554 | WI8: 1.074908277 | WJ8: 1.12754265 | WK8: 0.4495261114 | WL8: 1.059670176 | WM8: 0.6822839229 | WN8: 1.422773496 | WO8: 1.020410077 | WP8: 1.020252072 | WQ8: 0.4088148873 | WR8: 0.9873928944 | WS8: 1.311710307 | WT8: 1.682755567 | WU8: 0.6400553423 | WV8: 0.7919332479 | WW8: 1.046900374 | WX8: 1.202909076 | WY8: 0.7411274073 | WZ8: 0.9955707484 | XA8: 1.110841133 | XB8: 0.9826668812 | XC8: 1.429077117 | XD8: 1.184634953 | XE8: 0.9648320435 | XF8: 1.129770224 | XG8: 1.050355097 | XH8: 1.495938167 | XI8: 1.162047101 | XJ8: 1.07511223 | XK8: 1.035170452 | XL8: 0.8542383214 | XM8: 1.390778542 | XN8: 0.8449887231 | XO8: 0.7756696756 | XP8: 1.027846224 | XQ8: 1.415886359 | XR8: 1.299109203 | XS8: 1.394232179 | XT8: 1.162222277 | XU8: 1.405249398 | XV8: 1.079269608 | XW8: 0.9795391429 | XX8: 1.244748304 | XY8: 1.111881407 | XZ8: 0.9267759806 | YA8: 0.6039411668 | YB8: 1.486754694 | YC8: 0.9416274205 | YD8: 1.747287741 | YE8: 0.3706368536 | YF8: 1.101863833 | YG8: 0.8284267738 | YH8: 0.8220342178 | YI8: 0.9273133338 | YJ8: 1.510508374 | YK8: 0.915780402 | YL8: 1.563515942 | YM8: 0.9388829008 | YN8: 0.8021349685 | YO8: 1.487000826 | YP8: 0.6570518921 | YQ8: 0.962375983 | YR8: 0.6614505482 | YS8: 1.404842649 | YT8: 1.277665852 | YU8: 1.416651845 | YV8: 1.143753548 | YW8: 0.7107348702 | YX8: 1.152678908 | YY8: 0.5774940626 | YZ8: 1.024570848 | ZA8: 0.8492554269 | ZB8: 1.215377379 | ZC8: 1.360895984 | ZD8: 1.24432457 | ZE8: 0.4002748069 | ZF8: 1.11329488 | ZG8: 0.9993382512 | ZH8: 1.351606143 | ZI8: 1.352092771 | ZJ8: 0.6075684131 | ZK8: 0.52266919 | ZL8: 1.037402885 | ZM8: 0.737240812 | ZN8: 1.588869052 | ZO8: 0.3516783503 | ZP8: 0.8821254583 | ZQ8: 0.7199169158 | ZR8: 1.706681736 | ZS8: 1.393687935 | ZT8: 0.4525203943 | ZU8: 1.007326025 | ZV8: 0.8001049639 | ZW8: 0.7745590556 | ZX8: 0.9808356259 | ZY8: 0.9012946145 | ZZ8: 0.9908171721 | AAA8: 1.320138587 | AAB8: 0.8801316169 | AAC8: 0.9524851731 | AAD8: 1.327126923 | AAE8: 0.8049823122 | AAF8: 1.219737161 | AAG8: 1.212760671 | AAH8: 1.678518835 | AAI8: 0.7925680649 | AAJ8: 1.054019815 | AAK8: 0.8788415379 | AAL8: 1.595862265 | AAM8: 1.146312829 | AAN8: 1.236289818 | AAO8: 0.8585121036 | AAP8: 1.322012781 | AAQ8: 1.183356252 | AAR8: 1.125141288 | AAS8: 1.071512138 | AAT8: 0.8472214206 | AAU8: 1.033619077 | AAV8: 1.393999296 | AAW8: 1.117504905 | AAX8: 1.246383296 | AAY8: 1.235735799 | AAZ8: 1.219077771 | ABA8: 1.163606974 | ABB8: 1.157447877 | ABC8: 0.8465043484 | ABD8: 1.059571614 | ABE8: 1.112978079 | ABF8: 0.6581269216 | ABG8: 0.955972557 | ABH8: 0.1371202973 | ABI8: 1.611341818 | ABJ8: 0.9258863881 | ABK8: 1.676816466 | ABL8: 0.8650361346 | ABM8: 1.160915299 | ABN8: 1.671430755 | ABO8: 1.200690446 | ABP8: 1.396315179 | ABQ8: 0.2690562526 | ABR8: 0.6992270006 | ABS8: 1.644083254 | ABT8: 0.7080205443 | ABU8: 0.6203875935 | ABV8: 1.016590547 | ABW8: 0.7577822745 | ABX8: 1.000453372 | ABY8: 0.9397933613 | ABZ8: 1.539715141 | ACA8: 1.39641017 | ACB8: 1.012354235 | ACC8: 0.9219954002 | ACD8: 1.173603624 | ACE8: 0.5419625324 | ACF8: 1.017720902 | ACG8: 0.8937384899 | ACH8: 1.134600591 | ACI8: 1.224072095 | ACJ8: 1.135474996 | ACK8: 1.045502205 | ACL8: 1.490641199 | ACM8: 1.638150911 | ACN8: 0.4921373822 | ACO8: 1.367365583 | ACP8: 1.318857405 | ACQ8: 1.244056241 | ACR8: 1.022799811 | ACS8: 1.54949166 | ACT8: 1.016241533 | ACU8: 0.7316537951 | ACV8: 0.2499238797 | ACW8: 1.149420655 | ACX8: 1.235335686 | ACY8: 1.63039728 | ACZ8: 1.311265013 | ADA8: 0.7666533992 | ADB8: 1.035074905 | ADC8: 1.030725171 | ADD8: 1.670684309 | ADE8: 1.067602388 | ADF8: 0.7731178934 | ADG8: 1.161011997 | ADH8: 0.8809627765 | ADI8: 0.778069559 | ADJ8: 1.05494823 | ADK8: 0.6758709314 | ADL8: 1.145706698 | ADM8: 0.9713219126 | ADN8: 1.275392782 | ADO8: 0.6859430026 | ADP8: 0.2495691127 | ADQ8: 1.082115944 | ADR8: 1.444672017 | ADS8: 0.9669987114 | ADT8: 0.9226389202 | ADU8: 1.482205945 | ADV8: 1.600671071 | ADW8: 1.216830231 | ADX8: 1.39203653 | ADY8: 1.493551369 | ADZ8: 1.428745987 | AEA8: 0.7705858703 | AEB8: -0.1856180017 | AEC8: 1.462969651 | AED8: 1.216734179 | AEE8: 0.838414025 | AEF8: 0.9930717557 | AEG8: 1.167984827 | AEH8: 0.9477073112 | AEI8: 1.253053115 | AEJ8: 0.6744841508 | AEK8: 1.527282233 | AEL8: 0.3948211913 | AEM8: 1.143157883 | AEN8: 1.461326826 | AEO8: 1.360159678 | AEP8: -0.1696664561 | AEQ8: 0.5676580699 | AER8: 1.050398714 | AES8: 0.6435288471 | AET8: 1.115352116 | AEU8: 1.784012092 | AEV8: 1.319488978 | AEW8: 1.347650681 | AEX8: 0.5658940069 | AEY8: 0.8317998069 | AEZ8: 1.011883776 | AFA8: 0.9832358876 | AFB8: 1.148100993 | AFC8: 1.507209658 | AFD8: 0.3918287859 | AFE8: 1.581147864 | AFF8: 1.17056022 | AFG8: 0.8305181054 | AFH8: 1.368950188 | AFI8: 1.6424557 | AFJ8: 0.7050572949 | AFK8: 1.043721126 | AFL8: 1.295263196 | AFM8: 0.9257414785 | AFN8: 0.6516076181 | AFO8: 0.7712404702 | AFP8: 0.3858184867 | AFQ8: 0.9157255695 | AFR8: 0.6185538523 | AFS8: 0.4053944359 | AFT8: 1.58534972 | AFU8: 1.118261159 | AFV8: 0.8675610856 | AFW8: 0.9428020811 | AFX8: 1.366943735 | AFY8: 0.5390380023 | AFZ8: 0.9299223366 | AGA8: 0.2472901985 | AGB8: 0.6201437826 | AGC8: 0.6934168378 | AGD8: 1.240622104 | AGE8: 0.3048913571 | AGF8: 0.8750536752 | AGG8: 1.594094277 | AGH8: 1.126606768 | AGI8: 1.467626223 | AGJ8: 1.137319665 | AGK8: 0.628826258 | AGL8: 1.761480993 | AGM8: 0.9359610527 | AGN8: 0.8474544531 | AGO8: 1.140544868 | AGP8: 1.482435794 | AGQ8: 1.556148377 | AGR8: 1.150747008 | AGS8: 1.038621405 | AGT8: 1.188247728 | AGU8: 0.8612601804 | AGV8: 0.5419167907 | AGW8: 1.358030554 | AGX8: 1.365861502 | AGY8: 1.275584089 | AGZ8: 1.415425183 | AHA8: 0.7225230913 | AHB8: 1.539727538 | AHC8: 1.136908626 | AHD8: 0.5039647785 | AHE8: 1.141940308 | AHF8: 1.042626773 | AHG8: 0.5345332802 | AHH8: 0.91470267 | AHI8: 1.27863549 | AHJ8: 1.24009503 | AHK8: 1.634433989 | AHL8: -0.1057673482 | AHM8: 1.570284437 | AHN8: 0.7573598241 | AHO8: 1.087635218 | AHP8: 0.936932254 | AHQ8: 0.9249370004 | AHR8: 1.712170817 | AHS8: 0.6994321232 | AHT8: 1.304492508 | AHU8: 0.3452308718 | AHV8: 1.578339419 | AHW8: -0.03007111634 | AHX8: 0.3669958595 | AHY8: 0.6210933681 | AHZ8: 0.7834652919 | AIA8: 1.096131641 | AIB8: 1.617635138 | AIC8: -0.2814099748 | AID8: 1.443097892 | AIE8: 1.237171994 | AIF8: 1.488962739 | AIG8: 0.4523239437 | AIH8: 1.568251569 | AII8: 1.204826704 | AIJ8: 1.213910324 | AIK8: 1.464156395 | AIL8: 1.151404407 | AIM8: 0.7586987279 | AIN8: 1.1873074 | AIO8: 1.101789166 | AIP8: 1.296004318 | AIQ8: 0.8233850332 | AIR8: 0.7798440414 | AIS8: 1.045541004 | AIT8: 0.9695027054 | AIU8: 0.9765508485 | AIV8: 1.379295911 | AIW8: 0.9437383216 | AIX8: 1.164214569 | AIY8: 1.463565164 | AIZ8: 0.9153972508 | AJA8: -0.06845972918 | AJB8: 1.062454523 | AJC8: 1.211091685 | AJD8: 0.508764636 | AJE8: 0.9059910796 | AJF8: 0.7380402674 | AJG8: 0.9820573792 | AJH8: 1.035384093 | AJI8: 1.064144988 | AJJ8: 0.7974501664 | AJK8: 0.8970489871 | AJL8: 1.606854531 | AJM8: 0.7396684934 | AJN8: 0.9172438422 | AJO8: 1.394789943 | AJP8: 0.735760199 | AJQ8: 0.8700180205 | AJR8: 0.8307971738 | AJS8: 0.7921694991 | AJT8: 1.528362069 | AJU8: 1.636397751 | AJV8: 0.8188935811 | AJW8: 1.126395674 | AJX8: 0.8199212978 | AJY8: 0.8349201656 | AJZ8: 0.9183997648 | AKA8: 1.140582628 | AKB8: 1.397447225 | AKC8: 1.64176772 | AKD8: 1.022615802 | AKE8: 1.076206379 | AKF8: 1.341152412 | AKG8: 0.2984360304 | AKH8: 0.8860409817 | AKI8: 0.9248555312 | AKJ8: 1.212732111 | AKK8: 0.8318586274 | AKL8: 0.6859635763 | AKM8: 0.04810803734 | AKN8: 0.7100705206 | AKO8: 0.7144796826 | AKP8: 1.643020073 | AKQ8: 1.445800386 | AKR8: 1.60044821 | AKS8: 1.345389144 | AKT8: 1.213171339 | AKU8: 1.094720619 | AKV8: 0.8790746031 | AKW8: 1.193809781 | AKX8: 1.00554534 | AKY8: 1.231021711 | AKZ8: 1.366455668 | ALA8: 1.488601911 | ALB8: 1.192465757 | ALC8: 0.8902663469 | ALD8: 1.188961392 | ALE8: 1.247983134 | ALF8: 0.8358765303 | ALG8: 1.031867352 | ALH8: 1.15816978 | ALI8: 1.241267938 | ALJ8: 1.39544171 | ALK8: 1.12651674 | ALL8: 0.8957643066 | ALM8: 0.8321089224 | ALN8: 1.299058349 | ALO8: 1.756623587 | ALP8: 0.215014412 | ALQ8: 1.135409749 | ALR8: 1.281961742 | ALS8: 0.713911704 | ALT8: 0.5054104294 | ALU8: 0.9671187673 | ALV8: 1.189695015 | ALW8: 1.80670668 | ALX8: 1.30465068 | ALY8: 1.462427807 | ALZ8: 0.683368498 | AMA8: 1.344446311 | AMB8: 1.198045437 | AMC8: 1.142156221 | AMD8: 0.7859319832 | AME8: 0.8918017908 | AMF8: 1.27968365 | AMG8: 0.9158627942 | AMH8: 0.8918864842 | AMI8: 0.5257750908
A9: =ROW(Variables[[#This Row],[Variable Name]])-ROW(Variables[[#Headers],[Variable Name]]) -> 1 | B9: Percent reduction in labor cost | C9: Reduc | D9: =IF(COUNTA(Variables[[#This Row],[Lower Bound]], Variables[[#This Row],[Mode or P]], Variables[[#This Row],[Upper Bound]])=0, "", IF(Variables[[#This Row],[Shape]]="Constant",Variables[[#This Row],[Mode or P]],IF(Variables[[#This Row],[Shape]]="Lognorm",LOGINV(Variables[[#This Row],[Uniform PRNG]],((LN(Variables[[#This Row],[Lower Bound]]) + LN(Variables[[#This Row],[Upper Bound]]))/2),((LN(Variables[[#This Row],[Upper Bound]]) - LN(Variables[[#This Row],[Lower Bound]]))/3.28971)),IF(Variables[[#This Row],[Shape]]="Normal",NORMINV(Variables[[#This Row],[Uniform PRNG]],(Variables[[#This Row],[Upper Bound]]+Variables[[#This Row],[Lower Bound]])/2,(Variables[[#This Row],[Upper Bound]]-Variables[[#This Row],[Lower Bound]])/3.29),IF(Variables[[#This Row],[Shape]]="Uniform",(Variables[[#This Row],[Upper Bound]]-Variables[[#This Row],[Lower Bound]])*Variables[[#This Row],[Uniform PRNG]]+Variables[[#This Row],[Lower Bound]],IF(Variables[[#This Row],[Shape]]="Binary",IF(Variables[[#This Row],[Uniform PRNG]]<Variables[[#This Row],[Mode or P]],1,0),IF(Variables[[#This Row],[Shape]]="Triangular",IF(Variables[[#This Row],[Uniform PRNG]]<(Variables[[#This Row],[Mode or P]]-Variables[[#This Row],[Lower Bound]])/(Variables[[#This Row],[Upper Bound]]-Variables[[#This Row],[Lower Bound]]), 1, 0) * (Variables[[#This Row],[Lower Bound]] + SQRT(Variables[[#This Row],[Uniform PRNG]]*(Variables[[#This Row],[Upper Bound]]-Variables[[#This Row],[Lower Bound]])*(Variables[[#This Row],[Mode or P]]-Variables[[#This Row],[Lower Bound]]))) + IF(Variables[[#This Row],[Uniform PRNG]]>= (Variables[[#This Row],[Mode or P]]-Variables[[#This Row],[Lower Bound]])/(Variables[[#This Row],[Upper Bound]]-Variables[[#This Row],[Lower Bound]]), 1, 0) * (Variables[[#This Row],[Upper Bound]] - SQRT((1-Variables[[#This Row],[Uniform PRNG]]) * (Variables[[#This Row],[Upper Bound]] - Variables[[#This Row],[Lower Bound]]) * (Variables[[#This Row],[Upper Bound]] - Variables[[#This Row],[Mode or P]]))),""))))))) -> 0.03980378688 | E9: Triangular | F9: 0.02 | G9: 0.03 | H9: 0.1 | I9: CE, PM 2/15/2019 | J9: =IFERROR(IF(OR(MIN(Variables[[#This Row],[P(X<T)]], Variables[[#This Row],[P(X>T)]])<0.002,SIGN(Variables[[#This Row],[EOL(X<T)]])=SIGN(Variables[[#This Row],[EOL(X>T)]])),0,IFERROR(IF(B$38=1,IF(Variables[[#This Row],[EOL(X<T)]]<Variables[[#This Row],[EOL(X>T)]],-Variables[[#This Row],[EOL(X<T)]]*Variables[[#This Row],[P(X<T)]],-Variables[[#This Row],[EOL(X>T)]]*Variables[[#This Row],[P(X>T)]]),IF(Variables[[#This Row],[EOL(X<T)]]>Variables[[#This Row],[EOL(X>T)]],Variables[[#This Row],[EOL(X<T)]]*Variables[[#This Row],[P(X<T)]],Variables[[#This Row],[EOL(X>T)]]*Variables[[#This Row],[P(X>T)]])),"")),0) -> 160.3654311 | K9: =IF(Variables[[#This Row],[Shape]]="Constant",Variables[[#This Row],[Mode or P]],IF(Variables[[#This Row],[Shape]]="Lognorm",EXP((LN(Variables[[#This Row],[Upper Bound]])+LN(Variables[[#This Row],[Lower Bound]]))/2+((LN(Variables[[#This Row],[Upper Bound]])-LN(Variables[[#This Row],[Lower Bound]]))/3.29)^2/2),IF(Variables[[#This Row],[Shape]]="Normal",(Variables[[#This Row],[Lower Bound]]+Variables[[#This Row],[Upper Bound]])/2,IF(Variables[[#This Row],[Shape]]="Uniform",(Variables[[#This Row],[Lower Bound]]+Variables[[#This Row],[Upper Bound]])/2,IF(Variables[[#This Row],[Shape]]="Binary",Variables[[#This Row],[Mode or P]],IF(Variables[[#This Row],[Shape]]="Triangular",(Variables[[#This Row],[Lower Bound]]+Variables[[#This Row],[Mode or P]]+Variables[[#This Row],[Upper Bound]])/3,"")))))) -> 0.05 | L9: =IF(Variables[[#This Row],[Shape]]="","",(MOD((MOD(MOD(999999999999989,MOD(ScenarioNum*2499997+Variables[[#This Row],[VarID]]*1800451,7450589)*4658+7450581)*383,99991)*231109+MOD(MOD(999999999999989,MOD(ScenarioNum*2246527+Variables[[#This Row],[VarID]]*2399993,7450987)*7580+7560584)*547,231109))*43271,4294967296)+0.5)/4294967296) -> 0.3529314153 | M9: =IF(Variables[[#This Row],[Shape]]="Binary", 1-Variables[[#This Row],[Mode or P]], IF(Variables[[#This Row],[Shape]]<>"",COUNTIF(INDEX($X$9:$AMI$159, ROW(Variables[[#This Row],[Variable Name]])-ROW(Variables[[#Headers],[Variable Name]]), ),"<"&Variables[[#This Row],[Threshold Estimate]])/1000,"")) -> 0.183 | N9: =IF(Variables[[#This Row],[Shape]]<>"",1-Variables[[#This Row],[P(X<T)]],"") -> 0.817 | O9: =IFERROR(AVERAGEIFS(X$7:AMI$7,INDEX(X$9:$AMI$159, ROW(Variables[[#This Row],[Variable Name]])-ROW(Variables[[#Headers],[Variable Name]]), ),IF(Variables[[#This Row],[Shape]]="Binary","=0","<"&Variables[[#This Row],[Threshold Estimate]])),"") -> -876.313831 | P9: =IFERROR(AVERAGEIFS(X$7:AMI$7,INDEX($X$9:$AMI$159, ROW(Variables[[#This Row],[Variable Name]])-ROW(Variables[[#Headers],[Variable Name]]), ),IF(Variables[[#This Row],[Shape]]="Binary","=1",">"&Variables[[#This Row],[Threshold Estimate]])),"") -> 6142.494441 | Q9: =IFERROR(IF(Variables[[#This Row],[Shape]]="Binary",IF(B$38=1,IF(Variables[[#This Row],[EOL(X<T)]]<Variables[[#This Row],[EOL(X>T)]],0,1),IF(Variables[[#This Row],[EOL(X<T)]]<Variables[[#This Row],[EOL(X>T)]],1,0)), INDEX($AOF$9:$AOF$159, ROW(Variables[[#This Row],[Variable Name]])-ROW(Variables[[#Headers],[Variable Name]]))),"") -> 0.03295251184 | S9: Binary | U9: Sampled Variable Values | V9: =IFERROR(IF(ISBLANK(Variables[[#This Row],[Variable Name]]), "", Variables[[#This Row],[Variable Name]]), "") -> Percent reduction in labor cost | W9: =IFERROR(IF(ISBLANK(D9), "", D9), "") -> 0.03980378688 | X9: 0.05232606523 | Y9: 0.04310689731 | Z9: 0.02896090199 | AA9: 0.04803091802 | AB9: 0.042438643 | AC9: 0.08778890732 | AD9: 0.02605035977 | AE9: 0.06523035783 | AF9: 0.03757459442 | AG9: 0.06378525101 | AH9: 0.07080516832 | AI9: 0.03012243552 | AJ9: 0.03768594562 | AK9: 0.02999356447 | AL9: 0.0266698443 | AM9: 0.0909939095 | AN9: 0.06388106068 | AO9: 0.04513773393 | AP9: 0.06053589488 | AQ9: 0.05021725113 | AR9: 0.0695734177 | AS9: 0.04656252917 | AT9: 0.03859106617 | AU9: 0.05297182266 | AV9: 0.06809351817 | AW9: 0.06401730374 | AX9: 0.03865863834 | AY9: 0.05672751798 | AZ9: 0.03798931467 | BA9: 0.05510842826 | BB9: 0.02957328971 | BC9: 0.03106094007 | BD9: 0.02312731894 | BE9: 0.03847248749 | BF9: 0.04939787206 | BG9: 0.026853254 | BH9: 0.04662994098 | BI9: 0.03355143207 | BJ9: 0.04119025052 | BK9: 0.03230586926 | BL9: 0.0639919334 | BM9: 0.02923560548 | BN9: 0.06548477149 | BO9: 0.04555012747 | BP9: 0.04142357077 | BQ9: 0.03126436119 | BR9: 0.05141535324 | BS9: 0.05508593487 | BT9: 0.06700499926 | BU9: 0.0327340099 | BV9: 0.09180900234 | BW9: 0.03666449486 | BX9: 0.03096318945 | BY9: 0.04485729603 | BZ9: 0.05575610198 | CA9: 0.03492006295 | CB9: 0.04023885603 | CC9: 0.0315045587 | CD9: 0.09523173227 | CE9: 0.03197415616 | CF9: 0.05633029115 | CG9: 0.04407599186 | CH9: 0.0678447121 | CI9: 0.087344325 | CJ9: 0.02302040374 | CK9: 0.05790574377 | CL9: 0.03295406205 | CM9: 0.02552474074 | CN9: 0.06986947156 | CO9: 0.05404018003 | CP9: 0.04219442724 | CQ9: 0.04984091024 | CR9: 0.07441063421 | CS9: 0.04026722893 | CT9: 0.07388094697 | CU9: 0.03079483787 | CV9: 0.05195885161 | CW9: 0.03384105561 | CX9: 0.04553436361 | CY9: 0.05782083743 | CZ9: 0.06420853942 | DA9: 0.03615911163 | DB9: 0.0288049436 | DC9: 0.08089634482 | DD9: 0.05376171045 | DE9: 0.05596276999 | DF9: 0.02379190052 | DG9: 0.06360895446 | DH9: 0.07500938804 | DI9: 0.02815954593 | DJ9: 0.02469132747 | DK9: 0.07440847969 | DL9: 0.08843251163 | DM9: 0.026343636 | DN9: 0.05975273671 | DO9: 0.06506399282 | DP9: 0.07214872405 | DQ9: 0.03012591251 | DR9: 0.02195302016 | DS9: 0.04429285023 | DT9: 0.04006032721 | DU9: 0.02798844299 | DV9: 0.05085457526 | DW9: 0.05005573453 | DX9: 0.06661280021 | DY9: 0.03734546393 | DZ9: 0.05734800206 | EA9: 0.03541495368 | EB9: 0.08908280036 | EC9: 0.02702136711 | ED9: 0.0611880506 | EE9: 0.04297089113 | EF9: 0.02444897097 | EG9: 0.03797441178 | EH9: 0.0842761953 | EI9: 0.05037396243 | EJ9: 0.0412648274 | EK9: 0.06150472678 | EL9: 0.04019834895 | EM9: 0.08407286528 | EN9: 0.03903833196 | EO9: 0.06673627935 | EP9: 0.06410162162 | EQ9: 0.04667047192 | ER9: 0.03456986478 | ES9: 0.04514904197 | ET9: 0.05375515051 | EU9: 0.07117999556 | EV9: 0.06375439509 | EW9: 0.08121178061 | EX9: 0.03889236979 | EY9: 0.07185216069 | EZ9: 0.06438255839 | FA9: 0.04683713372 | FB9: 0.03164088638 | FC9: 0.02927319639 | FD9: 0.03396834357 | FE9: 0.06554559639 | FF9: 0.07833342691 | FG9: 0.07163238354 | FH9: 0.03193531306 | FI9: 0.06408666015 | FJ9: 0.0449462364 | FK9: 0.03499122479 | FL9: 0.04208559759 | FM9: 0.04142811331 | FN9: 0.04043211829 | FO9: 0.03534066774 | FP9: 0.02862778864 | FQ9: 0.05773135202 | FR9: 0.03740706558 | FS9: 0.05803055341 | FT9: 0.06323074429 | FU9: 0.04876554777 | FV9: 0.07619568299 | FW9: 0.04358566159 | FX9: 0.06792933161 | FY9: 0.04955185721 | FZ9: 0.08487062252 | GA9: 0.03370645462 | GB9: 0.03158395676 | GC9: 0.07175409709 | GD9: 0.03139961792 | GE9: 0.05762364087 | GF9: 0.04759983199 | GG9: 0.04834858549 | GH9: 0.023991071 | GI9: 0.07401445026 | GJ9: 0.05030308506 | GK9: 0.05401875397 | GL9: 0.02800103626 | GM9: 0.0605374801 | GN9: 0.02982848311 | GO9: 0.0264576182 | GP9: 0.08829138249 | GQ9: 0.05227579274 | GR9: 0.034996031 | GS9: 0.03987403068 | GT9: 0.04186090952 | GU9: 0.02477126078 | GV9: 0.04651275404 | GW9: 0.03406659141 | GX9: 0.06114510197 | GY9: 0.03929613469 | GZ9: 0.04929624883 | HA9: 0.0810145598 | HB9: 0.04000713885 | HC9: 0.05507358932 | HD9: 0.04959728549 | HE9: 0.03397218744 | HF9: 0.07089344274 | HG9: 0.08967962165 | HH9: 0.05157868935 | HI9: 0.03660273683 | HJ9: 0.02954162583 | HK9: 0.02401187563 | HL9: 0.02841349409 | HM9: 0.03666994542 | HN9: 0.05341859956 | HO9: 0.0325156573 | HP9: 0.03849328456 | HQ9: 0.0628749011 | HR9: 0.04992269704 | HS9: 0.07613091692 | HT9: 0.04002112106 | HU9: 0.02763842068 | HV9: 0.05413488199 | HW9: 0.03305031934 | HX9: 0.07536994911 | HY9: 0.07795022166 | HZ9: 0.05586041464 | IA9: 0.04758809628 | IB9: 0.04908876129 | IC9: 0.04966318101 | ID9: 0.06193999265 | IE9: 0.06436779706 | IF9: 0.05136027092 | IG9: 0.04734700616 | IH9: 0.05893172608 | II9: 0.08198085092 | IJ9: 0.04318329568 | IK9: 0.04145141072 | IL9: 0.04058892554 | IM9: 0.07118468028 | IN9: 0.02809989859 | IO9: 0.0374071324 | IP9: 0.04192426193 | IQ9: 0.06622964596 | IR9: 0.03313894754 | IS9: 0.02719244128 | IT9: 0.07516711905 | IU9: 0.03110308287 | IV9: 0.08225907771 | IW9: 0.02334600175 | IX9: 0.03392936962 | IY9: 0.07558506972 | IZ9: 0.05894611275 | JA9: 0.06307421938 | JB9: 0.03662674801 | JC9: 0.02933979898 | JD9: 0.03748737213 | JE9: 0.07212141396 | JF9: 0.06631716042 | JG9: 0.07875549703 | JH9: 0.03116656394 | JI9: 0.09145242835 | JJ9: 0.04434954689 | JK9: 0.06526079904 | JL9: 0.05862543741 | JM9: 0.03791263012 | JN9: 0.08022276462 | JO9: 0.05317809295 | JP9: 0.05980095327 | JQ9: 0.05555326415 | JR9: 0.02345632935 | JS9: 0.07972471209 | JT9: 0.03980378688 | JU9: 0.0612250502 | JV9: 0.07604421395 | JW9: 0.02648840004 | JX9: 0.0398009097 | JY9: 0.06796758624 | JZ9: 0.04805618611 | KA9: 0.0821314625 | KB9: 0.05005041569 | KC9: 0.088819434 | KD9: 0.0331110765 | KE9: 0.02295360525 | KF9: 0.06332172806 | KG9: 0.09042677552 | KH9: 0.06704154224 | KI9: 0.04110933204 | KJ9: 0.03867369683 | KK9: 0.05803521458 | KL9: 0.06674425287 | KM9: 0.0297192165 | KN9: 0.04870397222 | KO9: 0.04836252686 | KP9: 0.04412253647 | KQ9: 0.0664029632 | KR9: 0.03718390211 | KS9: 0.04713853163 | KT9: 0.03558386558 | KU9: 0.03912412267 | KV9: 0.06464575029 | KW9: 0.03144142679 | KX9: 0.05699766891 | KY9: 0.04107610982 | KZ9: 0.05892454343 | LA9: 0.06198007753 | LB9: 0.02838010695 | LC9: 0.04438369037 | LD9: 0.05553858896 | LE9: 0.03939932438 | LF9: 0.03342242612 | LG9: 0.04740093072 | LH9: 0.07522267441 | LI9: 0.02609810625 | LJ9: 0.02841924316 | LK9: 0.03316823468 | LL9: 0.02637338237 | LM9: 0.03051382525 | LN9: 0.03939950308 | LO9: 0.02745465975 | LP9: 0.0338109917 | LQ9: 0.07002180316 | LR9: 0.05960971015 | LS9: 0.09674539807 | LT9: 0.0407453176 | LU9: 0.05708708352 | LV9: 0.08004780152 | LW9: 0.05878570758 | LX9: 0.04433789417 | LY9: 0.05202936136 | LZ9: 0.0400157693 | MA9: 0.02894649277 | MB9: 0.05924033878 | MC9: 0.0475018393 | MD9: 0.03673087333 | ME9: 0.05124818024 | MF9: 0.049461346 | MG9: 0.07428101675 | MH9: 0.06060991589 | MI9: 0.03385696833 | MJ9: 0.07705059047 | MK9: 0.06621019978 | ML9: 0.02801536321 | MM9: 0.03910853967 | MN9: 0.03518661788 | MO9: 0.04834150329 | MP9: 0.03893207364 | MQ9: 0.03015520737 | MR9: 0.07934008027 | MS9: 0.05440266776 | MT9: 0.05180297977 | MU9: 0.08404808482 | MV9: 0.08573213214 | MW9: 0.03607724331 | MX9: 0.03829388921 | MY9: 0.06256811694 | MZ9: 0.05013905971 | NA9: 0.08340689196 | NB9: 0.02833423678 | NC9: 0.05290104918 | ND9: 0.04858156214 | NE9: 0.0868246798 | NF9: 0.06488497867 | NG9: 0.03304615698 | NH9: 0.06026700152 | NI9: 0.04477501248 | NJ9: 0.03772846983 | NK9: 0.08119682842 | NL9: 0.06821310768 | NM9: 0.03650381137 | NN9: 0.05464656908 | NO9: 0.04467308497 | NP9: 0.07184597353 | NQ9: 0.07177981516 | NR9: 0.04580654181 | NS9: 0.04537865916 | NT9: 0.03734084103 | NU9: 0.04742654528 | NV9: 0.02467926905 | NW9: 0.04908266215 | NX9: 0.02640181707 | NY9: 0.05308275511 | NZ9: 0.03376365703 | OA9: 0.06308930007 | OB9: 0.03776658545 | OC9: 0.06434076491 | OD9: 0.02890342664 | OE9: 0.09326380739 | OF9: 0.04881020313 | OG9: 0.05881750916 | OH9: 0.06556466521 | OI9: 0.04374448621 | OJ9: 0.05980320973 | OK9: 0.05688353562 | OL9: 0.04610916551 | OM9: 0.04411405215 | ON9: 0.04076571216 | OO9: 0.0353033728 | OP9: 0.04544948418 | OQ9: 0.06227513965 | OR9: 0.04487148298 | OS9: 0.06466500017 | OT9: 0.03257977554 | OU9: 0.0718147552 | OV9: 0.0454901456 | OW9: 0.02503497641 | OX9: 0.05293454227 | OY9: 0.08801718673 | OZ9: 0.02942920476 | PA9: 0.06004182484 | PB9: 0.05749698674 | PC9: 0.03155895022 | PD9: 0.06237336659 | PE9: 0.07076371598 | PF9: 0.02568624717 | PG9: 0.04750878437 | PH9: 0.04748605879 | PI9: 0.02995973247 | PJ9: 0.05592507579 | PK9: 0.04577961828 | PL9: 0.06440402705 | PM9: 0.07324020222 | PN9: 0.02393448213 | PO9: 0.04270289246 | PP9: 0.04774856529 | PQ9: 0.02928043329 | PR9: 0.06243273015 | PS9: 0.03200886719 | PT9: 0.03265084365 | PU9: 0.08196467218 | PV9: 0.04953387937 | PW9: 0.0531992811 | PX9: 0.06923583923 | PY9: 0.04420811185 | PZ9: 0.03786181218 | QA9: 0.0769513356 | QB9: 0.02751702008 | QC9: 0.04060584838 | QD9: 0.03353223531 | QE9: 0.06946162707 | QF9: 0.03240026125 | QG9: 0.05756489415 | QH9: 0.04205325571 | QI9: 0.06994533022 | QJ9: 0.04968926598 | QK9: 0.07002401021 | QL9: 0.06395006141 | QM9: 0.05276918713 | QN9: 0.05442790553 | QO9: 0.04502201403 | QP9: 0.06285018057 | QQ9: 0.08853397919 | QR9: 0.05493802129 | QS9: 0.05693833788 | QT9: 0.07277880296 | QU9: 0.04646893873 | QV9: 0.03567549004 | QW9: 0.03752689887 | QX9: 0.04494086375 | QY9: 0.07922138016 | QZ9: 0.03689350023 | RA9: 0.06085171009 | RB9: 0.0274602824 | RC9: 0.02850260581 | RD9: 0.03407477187 | RE9: 0.07576348954 | RF9: 0.08718370368 | RG9: 0.05193961473 | RH9: 0.04128201427 | RI9: 0.03504157066 | RJ9: 0.05036252945 | RK9: 0.04481476842 | RL9: 0.02664203697 | RM9: 0.05516286033 | RN9: 0.06283567357 | RO9: 0.0695720739 | RP9: 0.07576871514 | RQ9: 0.0478415842 | RR9: 0.08958345813 | RS9: 0.04551680318 | RT9: 0.06914820321 | RU9: 0.02086400815 | RV9: 0.05968915232 | RW9: 0.08618095843 | RX9: 0.03626903069 | RY9: 0.04556783555 | RZ9: 0.07360618937 | SA9: 0.07273606463 | SB9: 0.05595307954 | SC9: 0.03287650566 | SD9: 0.04834444696 | SE9: 0.07266439289 | SF9: 0.09859690633 | SG9: 0.05714273995 | SH9: 0.07104212167 | SI9: 0.0278791147 | SJ9: 0.05509018047 | SK9: 0.05303947515 | SL9: 0.08559259018 | SM9: 0.0441483782 | SN9: 0.03128647887 | SO9: 0.08267771953 | SP9: 0.04296202209 | SQ9: 0.0702161302 | SR9: 0.03032865654 | SS9: 0.06428721494 | ST9: 0.08497950883 | SU9: 0.04854527554 | SV9: 0.02569263274 | SW9: 0.07450818162 | SX9: 0.05417877687 | SY9: 0.03429150973 | SZ9: 0.03183150459 | TA9: 0.04958502916 | TB9: 0.02869603175 | TC9: 0.03326900977 | TD9: 0.06794548951 | TE9: 0.03073062338 | TF9: 0.03845932221 | TG9: 0.04727598556 | TH9: 0.05634849778 | TI9: 0.05466305314 | TJ9: 0.04972124268 | TK9: 0.04431484187 | TL9: 0.0949552454 | TM9: 0.02435797488 | TN9: 0.04469190964 | TO9: 0.05066758406 | TP9: 0.04757011589 | TQ9: 0.07116765893 | TR9: 0.07760744135 | TS9: 0.03598019627 | TT9: 0.03908511059 | TU9: 0.0344842217 | TV9: 0.03966588694 | TW9: 0.07944244436 | TX9: 0.03798260452 | TY9: 0.04592268955 | TZ9: 0.05091156105 | UA9: 0.05660415276 | UB9: 0.06072817263 | UC9: 0.04379131277 | UD9: 0.03503107513 | UE9: 0.07652344719 | UF9: 0.04201464471 | UG9: 0.05510403669 | UH9: 0.0775076769 | UI9: 0.04387207372 | UJ9: 0.07573388111 | UK9: 0.03452222215 | UL9: 0.07668631319 | UM9: 0.03015865207 | UN9: 0.06503832139 | UO9: 0.04773733743 | UP9: 0.08159562443 | UQ9: 0.03434914355 | UR9: 0.04400974793 | US9: 0.05768350242 | UT9: 0.08425476247 | UU9: 0.0365973226 | UV9: 0.04284972085 | UW9: 0.07532212792 | UX9: 0.05605711248 | UY9: 0.02855213764 | UZ9: 0.04898631286 | VA9: 0.06750160191 | VB9: 0.0620588583 | VC9: 0.08358447649 | VD9: 0.04296490398 | VE9: 0.05147883298 | VF9: 0.04514063769 | VG9: 0.07646809605 | VH9: 0.06328086355 | VI9: 0.07807081679 | VJ9: 0.05732982151 | VK9: 0.05999528475 | VL9: 0.05754839642 | VM9: 0.05989996238 | VN9: 0.05020010003 | VO9: 0.07453501888 | VP9: 0.0609255225 | VQ9: 0.05656584096 | VR9: 0.0456795824 | VS9: 0.02657683862 | VT9: 0.03317103173 | VU9: 0.03626711206 | VV9: 0.03059330893 | VW9: 0.03642304061 | VX9: 0.02501768098 | VY9: 0.04966440213 | VZ9: 0.05532928582 | WA9: 0.0359063943 | WB9: 0.04496126124 | WC9: 0.03786790531 | WD9: 0.05500261443 | WE9: 0.04205135418 | WF9: 0.08787880869 | WG9: 0.03765124801 | WH9: 0.03544799969 | WI9: 0.04533328433 | WJ9: 0.04252053135 | WK9: 0.07261890764 | WL9: 0.0336108994 | WM9: 0.02938718444 | WN9: 0.05561333318 | WO9: 0.03623590415 | WP9: 0.03562362635 | WQ9: 0.04019387936 | WR9: 0.02838432789 | WS9: 0.06504780951 | WT9: 0.09752796648 | WU9: 0.03170300976 | WV9: 0.02559022959 | WW9: 0.05268054201 | WX9: 0.04468121129 | WY9: 0.03023643938 | WZ9: 0.02941888867 | XA9: 0.04098373732 | XB9: 0.04800825789 | XC9: 0.06051702399 | XD9: 0.04709952447 | XE9: 0.03806215478 | XF9: 0.06071909111 | XG9: 0.06436219944 | XH9: 0.06464853224 | XI9: 0.04428040488 | XJ9: 0.03776076299 | XK9: 0.0431737737 | XL9: 0.03183040883 | XM9: 0.06515403627 | XN9: 0.03999987451 | XO9: 0.03500955659 | XP9: 0.03654531167 | XQ9: 0.07634130441 | XR9: 0.05505005303 | XS9: 0.0823157832 | XT9: 0.03861739361 | XU9: 0.06390404434 | XV9: 0.03182814261 | XW9: 0.04318902445 | XX9: 0.07348184231 | XY9: 0.03145732676 | XZ9: 0.04215746236 | YA9: 0.03829920649 | YB9: 0.06260698025 | YC9: 0.02864753527 | YD9: 0.07363863583 | YE9: 0.03602260199 | YF9: 0.05470157342 | YG9: 0.05963951096 | YH9: 0.02484437951 | YI9: 0.08219643536 | YJ9: 0.08236814701 | YK9: 0.02863044443 | YL9: 0.06812648268 | YM9: 0.03517625837 | YN9: 0.0660726808 | YO9: 0.07824345014 | YP9: 0.03646890069 | YQ9: 0.03626249399 | YR9: 0.03453701841 | YS9: 0.03675473866 | YT9: 0.04396701475 | YU9: 0.06974738175 | YV9: 0.03665873487 | YW9: 0.03290214383 | YX9: 0.06009324366 | YY9: 0.03133138171 | YZ9: 0.03277376266 | ZA9: 0.04274871653 | ZB9: 0.0682542956 | ZC9: 0.08844466213 | ZD9: 0.06486205722 | ZE9: 0.05021321413 | ZF9: 0.08613485479 | ZG9: 0.04005457113 | ZH9: 0.07372147651 | ZI9: 0.08219197556 | ZJ9: 0.03141412284 | ZK9: 0.02892893418 | ZL9: 0.05816596767 | ZM9: 0.02563624339 | ZN9: 0.06898037138 | ZO9: 0.0293557129 | ZP9: 0.03175707922 | ZQ9: 0.02676943688 | ZR9: 0.07370582348 | ZS9: 0.07826610944 | ZT9: 0.04927784215 | ZU9: 0.04095145633 | ZV9: 0.03505697491 | ZW9: 0.03728523617 | ZX9: 0.03778204309 | ZY9: 0.05002231585 | ZZ9: 0.04433904585 | AAA9: 0.07635074461 | AAB9: 0.03221465367 | AAC9: 0.04129932256 | AAD9: 0.0425516447 | AAE9: 0.02824127665 | AAF9: 0.05577236501 | AAG9: 0.05838721821 | AAH9: 0.07593762334 | AAI9: 0.03309721595 | AAJ9: 0.03280778093 | AAK9: 0.03884470717 | AAL9: 0.08788546128 | AAM9: 0.03979204732 | AAN9: 0.04188134563 | AAO9: 0.04641996071 | AAP9: 0.07590457001 | AAQ9: 0.04488185139 | AAR9: 0.04544757013 | AAS9: 0.05149462604 | AAT9: 0.03329465074 | AAU9: 0.03910913181 | AAV9: 0.0580056876 | AAW9: 0.05771342235 | AAX9: 0.03915376498 | AAY9: 0.05211709586 | AAZ9: 0.04077520124 | ABA9: 0.05273427225 | ABB9: 0.06442179387 | ABC9: 0.0274737557 | ABD9: 0.04945481467 | ABE9: 0.03533525713 | ABF9: 0.02646129875 | ABG9: 0.0638932039 | ABH9: 0.04601828151 | ABI9: 0.08381046603 | ABJ9: 0.04063075668 | ABK9: 0.07863393168 | ABL9: 0.03282390774 | ABM9: 0.04642995738 | ABN9: 0.07956594483 | ABO9: 0.0530056547 | ABP9: 0.07443893905 | ABQ9: 0.03506563574 | ABR9: 0.03649331124 | ABS9: 0.05717095283 | ABT9: 0.02177355874 | ABU9: 0.03897701068 | ABV9: 0.05306100578 | ABW9: 0.0361380036 | ABX9: 0.04868878393 | ABY9: 0.03729094188 | ABZ9: 0.05835276978 | ACA9: 0.06506220527 | ACB9: 0.05522057778 | ACC9: 0.04428157915 | ACD9: 0.04887025021 | ACE9: 0.02915820666 | ACF9: 0.06545816035 | ACG9: 0.0487393929 | ACH9: 0.05497454842 | ACI9: 0.05589044849 | ACJ9: 0.05665156034 | ACK9: 0.04216756305 | ACL9: 0.05909888173 | ACM9: 0.08042821214 | ACN9: 0.02484709245 | ACO9: 0.08714253868 | ACP9: 0.05950962367 | ACQ9: 0.04918858633 | ACR9: 0.06770105404 | ACS9: 0.06866731499 | ACT9: 0.03647740168 | ACU9: 0.03233222591 | ACV9: 0.07722582915 | ACW9: 0.08194316761 | ACX9: 0.05703832701 | ACY9: 0.06857746166 | ACZ9: 0.06279061149 | ADA9: 0.03952672574 | ADB9: 0.04097038947 | ADC9: 0.0348291484 | ADD9: 0.06182151403 | ADE9: 0.05205142859 | ADF9: 0.02710787006 | ADG9: 0.04015012251 | ADH9: 0.04096729944 | ADI9: 0.04012116906 | ADJ9: 0.06031146358 | ADK9: 0.02806468275 | ADL9: 0.02854104338 | ADM9: 0.06287050972 | ADN9: 0.04478452685 | ADO9: 0.02978392521 | ADP9: 0.07932489901 | ADQ9: 0.03635627852 | ADR9: 0.06087692936 | ADS9: 0.0293318727 | ADT9: 0.04090616589 | ADU9: 0.08650848491 | ADV9: 0.07757633939 | ADW9: 0.03682176049 | ADX9: 0.06118754025 | ADY9: 0.07177141713 | ADZ9: 0.09495281598 | AEA9: 0.0325278571 | AEB9: 0.07106041269 | AEC9: 0.05741961621 | AED9: 0.04158432356 | AEE9: 0.03070596187 | AEF9: 0.02849136159 | AEG9: 0.05942327411 | AEH9: 0.02866633873 | AEI9: 0.06843936754 | AEJ9: 0.02560245547 | AEK9: 0.07355566096 | AEL9: 0.03731717347 | AEM9: 0.05010371183 | AEN9: 0.05334725005 | AEO9: 0.06022411116 | AEP9: 0.03352552988 | AEQ9: 0.02744038676 | AER9: 0.05687595033 | AES9: 0.05294377572 | AET9: 0.04671414764 | AEU9: 0.08831776041 | AEV9: 0.04434418582 | AEW9: 0.06116151494 | AEX9: 0.04078464974 | AEY9: 0.03625779129 | AEZ9: 0.03854356628 | AFA9: 0.03749932463 | AFB9: 0.06760789696 | AFC9: 0.03933537067 | AFD9: 0.02425714758 | AFE9: 0.09482216002 | AFF9: 0.06115538416 | AFG9: 0.02738814448 | AFH9: 0.05333756971 | AFI9: 0.07037314817 | AFJ9: 0.03235866411 | AFK9: 0.03521363611 | AFL9: 0.07025846414 | AFM9: 0.03479206083 | AFN9: 0.04919663728 | AFO9: 0.05342028608 | AFP9: 0.06268389076 | AFQ9: 0.03249925205 | AFR9: 0.03244476612 | AFS9: 0.06421885048 | AFT9: 0.06284336283 | AFU9: 0.03903355504 | AFV9: 0.03129374198 | AFW9: 0.03969725022 | AFX9: 0.08013628571 | AFY9: 0.02747922863 | AFZ9: 0.03722991369 | AGA9: 0.03293781128 | AGB9: 0.02490328336 | AGC9: 0.02674052561 | AGD9: 0.05873916369 | AGE9: 0.0739167828 | AGF9: 0.02761296086 | AGG9: 0.091115203 | AGH9: 0.05200845496 | AGI9: 0.05779442894 | AGJ9: 0.04614262132 | AGK9: 0.0395592818 | AGL9: 0.08259563907 | AGM9: 0.02246880973 | AGN9: 0.04350768106 | AGO9: 0.04729497052 | AGP9: 0.05071133455 | AGQ9: 0.05578408942 | AGR9: 0.03295158609 | AGS9: 0.02982892201 | AGT9: 0.03642864936 | AGU9: 0.03396196995 | AGV9: 0.02994566514 | AGW9: 0.05793060934 | AGX9: 0.05270065378 | AGY9: 0.04119472413 | AGZ9: 0.07445658434 | AHA9: 0.02984528796 | AHB9: 0.07204428224 | AHC9: 0.04817154677 | AHD9: 0.02686520329 | AHE9: 0.04193732509 | AHF9: 0.03670904411 | AHG9: 0.03132847829 | AHH9: 0.04586137584 | AHI9: 0.05142402784 | AHJ9: 0.0558895068 | AHK9: 0.0854667157 | AHL9: 0.05451335979 | AHM9: 0.06405629083 | AHN9: 0.04263926782 | AHO9: 0.04188143875 | AHP9: 0.03122882649 | AHQ9: 0.05141714522 | AHR9: 0.08952593603 | AHS9: 0.0353475958 | AHT9: 0.07910536077 | AHU9: 0.02606847343 | AHV9: 0.06437837112 | AHW9: 0.05067731668 | AHX9: 0.03541294251 | AHY9: 0.03643977198 | AHZ9: 0.02394068868 | AIA9: 0.0630440456 | AIB9: 0.06471915377 | AIC9: 0.03217443587 | AID9: 0.06519989188 | AIE9: 0.05287327438 | AIF9: 0.08458390967 | AIG9: 0.0290157351 | AIH9: 0.08463742048 | AII9: 0.05282693508 | AIJ9: 0.07399205584 | AIK9: 0.06619031404 | AIL9: 0.03755863784 | AIM9: 0.03432960109 | AIN9: 0.04379304414 | AIO9: 0.04835666476 | AIP9: 0.07096155784 | AIQ9: 0.04428318139 | AIR9: 0.03579736087 | AIS9: 0.03905631853 | AIT9: 0.0530187159 | AIU9: 0.02728610408 | AIV9: 0.05291522291 | AIW9: 0.06930429288 | AIX9: 0.04811935522 | AIY9: 0.07164116204 | AIZ9: 0.05806828031 | AJA9: 0.04762365743 | AJB9: 0.03430568111 | AJC9: 0.03659979655 | AJD9: 0.03202488948 | AJE9: 0.04188845544 | AJF9: 0.03782249259 | AJG9: 0.04359085047 | AJH9: 0.02694648492 | AJI9: 0.07351257113 | AJJ9: 0.03045497669 | AJK9: 0.03276539308 | AJL9: 0.08943596536 | AJM9: 0.05339065516 | AJN9: 0.03518223813 | AJO9: 0.0622594412 | AJP9: 0.04331401018 | AJQ9: 0.03884051993 | AJR9: 0.04357730122 | AJS9: 0.02174212211 | AJT9: 0.06112205952 | AJU9: 0.07858212898 | AJV9: 0.02748131332 | AJW9: 0.04112712852 | AJX9: 0.04145048111 | AJY9: 0.02989436238 | AJZ9: 0.02994597066 | AKA9: 0.0575209974 | AKB9: 0.06873683009 | AKC9: 0.09684202157 | AKD9: 0.03510724545 | AKE9: 0.02798329095 | AKF9: 0.0514258754 | AKG9: 0.03626404042 | AKH9: 0.03054957773 | AKI9: 0.04285642458 | AKJ9: 0.03974137447 | AKK9: 0.02925026801 | AKL9: 0.03028015726 | AKM9: 0.06261821206 | AKN9: 0.02981840108 | AKO9: 0.03502089734 | AKP9: 0.07496868446 | AKQ9: 0.07027718927 | AKR9: 0.0648453152 | AKS9: 0.06047158996 | AKT9: 0.03472023433 | AKU9: 0.07123769747 | AKV9: 0.03308520384 | AKW9: 0.04545647423 | AKX9: 0.05567354164 | AKY9: 0.03919260992 | AKZ9: 0.06854606826 | ALA9: 0.08558254299 | ALB9: 0.0565238883 | ALC9: 0.04061356235 | ALD9: 0.0559830295 | ALE9: 0.05787651785 | ALF9: 0.03335819238 | ALG9: 0.04504150324 | ALH9: 0.05043185276 | ALI9: 0.04727662876 | ALJ9: 0.06420127763 | ALK9: 0.04542324377 | ALL9: 0.02574361943 | ALM9: 0.03990578417 | ALN9: 0.07158980742 | ALO9: 0.06233776344 | ALP9: 0.06802753477 | ALQ9: 0.05597309242 | ALR9: 0.05336383397 | ALS9: 0.02862320027 | ALT9: 0.02084746073 | ALU9: 0.04170789491 | ALV9: 0.06881735541 | ALW9: 0.07589510609 | ALX9: 0.05002024123 | ALY9: 0.04289734615 | ALZ9: 0.02155892049 | AMA9: 0.0436406088 | AMB9: 0.07878971152 | AMC9: 0.04436550674 | AMD9: 0.05564728713 | AME9: 0.03777407983 | AMF9: 0.05380689878 | AMG9: 0.03066299097 | AMH9: 0.05162303632 | AMI9: 0.04187306585 | AML9: =IFERROR(AVERAGEIFS($X9:$AMI9,$X9:$AMI9,"<"&SMALL($X9:$AMI9,AMM$7),$X9:$AMI9,">"&SMALL($X9:$AMI9,AMK$7)),"") -> 0.02646093248 | AMM9: =IFERROR(AVERAGEIFS($X9:$AMI9,$X9:$AMI9,"<"&SMALL($X9:$AMI9,AMN$7),$X9:$AMI9,">"&SMALL($X9:$AMI9,AML$7)),"") -> 0.02924808634 | AMN9: =IFERROR(AVERAGEIFS($X9:$AMI9,$X9:$AMI9,"<"&SMALL($X9:$AMI9,AMO$7),$X9:$AMI9,">"&SMALL($X9:$AMI9,AMM$7)),"") -> 0.03148393187 | AMO9: 0.03371204815 | AMP9: 0.03584160436 | AMQ9: 0.03789665661 | AMR9: 0.04001809763 | AMS9: 0.04238182 | AMT9: 0.0448122862 | AMU9: 0.04739477952 | AMV9: 0.0502829717 | AMW9: 0.05330587865 | AMX9: 0.05634742448 | AMY9: 0.05959201137 | AMZ9: 0.06294810799 | ANA9: 0.06673081698 | ANB9: 0.07131222488 | ANC9: =IFERROR(AVERAGEIFS($X9:$AMI9,$X9:$AMI9,"<"&SMALL($X9:$AMI9,AND$7),$X9:$AMI9,">"&SMALL($X9:$AMI9,ANB$7)),"") -> 0.0765492013 | AND9: =IFERROR(AVERAGEIFS($X9:$AMI9,$X9:$AMI9,"<"&SMALL($X9:$AMI9,ANE$7),$X9:$AMI9,">"&SMALL($X9:$AMI9,ANC$7)),"") -> 0.08401430341 | ANF9: =IFERROR(AVERAGEIFS($X$7:$AMI$7,$X9:$AMI9,"<"&SMALL($X9:$AMI9,AMM$7),$X9:$AMI9,">"&SMALL($X9:$AMI9,AMK$7)),"") -> -1316.93769 | ANG9: =IFERROR(AVERAGEIFS($X$7:$AMI$7,$X9:$AMI9,"<"&SMALL($X9:$AMI9,AMN$7),$X9:$AMI9,">"&SMALL($X9:$AMI9,AML$7)),"") -> -525.362543 | ANH9: -371.8655556 | ANI9: 192.3255115 | ANJ9: 880.8682893 | ANK9: 1771.483964 | ANL9: 2634.469458 | ANM9: 3558.61641 | ANN9: 4178.621697 | ANO9: 4128.915671 | ANP9: 4305.099396 | ANQ9: 5199.663865 | ANR9: 6676.21431 | ANS9: 8328.067409 | ANT9: 9191.938503 | ANU9: 8786.774614 | ANV9: 9921.674294 | ANW9: 10879.84746 | ANX9: 12388.08461 | ANY9: =IFERROR(MATCH(MIN(ABS(ANF9:ANX9)),ABS(ANF9:ANX9),0),"") -> 4 | ANZ9: =IFERROR(INDEX(ANF9:ANX9,MIN(MAX(ANY9-1,1),17)),"") -> -371.8655556 | AOA9: =IFERROR(INDEX(ANF9:ANX9,MIN(MAX(ANY9,2),18)),"") -> 192.3255115 | AOB9: =IFERROR(INDEX(ANF9:ANX9,MIN(MAX(ANY9,3),19)),"") -> 192.3255115 | AOC9: =IFERROR(INDEX(AML9:AND9,MIN(MAX(ANY9-1,1),17)),"") -> 0.03148393187 | AOD9: =IFERROR(INDEX(AML9:AND9,MIN(MAX(ANY9,2),18)),"") -> 0.03371204815 | AOE9: =IFERROR(INDEX(AML9:AND9,MIN(MAX(ANY9,3),19)),"") -> 0.03371204815 | AOF9: =IFERROR(FORECAST(0,AOC9:AOE9,ANZ9:AOB9),"") -> 0.03295251184
A10: =ROW(Variables[[#This Row],[Variable Name]])-ROW(Variables[[#Headers],[Variable Name]]) -> 2 | B10: Current total labor cost | C10: LoadLab | D10: =IF(COUNTA(Variables[[#This Row],[Lower Bound]], Variables[[#This Row],[Mode or P]], Variables[[#This Row],[Upper Bound]])=0, "", IF(Variables[[#This Row],[Shape]]="Constant",Variables[[#This Row],[Mode or P]],IF(Variables[[#This Row],[Shape]]="Lognorm",LOGINV(Variables[[#This Row],[Uniform PRNG]],((LN(Variables[[#This Row],[Lower Bound]]) + LN(Variables[[#This Row],[Upper Bound]]))/2),((LN(Variables[[#This Row],[Upper Bound]]) - LN(Variables[[#This Row],[Lower Bound]]))/3.28971)),IF(Variables[[#This Row],[Shape]]="Normal",NORMINV(Variables[[#This Row],[Uniform PRNG]],(Variables[[#This Row],[Upper Bound]]+Variables[[#This Row],[Lower Bound]])/2,(Variables[[#This Row],[Upper Bound]]-Variables[[#This Row],[Lower Bound]])/3.29),IF(Variables[[#This Row],[Shape]]="Uniform",(Variables[[#This Row],[Upper Bound]]-Variables[[#This Row],[Lower Bound]])*Variables[[#This Row],[Uniform PRNG]]+Variables[[#This Row],[Lower Bound]],IF(Variables[[#This Row],[Shape]]="Binary",IF(Variables[[#This Row],[Uniform PRNG]]<Variables[[#This Row],[Mode or P]],1,0),IF(Variables[[#This Row],[Shape]]="Triangular",IF(Variables[[#This Row],[Uniform PRNG]]<(Variables[[#This Row],[Mode or P]]-Variables[[#This Row],[Lower Bound]])/(Variables[[#This Row],[Upper Bound]]-Variables[[#This Row],[Lower Bound]]), 1, 0) * (Variables[[#This Row],[Lower Bound]] + SQRT(Variables[[#This Row],[Uniform PRNG]]*(Variables[[#This Row],[Upper Bound]]-Variables[[#This Row],[Lower Bound]])*(Variables[[#This Row],[Mode or P]]-Variables[[#This Row],[Lower Bound]]))) + IF(Variables[[#This Row],[Uniform PRNG]]>= (Variables[[#This Row],[Mode or P]]-Variables[[#This Row],[Lower Bound]])/(Variables[[#This Row],[Upper Bound]]-Variables[[#This Row],[Lower Bound]]), 1, 0) * (Variables[[#This Row],[Upper Bound]] - SQRT((1-Variables[[#This Row],[Uniform PRNG]]) * (Variables[[#This Row],[Upper Bound]] - Variables[[#This Row],[Lower Bound]]) * (Variables[[#This Row],[Upper Bound]] - Variables[[#This Row],[Mode or P]]))),""))))))) -> 70937.86411 | E10: Lognorm | F10: 50000 | H10: 90000 | I10: HR | J10: =IFERROR(IF(OR(MIN(Variables[[#This Row],[P(X<T)]], Variables[[#This Row],[P(X>T)]])<0.002,SIGN(Variables[[#This Row],[EOL(X<T)]])=SIGN(Variables[[#This Row],[EOL(X>T)]])),0,IFERROR(IF(B$38=1,IF(Variables[[#This Row],[EOL(X<T)]]<Variables[[#This Row],[EOL(X>T)]],-Variables[[#This Row],[EOL(X<T)]]*Variables[[#This Row],[P(X<T)]],-Variables[[#This Row],[EOL(X>T)]]*Variables[[#This Row],[P(X>T)]]),IF(Variables[[#This Row],[EOL(X<T)]]>Variables[[#This Row],[EOL(X>T)]],Variables[[#This Row],[EOL(X<T)]]*Variables[[#This Row],[P(X<T)]],Variables[[#This Row],[EOL(X>T)]]*Variables[[#This Row],[P(X>T)]])),"")),0) -> 0 | K10: =IF(Variables[[#This Row],[Shape]]="Constant",Variables[[#This Row],[Mode or P]],IF(Variables[[#This Row],[Shape]]="Lognorm",EXP((LN(Variables[[#This Row],[Upper Bound]])+LN(Variables[[#This Row],[Lower Bound]]))/2+((LN(Variables[[#This Row],[Upper Bound]])-LN(Variables[[#This Row],[Lower Bound]]))/3.29)^2/2),IF(Variables[[#This Row],[Shape]]="Normal",(Variables[[#This Row],[Lower Bound]]+Variables[[#This Row],[Upper Bound]])/2,IF(Variables[[#This Row],[Shape]]="Uniform",(Variables[[#This Row],[Lower Bound]]+Variables[[#This Row],[Upper Bound]])/2,IF(Variables[[#This Row],[Shape]]="Binary",Variables[[#This Row],[Mode or P]],IF(Variables[[#This Row],[Shape]]="Triangular",(Variables[[#This Row],[Lower Bound]]+Variables[[#This Row],[Mode or P]]+Variables[[#This Row],[Upper Bound]])/3,"")))))) -> 68161.2198 | L10: =IF(Variables[[#This Row],[Shape]]="","",(MOD((MOD(MOD(999999999999989,MOD(ScenarioNum*2499997+Variables[[#This Row],[VarID]]*1800451,7450589)*4658+7450581)*383,99991)*231109+MOD(MOD(999999999999989,MOD(ScenarioNum*2246527+Variables[[#This Row],[VarID]]*2399993,7450987)*7580+7560584)*547,231109))*43271,4294967296)+0.5)/4294967296) -> 0.6227808822 | M10: =IF(Variables[[#This Row],[Shape]]="Binary", 1-Variables[[#This Row],[Mode or P]], IF(Variables[[#This Row],[Shape]]<>"",COUNTIF(INDEX($X$9:$AMI$159, ROW(Variables[[#This Row],[Variable Name]])-ROW(Variables[[#Headers],[Variable Name]]), ),"<"&Variables[[#This Row],[Threshold Estimate]])/1000,"")) -> 0 | N10: =IF(Variables[[#This Row],[Shape]]<>"",1-Variables[[#This Row],[P(X<T)]],"") -> 1 | O10: =IFERROR(AVERAGEIFS(X$7:AMI$7,INDEX(X$9:$AMI$159, ROW(Variables[[#This Row],[Variable Name]])-ROW(Variables[[#Headers],[Variable Name]]), ),IF(Variables[[#This Row],[Shape]]="Binary","=0","<"&Variables[[#This Row],[Threshold Estimate]])),"") ->  | P10: =IFERROR(AVERAGEIFS(X$7:AMI$7,INDEX($X$9:$AMI$159, ROW(Variables[[#This Row],[Variable Name]])-ROW(Variables[[#Headers],[Variable Name]]), ),IF(Variables[[#This Row],[Shape]]="Binary","=1",">"&Variables[[#This Row],[Threshold Estimate]])),"") -> 4858.052527 | Q10: =IFERROR(IF(Variables[[#This Row],[Shape]]="Binary",IF(B$38=1,IF(Variables[[#This Row],[EOL(X<T)]]<Variables[[#This Row],[EOL(X>T)]],0,1),IF(Variables[[#This Row],[EOL(X<T)]]<Variables[[#This Row],[EOL(X>T)]],1,0)), INDEX($AOF$9:$AOF$159, ROW(Variables[[#This Row],[Variable Name]])-ROW(Variables[[#Headers],[Variable Name]]))),"") -> 35538.4294 | S10: Uniform | V10: =IFERROR(IF(ISBLANK(Variables[[#This Row],[Variable Name]]), "", Variables[[#This Row],[Variable Name]]), "") -> Current total labor cost | W10: =IFERROR(IF(ISBLANK(D10), "", D10), "") -> 70937.86411 | X10: 56478.72017 | Y10: 64905.13189 | Z10: 56093.50858 | AA10: 88101.76069 | AB10: 86541.57026 | AC10: 61737.76728 | AD10: 44031.85095 | AE10: 92534.66129 | AF10: 59487.99112 | AG10: 64685.97097 | AH10: 68313.83786 | AI10: 75084.85953 | AJ10: 70705.40674 | AK10: 76074.72364 | AL10: 52913.34802 | AM10: 64630.71538 | AN10: 81083.91553 | AO10: 72384.25001 | AP10: 45918.23733 | AQ10: 64583.76423 | AR10: 77729.87035 | AS10: 54998.05521 | AT10: 59549.66418 | AU10: 55949.28833 | AV10: 75454.69079 | AW10: 58743.91302 | AX10: 47387.52933 | AY10: 56098.9269 | AZ10: 43148.76223 | BA10: 77441.94509 | BB10: 65858.50784 | BC10: 51922.76288 | BD10: 65346.27862 | BE10: 87176.01263 | BF10: 55189.35622 | BG10: 37997.72401 | BH10: 75884.36984 | BI10: 60481.4728 | BJ10: 72211.77444 | BK10: 77560.38165 | BL10: 52120.55664 | BM10: 102463.0659 | BN10: 67587.01713 | BO10: 67186.09327 | BP10: 78078.79852 | BQ10: 65067.25303 | BR10: 80390.84841 | BS10: 66381.71035 | BT10: 58733.30431 | BU10: 83816.22475 | BV10: 78893.58192 | BW10: 68129.90876 | BX10: 77373.96652 | BY10: 75309.75284 | BZ10: 62707.49098 | CA10: 59839.05749 | CB10: 60095.16664 | CC10: 70286.96444 | CD10: 48642.08304 | CE10: 68742.51941 | CF10: 62749.68733 | CG10: 56150.57486 | CH10: 52831.23788 | CI10: 69301.4511 | CJ10: 66537.46459 | CK10: 65274.59807 | CL10: 41607.22868 | CM10: 67569.2185 | CN10: 56961.37355 | CO10: 75118.55208 | CP10: 66014.40006 | CQ10: 58172.04167 | CR10: 70253.79977 | CS10: 69487.55547 | CT10: 73759.77473 | CU10: 56497.02561 | CV10: 73145.51507 | CW10: 59135.3633 | CX10: 75525.87757 | CY10: 79199.94364 | CZ10: 48906.38331 | DA10: 76437.69697 | DB10: 63016.95184 | DC10: 64976.19823 | DD10: 66972.84475 | DE10: 110525.2914 | DF10: 61694.20402 | DG10: 78398.72777 | DH10: 71868.54695 | DI10: 59068.35852 | DJ10: 74828.17929 | DK10: 72612.03199 | DL10: 63134.08089 | DM10: 73289.99015 | DN10: 50735.06412 | DO10: 70613.2784 | DP10: 93083.68817 | DQ10: 70445.30691 | DR10: 61548.82882 | DS10: 74429.32512 | DT10: 71870.07465 | DU10: 67717.94676 | DV10: 56803.38258 | DW10: 63216.97711 | DX10: 49719.18591 | DY10: 61053.44593 | DZ10: 67036.15305 | EA10: 59279.67538 | EB10: 57311.10564 | EC10: 54581.22491 | ED10: 64601.92801 | EE10: 87642.3885 | EF10: 74496.69017 | EG10: 68390.86233 | EH10: 81201.90905 | EI10: 76191.0694 | EJ10: 57756.41871 | EK10: 75426.42965 | EL10: 50949.13015 | EM10: 62807.38399 | EN10: 82494.05558 | EO10: 90210.41249 | EP10: 55321.79891 | EQ10: 64206.26625 | ER10: 94507.8569 | ES10: 88530.21359 | ET10: 71847.19868 | EU10: 67467.89579 | EV10: 64616.79212 | EW10: 73951.49327 | EX10: 75967.80247 | EY10: 69838.38455 | EZ10: 69976.10359 | FA10: 55750.22862 | FB10: 56497.72717 | FC10: 62440.35668 | FD10: 57169.22008 | FE10: 68617.43436 | FF10: 72330.36186 | FG10: 58205.9896 | FH10: 56154.72809 | FI10: 68907.79587 | FJ10: 56392.96179 | FK10: 59587.77073 | FL10: 82562.63044 | FM10: 79861.75493 | FN10: 72675.00713 | FO10: 61095.85849 | FP10: 60531.36095 | FQ10: 80492.52764 | FR10: 64914.37114 | FS10: 86154.39394 | FT10: 66625.10649 | FU10: 59610.87794 | FV10: 68740.63167 | FW10: 42406.91839 | FX10: 43570.73286 | FY10: 67520.41571 | FZ10: 73899.78199 | GA10: 66578.11937 | GB10: 63333.20936 | GC10: 71292.45983 | GD10: 70389.55693 | GE10: 55037.02922 | GF10: 54700.17181 | GG10: 52656.23099 | GH10: 67508.17029 | GI10: 100256.9087 | GJ10: 78822.50897 | GK10: 64192.88841 | GL10: 59284.8656 | GM10: 67062.97678 | GN10: 58775.64612 | GO10: 66801.51019 | GP10: 57362.39044 | GQ10: 80909.63351 | GR10: 62273.10632 | GS10: 73765.39985 | GT10: 60482.23634 | GU10: 80840.36879 | GV10: 100052.5829 | GW10: 69879.43311 | GX10: 78783.8113 | GY10: 69607.68608 | GZ10: 80009.48505 | HA10: 58311.1717 | HB10: 60455.53277 | HC10: 56771.14173 | HD10: 66883.93566 | HE10: 48356.88247 | HF10: 56257.39432 | HG10: 51370.19784 | HH10: 84574.48538 | HI10: 62586.05637 | HJ10: 80357.64668 | HK10: 59765.75321 | HL10: 60868.86042 | HM10: 76132.17331 | HN10: 56693.93831 | HO10: 64236.19919 | HP10: 66992.36659 | HQ10: 63379.86985 | HR10: 86352.51397 | HS10: 72635.43413 | HT10: 82838.03475 | HU10: 56134.50561 | HV10: 61497.85527 | HW10: 71143.62563 | HX10: 68866.2213 | HY10: 61110.96995 | HZ10: 74629.54095 | IA10: 71596.62031 | IB10: 54567.67583 | IC10: 58673.08942 | ID10: 59947.98064 | IE10: 72838.2436 | IF10: 79515.86794 | IG10: 73883.99516 | IH10: 57416.81409 | II10: 73961.30833 | IJ10: 64587.42625 | IK10: 52139.73357 | IL10: 59590.38604 | IM10: 69858.9183 | IN10: 71513.70351 | IO10: 54066.86655 | IP10: 59220.38533 | IQ10: 69150.73861 | IR10: 79229.40863 | IS10: 48632.76944 | IT10: 86784.68628 | IU10: 70781.66421 | IV10: 94514.98951 | IW10: 70816.92505 | IX10: 68437.43478 | IY10: 69930.1454 | IZ10: 53825.01307 | JA10: 64986.6845 | JB10: 64041.44916 | JC10: 85299.89196 | JD10: 63922.4144 | JE10: 76415.11596 | JF10: 76419.74765 | JG10: 63363.64695 | JH10: 77860.98243 | JI10: 46552.0907 | JJ10: 78161.59835 | JK10: 72824.11865 | JL10: 73427.42727 | JM10: 58684.18077 | JN10: 51042.97167 | JO10: 73486.87459 | JP10: 78148.50786 | JQ10: 54107.35815 | JR10: 61072.14743 | JS10: 72686.60074 | JT10: 70937.86411 | JU10: 72708.42967 | JV10: 53077.11656 | JW10: 78177.39159 | JX10: 75387.62451 | JY10: 60083.50573 | JZ10: 51076.83084 | KA10: 68829.13318 | KB10: 69071.26638 | KC10: 52490.51573 | KD10: 79816.6695 | KE10: 109530.5859 | KF10: 84978.2853 | KG10: 54468.40606 | KH10: 61021.98787 | KI10: 79100.03015 | KJ10: 64224.79776 | KK10: 76713.96534 | KL10: 66847.374 | KM10: 77066.93346 | KN10: 61223.2377 | KO10: 63359.46924 | KP10: 58440.37793 | KQ10: 68820.08426 | KR10: 60842.0086 | KS10: 66816.88774 | KT10: 63655.97868 | KU10: 52592.06171 | KV10: 87284.74637 | KW10: 59024.62651 | KX10: 73357.85859 | KY10: 82150.99098 | KZ10: 78690.45205 | LA10: 57136.44052 | LB10: 59281.03499 | LC10: 54602.35939 | LD10: 80976.21926 | LE10: 69529.66573 | LF10: 81706.97477 | LG10: 62511.78176 | LH10: 71457.06311 | LI10: 88087.4659 | LJ10: 66359.82472 | LK10: 67963.95317 | LL10: 72158.82506 | LM10: 106468.789 | LN10: 62971.49936 | LO10: 68300.24613 | LP10: 62746.39193 | LQ10: 66612.22175 | LR10: 57496.12176 | LS10: 52896.77932 | LT10: 65556.28975 | LU10: 70466.65861 | LV10: 90735.87586 | LW10: 81020.93575 | LX10: 67354.49602 | LY10: 99637.56016 | LZ10: 56633.02071 | MA10: 67950.73324 | MB10: 84409.08529 | MC10: 81467.9081 | MD10: 46814.1663 | ME10: 52631.42572 | MF10: 73706.16159 | MG10: 62536.54036 | MH10: 62921.04359 | MI10: 87863.47856 | MJ10: 60618.56899 | MK10: 68033.95568 | ML10: 65397.6427 | MM10: 62488.10464 | MN10: 67529.9931 | MO10: 66909.65499 | MP10: 75283.52722 | MQ10: 76034.67981 | MR10: 54693.20993 | MS10: 65876.48578 | MT10: 77756.38272 | MU10: 71039.94337 | MV10: 61372.10427 | MW10: 63521.98384 | MX10: 67517.12818 | MY10: 86594.33422 | MZ10: 61598.50401 | NA10: 80111.16252 | NB10: 69244.54325 | NC10: 59341.68913 | ND10: 72063.4637 | NE10: 69825.67619 | NF10: 74905.94412 | NG10: 66220.15337 | NH10: 72639.13083 | NI10: 92479.497 | NJ10: 59936.44267 | NK10: 60006.20371 | NL10: 83621.86368 | NM10: 81121.00687 | NN10: 67802.98221 | NO10: 56887.69683 | NP10: 53538.25859 | NQ10: 80648.36239 | NR10: 56891.1432 | NS10: 53033.54795 | NT10: 62817.15333 | NU10: 63333.96959 | NV10: 73931.65482 | NW10: 57368.34449 | NX10: 68009.75019 | NY10: 79525.84682 | NZ10: 60064.70912 | OA10: 75295.79903 | OB10: 73011.43421 | OC10: 98105.20219 | OD10: 59494.53725 | OE10: 105165.9338 | OF10: 52138.01718 | OG10: 97357.23903 | OH10: 73386.8901 | OI10: 88673.97404 | OJ10: 98652.74954 | OK10: 64257.44597 | OL10: 71934.90079 | OM10: 70221.35037 | ON10: 56613.6543 | OO10: 75872.01214 | OP10: 58436.75674 | OQ10: 79241.27578 | OR10: 73156.4842 | OS10: 61915.90648 | OT10: 76652.37027 | OU10: 59994.91034 | OV10: 68002.05699 | OW10: 86524.89728 | OX10: 79064.10991 | OY10: 44716.96919 | OZ10: 72304.53329 | PA10: 75804.86519 | PB10: 82795.3054 | PC10: 55755.56495 | PD10: 81479.7251 | PE10: 65946.21339 | PF10: 65670.61221 | PG10: 60698.90931 | PH10: 87393.98118 | PI10: 88629.30802 | PJ10: 59564.88572 | PK10: 74463.60239 | PL10: 85736.46827 | PM10: 54874.76247 | PN10: 66733.61189 | PO10: 68805.99578 | PP10: 81410.49006 | PQ10: 84234.98594 | PR10: 76039.28596 | PS10: 68641.91162 | PT10: 59364.0442 | PU10: 77024.24131 | PV10: 66406.57049 | PW10: 62016.62184 | PX10: 75178.71963 | PY10: 68984.02767 | PZ10: 71620.46353 | QA10: 55585.86771 | QB10: 57706.23794 | QC10: 99117.28622 | QD10: 56990.13053 | QE10: 58954.18085 | QF10: 71170.97494 | QG10: 69641.39218 | QH10: 90532.34947 | QI10: 71981.39461 | QJ10: 70024.92611 | QK10: 60164.58641 | QL10: 64088.29848 | QM10: 91149.86721 | QN10: 85669.65862 | QO10: 70009.64406 | QP10: 82558.88269 | QQ10: 71791.26676 | QR10: 68745.47642 | QS10: 53935.77164 | QT10: 52355.86435 | QU10: 52910.91112 | QV10: 58661.36325 | QW10: 87025.30286 | QX10: 81597.23851 | QY10: 65884.11532 | QZ10: 59044.60054 | RA10: 72812.49952 | RB10: 59549.17846 | RC10: 96075.67181 | RD10: 80257.22102 | RE10: 54605.9209 | RF10: 75018.07084 | RG10: 52853.48877 | RH10: 61031.56019 | RI10: 46070.80686 | RJ10: 84201.75426 | RK10: 79537.07401 | RL10: 72265.86298 | RM10: 72540.38511 | RN10: 59397.96182 | RO10: 75917.33605 | RP10: 62303.95602 | RQ10: 59612.04889 | RR10: 69236.52125 | RS10: 49000.6795 | RT10: 54386.97579 | RU10: 59375.18203 | RV10: 53026.17177 | RW10: 53758.75217 | RX10: 65314.04705 | RY10: 62994.62293 | RZ10: 50502.34083 | SA10: 94865.60396 | SB10: 53187.10613 | SC10: 76475.07229 | SD10: 67819.13687 | SE10: 92803.24258 | SF10: 76741.42102 | SG10: 71244.90882 | SH10: 93388.48094 | SI10: 74887.71733 | SJ10: 61288.20144 | SK10: 93976.54445 | SL10: 52132.05331 | SM10: 67869.87981 | SN10: 80427.95928 | SO10: 75921.34122 | SP10: 53094.83894 | SQ10: 59013.80941 | SR10: 58177.69447 | SS10: 80110.35085 | ST10: 60475.8042 | SU10: 71050.0514 | SV10: 72180.57163 | SW10: 84312.89573 | SX10: 49584.53886 | SY10: 56766.66488 | SZ10: 89327.92195 | TA10: 55735.93789 | TB10: 57689.11842 | TC10: 64684.34287 | TD10: 61999.41202 | TE10: 66134.85693 | TF10: 59179.12128 | TG10: 54873.63076 | TH10: 65818.06119 | TI10: 63514.26765 | TJ10: 67106.91438 | TK10: 94277.19357 | TL10: 73871.53957 | TM10: 64429.8223 | TN10: 52418.98213 | TO10: 76374.78723 | TP10: 57703.18996 | TQ10: 75566.10838 | TR10: 54152.51007 | TS10: 94332.47217 | TT10: 76704.78223 | TU10: 91512.33098 | TV10: 69642.63113 | TW10: 55083.26148 | TX10: 85754.49714 | TY10: 82521.23683 | TZ10: 61245.84765 | UA10: 66964.43059 | UB10: 58437.97148 | UC10: 98442.53258 | UD10: 69357.53269 | UE10: 60393.50167 | UF10: 72859.15078 | UG10: 64002.36076 | UH10: 73526.10089 | UI10: 40231.22043 | UJ10: 78450.51475 | UK10: 71910.32806 | UL10: 67228.53104 | UM10: 88309.68596 | UN10: 51628.80284 | UO10: 52773.44741 | UP10: 53353.78763 | UQ10: 87372.49506 | UR10: 56717.48509 | US10: 77168.52753 | UT10: 80119.77446 | UU10: 72063.87326 | UV10: 73924.75499 | UW10: 54028.23353 | UX10: 61367.87422 | UY10: 72305.98195 | UZ10: 68951.12165 | VA10: 70376.29915 | VB10: 71731.42806 | VC10: 96154.92542 | VD10: 68985.03095 | VE10: 87850.33245 | VF10: 58217.81953 | VG10: 71810.79221 | VH10: 80357.26097 | VI10: 55992.42732 | VJ10: 55494.9849 | VK10: 71858.34418 | VL10: 59932.89618 | VM10: 70747.60927 | VN10: 65187.74585 | VO10: 53788.72797 | VP10: 87105.47696 | VQ10: 73507.76104 | VR10: 58979.03929 | VS10: 57425.16769 | VT10: 50382.3137 | VU10: 70151.04019 | VV10: 58941.04043 | VW10: 62393.86016 | VX10: 68075.24811 | VY10: 74718.35322 | VZ10: 60193.21303 | WA10: 77384.94854 | WB10: 88066.56864 | WC10: 69683.94153 | WD10: 66329.74133 | WE10: 88916.65377 | WF10: 63278.38276 | WG10: 66360.63554 | WH10: 72424.27329 | WI10: 67769.86364 | WJ10: 67312.83531 | WK10: 66099.74805 | WL10: 64490.66176 | WM10: 58602.00032 | WN10: 74997.4377 | WO10: 67805.331 | WP10: 74110.74246 | WQ10: 61939.85822 | WR10: 66034.57939 | WS10: 68299.22215 | WT10: 82010.19722 | WU10: 59697.33827 | WV10: 65268.40386 | WW10: 71723.69266 | WX10: 66740.00593 | WY10: 51029.61944 | WZ10: 77954.10986 | XA10: 76088.49082 | XB10: 81092.92902 | XC10: 78672.0978 | XD10: 86452.59794 | XE10: 53537.18815 | XF10: 73024.17713 | XG10: 64285.78539 | XH10: 73634.13832 | XI10: 75645.45511 | XJ10: 77412.11276 | XK10: 53839.00325 | XL10: 61679.34869 | XM10: 63885.4701 | XN10: 71592.37419 | XO10: 55866.56772 | XP10: 65184.33133 | XQ10: 61943.83369 | XR10: 88229.75365 | XS10: 70331.37233 | XT10: 87861.96575 | XU10: 89365.44879 | XV10: 72966.3602 | XW10: 62493.11651 | XX10: 60036.82801 | XY10: 88376.81963 | XZ10: 53924.23195 | YA10: 51725.13233 | YB10: 78595.14331 | YC10: 80963.35857 | YD10: 72704.6567 | YE10: 76999.6646 | YF10: 63686.31949 | YG10: 58460.13627 | YH10: 58702.77148 | YI10: 57481.81964 | YJ10: 65192.31072 | YK10: 76232.84987 | YL10: 62415.37327 | YM10: 69117.96794 | YN10: 66254.83487 | YO10: 63051.33321 | YP10: 71891.26704 | YQ10: 83106.5494 | YR10: 54402.53797 | YS10: 97441.29364 | YT10: 77923.3015 | YU10: 73867.41764 | YV10: 69723.0339 | YW10: 59785.28223 | YX10: 85736.17282 | YY10: 60933.92263 | YZ10: 60361.78394 | ZA10: 54292.18904 | ZB10: 72173.68606 | ZC10: 47002.83788 | ZD10: 59143.6015 | ZE10: 56622.43227 | ZF10: 60311.77924 | ZG10: 61268.39077 | ZH10: 68322.67035 | ZI10: 57935.18561 | ZJ10: 63217.83702 | ZK10: 63635.9913 | ZL10: 58693.73878 | ZM10: 65843.6932 | ZN10: 87491.43084 | ZO10: 59976.75751 | ZP10: 80014.12084 | ZQ10: 64068.0949 | ZR10: 74563.70184 | ZS10: 70302.82899 | ZT10: 63711.5247 | ZU10: 86258.78444 | ZV10: 59456.40043 | ZW10: 64298.85887 | ZX10: 69116.72735 | ZY10: 63497.61918 | ZZ10: 46850.08166 | AAA10: 61704.74999 | AAB10: 74236.29572 | AAC10: 76483.93317 | AAD10: 88711.97201 | AAE10: 58774.53853 | AAF10: 65985.83428 | AAG10: 53489.80254 | AAH10: 74284.27077 | AAI10: 82081.92847 | AAJ10: 73229.62034 | AAK10: 60909.22519 | AAL10: 67936.7129 | AAM10: 67832.60224 | AAN10: 77446.81383 | AAO10: 66050.16181 | AAP10: 61829.35236 | AAQ10: 77189.4753 | AAR10: 68792.42171 | AAS10: 87383.73203 | AAT10: 63260.95284 | AAU10: 55384.10447 | AAV10: 76397.78196 | AAW10: 73911.95627 | AAX10: 76484.01733 | AAY10: 61537.25423 | AAZ10: 87089.75735 | ABA10: 64259.48165 | ABB10: 68157.91971 | ABC10: 68538.71561 | ABD10: 57503.78868 | ABE10: 78674.19005 | ABF10: 51974.77016 | ABG10: 56670.62592 | ABH10: 65125.40712 | ABI10: 74855.11489 | ABJ10: 60085.1694 | ABK10: 71524.47129 | ABL10: 60619.57374 | ABM10: 60078.20969 | ABN10: 70774.52889 | ABO10: 71354.77468 | ABP10: 59858.82729 | ABQ10: 64875.02568 | ABR10: 64510.55955 | ABS10: 97312.69291 | ABT10: 74464.47074 | ABU10: 45259.13003 | ABV10: 57756.19286 | ABW10: 52316.25415 | ABX10: 72994.87316 | ABY10: 55973.47814 | ABZ10: 98163.90709 | ACA10: 88563.88449 | ACB10: 66261.9206 | ACC10: 52532.03101 | ACD10: 64547.92347 | ACE10: 69125.44468 | ACF10: 50412.07444 | ACG10: 54180.17222 | ACH10: 62516.69107 | ACI10: 67628.3285 | ACJ10: 70245.7096 | ACK10: 75638.2945 | ACL10: 77183.11312 | ACM10: 71497.83031 | ACN10: 46675.14649 | ACO10: 53000.40912 | ACP10: 66841.71366 | ACQ10: 77185.28594 | ACR10: 45984.78741 | ACS10: 75705.83708 | ACT10: 71633.70359 | ACU10: 66433.32474 | ACV10: 73773.56983 | ACW10: 54980.62089 | ACX10: 78595.68702 | ACY10: 94207.22104 | ACZ10: 61209.6599 | ADA10: 71931.62629 | ADB10: 59845.02876 | ADC10: 68913.79123 | ADD10: 91795.94581 | ADE10: 57524.48126 | ADF10: 58456.34304 | ADG10: 72073.1108 | ADH10: 60449.61844 | ADI10: 42638.57611 | ADJ10: 56662.99801 | ADK10: 54859.72438 | ADL10: 106306.0834 | ADM10: 57474.09496 | ADN10: 78176.13048 | ADO10: 96987.85266 | ADP10: 65007.71645 | ADQ10: 79537.88292 | ADR10: 81534.19979 | ADS10: 67915.00589 | ADT10: 53583.44209 | ADU10: 55607.31665 | ADV10: 80897.81167 | ADW10: 91644.52116 | ADX10: 67466.02686 | ADY10: 54474.54886 | ADZ10: 56204.35867 | AEA10: 61998.89928 | AEB10: 66760.26741 | AEC10: 80261.09335 | AED10: 76293.51714 | AEE10: 59579.60877 | AEF10: 70674.71716 | AEG10: 59154.46143 | AEH10: 73118.84359 | AEI10: 63005.55215 | AEJ10: 55446.06745 | AEK10: 66902.25776 | AEL10: 63013.88758 | AEM10: 62421.99037 | AEN10: 79967.34007 | AEO10: 81924.98154 | AEP10: 74093.88657 | AEQ10: 84167.67037 | AER10: 57373.35635 | AES10: 64224.86691 | AET10: 66473.87866 | AEU10: 67100.3746 | AEV10: 72546.62504 | AEW10: 75595.99127 | AEX10: 50317.4234 | AEY10: 74857.90829 | AEZ10: 65682.33411 | AFA10: 72223.07285 | AFB10: 62318.50491 | AFC10: 133383.6119 | AFD10: 61946.17627 | AFE10: 72660.02777 | AFF10: 60027.04824 | AFG10: 57918.1029 | AFH10: 71758.11022 | AFI10: 86267.03908 | AFJ10: 62680.91399 | AFK10: 100161.8295 | AFL10: 52908.08929 | AFM10: 65873.54834 | AFN10: 67058.99649 | AFO10: 62753.54717 | AFP10: 67276.87618 | AFQ10: 62963.53847 | AFR10: 55449.11755 | AFS10: 83577.72111 | AFT10: 79255.46171 | AFU10: 77508.58035 | AFV10: 82600.85385 | AFW10: 53469.17761 | AFX10: 68766.36536 | AFY10: 50318.07665 | AFZ10: 61758.23039 | AGA10: 54830.85712 | AGB10: 59074.60519 | AGC10: 59629.23589 | AGD10: 63478.34993 | AGE10: 69409.60682 | AGF10: 75400.84821 | AGG10: 67014.89897 | AGH10: 71559.47858 | AGI10: 87737.82549 | AGJ10: 76594.59169 | AGK10: 64524.51972 | AGL10: 74389.50994 | AGM10: 64687.50862 | AGN10: 57486.59983 | AGO10: 56366.27103 | AGP10: 79333.81799 | AGQ10: 94770.24624 | AGR10: 66151.16911 | AGS10: 82611.8149 | AGT10: 83521.53317 | AGU10: 78534.97018 | AGV10: 54431.05404 | AGW10: 72002.30691 | AGX10: 82267.39072 | AGY10: 102050.2076 | AGZ10: 71269.65786 | AHA10: 52782.27091 | AHB10: 74560.23791 | AHC10: 68307.88546 | AHD10: 50555.88769 | AHE10: 70507.57625 | AHF10: 62017.56562 | AHG10: 61811.01018 | AHH10: 61316.55918 | AHI10: 70737.31156 | AHJ10: 75329.18029 | AHK10: 64484.66579 | AHL10: 79138.41256 | AHM10: 72364.96735 | AHN10: 56253.10732 | AHO10: 83273.58098 | AHP10: 72995.90469 | AHQ10: 56957.40065 | AHR10: 79216.60166 | AHS10: 66680.28182 | AHT10: 66559.30007 | AHU10: 53745.49132 | AHV10: 90614.49747 | AHW10: 54081.9683 | AHX10: 59637.1931 | AHY10: 75519.03927 | AHZ10: 57363.93792 | AIA10: 48839.10717 | AIB10: 97679.10229 | AIC10: 43162.62364 | AID10: 67389.07176 | AIE10: 62674.39665 | AIF10: 65167.73215 | AIG10: 78322.42204 | AIH10: 62163.67404 | AII10: 60339.68819 | AIJ10: 65340.27765 | AIK10: 75156.35858 | AIL10: 99344.35798 | AIM10: 75133.79509 | AIN10: 60858.43373 | AIO10: 63335.3521 | AIP10: 66138.37888 | AIQ10: 61073.50125 | AIR10: 50967.06708 | AIS10: 67036.66121 | AIT10: 50734.86179 | AIU10: 69188.73231 | AIV10: 117612.9488 | AIW10: 59605.41985 | AIX10: 77639.48296 | AIY10: 70326.00417 | AIZ10: 51773.12589 | AJA10: 59021.23023 | AJB10: 73398.21179 | AJC10: 79497.4347 | AJD10: 64598.58045 | AJE10: 104117.8099 | AJF10: 44359.50743 | AJG10: 69275.42716 | AJH10: 70884.91435 | AJI10: 61786.40668 | AJJ10: 58410.61398 | AJK10: 75512.60301 | AJL10: 72189.57942 | AJM10: 67574.77552 | AJN10: 54882.88051 | AJO10: 73415.52955 | AJP10: 71287.73909 | AJQ10: 74703.54393 | AJR10: 40803.04791 | AJS10: 64700.1535 | AJT10: 80489.70767 | AJU10: 81741.62355 | AJV10: 58554.6441 | AJW10: 65613.65257 | AJX10: 54688.79472 | AJY10: 73044.49407 | AJZ10: 73338.36602 | AKA10: 72708.06121 | AKB10: 71543.351 | AKC10: 60905.1045 | AKD10: 76902.91186 | AKE10: 89451.50758 | AKF10: 70701.30347 | AKG10: 50420.89471 | AKH10: 67546.85445 | AKI10: 59812.22513 | AKJ10: 81149.63153 | AKK10: 55283.24927 | AKL10: 54316.15609 | AKM10: 65840.48554 | AKN10: 63121.34483 | AKO10: 74436.07768 | AKP10: 69592.55102 | AKQ10: 87957.9821 | AKR10: 89857.20682 | AKS10: 91379.96993 | AKT10: 75310.15706 | AKU10: 57404.65325 | AKV10: 67929.37531 | AKW10: 85320.71991 | AKX10: 59784.51926 | AKY10: 84518.9247 | AKZ10: 72718.01603 | ALA10: 66604.58764 | ALB10: 61131.7974 | ALC10: 82770.89235 | ALD10: 63361.43073 | ALE10: 58658.97752 | ALF10: 54904.03314 | ALG10: 58161.86893 | ALH10: 73721.04148 | ALI10: 73780.74081 | ALJ10: 60994.33307 | ALK10: 58376.00639 | ALL10: 69066.7683 | ALM10: 63663.00259 | ALN10: 57202.11344 | ALO10: 99402.76216 | ALP10: 61336.12218 | ALQ10: 71571.61343 | ALR10: 59598.38553 | ALS10: 63133.97386 | ALT10: 71446.5319 | ALU10: 70267.26984 | ALV10: 62411.65433 | ALW10: 91259.7541 | ALX10: 74219.15294 | ALY10: 90614.74011 | ALZ10: 49581.80804 | AMA10: 91494.71564 | AMB10: 59322.07421 | AMC10: 65892.16293 | AMD10: 52028.99984 | AME10: 72715.77823 | AMF10: 63450.5781 | AMG10: 63885.12612 | AMH10: 47375.83193 | AMI10: 68490.41855 | AML10: =IFERROR(AVERAGEIFS($X10:$AMI10,$X10:$AMI10,"<"&SMALL($X10:$AMI10,AMM$7),$X10:$AMI10,">"&SMALL($X10:$AMI10,AMK$7)),"") -> 50430.7174 | AMM10: 54232.84115 | AMN10: 56377.48333 | AMO10: 58251.56292 | AMP10: 59701.94019 | AMQ10: 61097.18116 | AMR10: 62663.66581 | AMS10: 64250.95909 | AMT10: 65858.32077 | AMU10: 67365.27271 | AMV10: 68895.33279 | AMW10: 70598.84177 | AMX10: 72166.35744 | AMY10: 73690.66485 | AMZ10: 75463.26711 | ANA10: 77683.66328 | ANB10: 80563.99358 | ANC10: 84836.14225 | AND10: 92476.13551 | ANF10: =IFERROR(AVERAGEIFS($X$7:$AMI$7,$X10:$AMI10,"<"&SMALL($X10:$AMI10,AMM$7),$X10:$AMI10,">"&SMALL($X10:$AMI10,AMK$7)),"") -> 1899.146411 | ANG10: 2281.386007 | ANH10: 2646.552943 | ANI10: 2308.868232 | ANJ10: 2303.229837 | ANK10: 3580.345656 | ANL10: 3401.876964 | ANM10: 2911.659321 | ANN10: 3246.378674 | ANO10: 3703.383507 | ANP10: 4770.112458 | ANQ10: 6029.359858 | ANR10: 6583.611372 | ANS10: 6651.690697 | ANT10: 6932.283724 | ANU10: 7031.142902 | ANV10: 7412.117158 | ANW10: 7634.280146 | ANX10: 9646.272329 | ANY10: =IFERROR(MATCH(MIN(ABS(ANF10:ANX10)),ABS(ANF10:ANX10),0),"") -> 1 | ANZ10: =IFERROR(INDEX(ANF10:ANX10,MIN(MAX(ANY10-1,1),17)),"") -> 1899.146411 | AOA10: =IFERROR(INDEX(ANF10:ANX10,MIN(MAX(ANY10,2),18)),"") -> 2281.386007 | AOB10: =IFERROR(INDEX(ANF10:ANX10,MIN(MAX(ANY10,3),19)),"") -> 2646.552943 | AOC10: =IFERROR(INDEX(AML10:AND10,MIN(MAX(ANY10-1,1),17)),"") -> 50430.7174 | AOD10: =IFERROR(INDEX(AML10:AND10,MIN(MAX(ANY10,2),18)),"") -> 54232.84115 | AOE10: =IFERROR(INDEX(AML10:AND10,MIN(MAX(ANY10,3),19)),"") -> 56377.48333 | AOF10: 35538.4294
A11: =ROW(Variables[[#This Row],[Variable Name]])-ROW(Variables[[#Headers],[Variable Name]]) -> 3 | B11: Initial development costs (2020) | C11: DevC | D11: =IF(COUNTA(Variables[[#This Row],[Lower Bound]], Variables[[#This Row],[Mode or P]], Variables[[#This Row],[Upper Bound]])=0, "", IF(Variables[[#This Row],[Shape]]="Constant",Variables[[#This Row],[Mode or P]],IF(Variables[[#This Row],[Shape]]="Lognorm",LOGINV(Variables[[#This Row],[Uniform PRNG]],((LN(Variables[[#This Row],[Lower Bound]]) + LN(Variables[[#This Row],[Upper Bound]]))/2),((LN(Variables[[#This Row],[Upper Bound]]) - LN(Variables[[#This Row],[Lower Bound]]))/3.28971)),IF(Variables[[#This Row],[Shape]]="Normal",NORMINV(Variables[[#This Row],[Uniform PRNG]],(Variables[[#This Row],[Upper Bound]]+Variables[[#This Row],[Lower Bound]])/2,(Variables[[#This Row],[Upper Bound]]-Variables[[#This Row],[Lower Bound]])/3.29),IF(Variables[[#This Row],[Shape]]="Uniform",(Variables[[#This Row],[Upper Bound]]-Variables[[#This Row],[Lower Bound]])*Variables[[#This Row],[Uniform PRNG]]+Variables[[#This Row],[Lower Bound]],IF(Variables[[#This Row],[Shape]]="Binary",IF(Variables[[#This Row],[Uniform PRNG]]<Variables[[#This Row],[Mode or P]],1,0),IF(Variables[[#This Row],[Shape]]="Triangular",IF(Variables[[#This Row],[Uniform PRNG]]<(Variables[[#This Row],[Mode or P]]-Variables[[#This Row],[Lower Bound]])/(Variables[[#This Row],[Upper Bound]]-Variables[[#This Row],[Lower Bound]]), 1, 0) * (Variables[[#This Row],[Lower Bound]] + SQRT(Variables[[#This Row],[Uniform PRNG]]*(Variables[[#This Row],[Upper Bound]]-Variables[[#This Row],[Lower Bound]])*(Variables[[#This Row],[Mode or P]]-Variables[[#This Row],[Lower Bound]]))) + IF(Variables[[#This Row],[Uniform PRNG]]>= (Variables[[#This Row],[Mode or P]]-Variables[[#This Row],[Lower Bound]])/(Variables[[#This Row],[Upper Bound]]-Variables[[#This Row],[Lower Bound]]), 1, 0) * (Variables[[#This Row],[Upper Bound]] - SQRT((1-Variables[[#This Row],[Uniform PRNG]]) * (Variables[[#This Row],[Upper Bound]] - Variables[[#This Row],[Lower Bound]]) * (Variables[[#This Row],[Upper Bound]] - Variables[[#This Row],[Mode or P]]))),""))))))) -> 13321.95772 | E11: Lognorm | F11: 5000 | H11: 15000 | I11: CE, PM 2/15/2019 | J11: =IFERROR(IF(OR(MIN(Variables[[#This Row],[P(X<T)]], Variables[[#This Row],[P(X>T)]])<0.002,SIGN(Variables[[#This Row],[EOL(X<T)]])=SIGN(Variables[[#This Row],[EOL(X>T)]])),0,IFERROR(IF(B$38=1,IF(Variables[[#This Row],[EOL(X<T)]]<Variables[[#This Row],[EOL(X>T)]],-Variables[[#This Row],[EOL(X<T)]]*Variables[[#This Row],[P(X<T)]],-Variables[[#This Row],[EOL(X>T)]]*Variables[[#This Row],[P(X>T)]]),IF(Variables[[#This Row],[EOL(X<T)]]>Variables[[#This Row],[EOL(X>T)]],Variables[[#This Row],[EOL(X<T)]]*Variables[[#This Row],[P(X<T)]],Variables[[#This Row],[EOL(X>T)]]*Variables[[#This Row],[P(X>T)]])),"")),0) -> 111.7984918 | K11: =IF(Variables[[#This Row],[Shape]]="Constant",Variables[[#This Row],[Mode or P]],IF(Variables[[#This Row],[Shape]]="Lognorm",EXP((LN(Variables[[#This Row],[Upper Bound]])+LN(Variables[[#This Row],[Lower Bound]]))/2+((LN(Variables[[#This Row],[Upper Bound]])-LN(Variables[[#This Row],[Lower Bound]]))/3.29)^2/2),IF(Variables[[#This Row],[Shape]]="Normal",(Variables[[#This Row],[Lower Bound]]+Variables[[#This Row],[Upper Bound]])/2,IF(Variables[[#This Row],[Shape]]="Uniform",(Variables[[#This Row],[Lower Bound]]+Variables[[#This Row],[Upper Bound]])/2,IF(Variables[[#This Row],[Shape]]="Binary",Variables[[#This Row],[Mode or P]],IF(Variables[[#This Row],[Shape]]="Triangular",(Variables[[#This Row],[Lower Bound]]+Variables[[#This Row],[Mode or P]]+Variables[[#This Row],[Upper Bound]])/3,"")))))) -> 9156.801276 | L11: =IF(Variables[[#This Row],[Shape]]="","",(MOD((MOD(MOD(999999999999989,MOD(ScenarioNum*2499997+Variables[[#This Row],[VarID]]*1800451,7450589)*4658+7450581)*383,99991)*231109+MOD(MOD(999999999999989,MOD(ScenarioNum*2246527+Variables[[#This Row],[VarID]]*2399993,7450987)*7580+7560584)*547,231109))*43271,4294967296)+0.5)/4294967296) -> 0.9014064128 | M11: =IF(Variables[[#This Row],[Shape]]="Binary", 1-Variables[[#This Row],[Mode or P]], IF(Variables[[#This Row],[Shape]]<>"",COUNTIF(INDEX($X$9:$AMI$159, ROW(Variables[[#This Row],[Variable Name]])-ROW(Variables[[#Headers],[Variable Name]]), ),"<"&Variables[[#This Row],[Threshold Estimate]])/1000,"")) -> 0.95 | N11: =IF(Variables[[#This Row],[Shape]]<>"",1-Variables[[#This Row],[P(X<T)]],"") -> 0.05 | O11: =IFERROR(AVERAGEIFS(X$7:AMI$7,INDEX(X$9:$AMI$159, ROW(Variables[[#This Row],[Variable Name]])-ROW(Variables[[#Headers],[Variable Name]]), ),IF(Variables[[#This Row],[Shape]]="Binary","=0","<"&Variables[[#This Row],[Threshold Estimate]])),"") -> 5231.422125 | P11: =IFERROR(AVERAGEIFS(X$7:AMI$7,INDEX($X$9:$AMI$159, ROW(Variables[[#This Row],[Variable Name]])-ROW(Variables[[#Headers],[Variable Name]]), ),IF(Variables[[#This Row],[Shape]]="Binary","=1",">"&Variables[[#This Row],[Threshold Estimate]])),"") -> -2235.969835 | Q11: =IFERROR(IF(Variables[[#This Row],[Shape]]="Binary",IF(B$38=1,IF(Variables[[#This Row],[EOL(X<T)]]<Variables[[#This Row],[EOL(X>T)]],0,1),IF(Variables[[#This Row],[EOL(X<T)]]<Variables[[#This Row],[EOL(X>T)]],1,0)), INDEX($AOF$9:$AOF$159, ROW(Variables[[#This Row],[Variable Name]])-ROW(Variables[[#Headers],[Variable Name]]))),"") -> 15102.28182 | S11: Lognorm | V11: =IFERROR(IF(ISBLANK(Variables[[#This Row],[Variable Name]]), "", Variables[[#This Row],[Variable Name]]), "") -> Initial development costs (2020) | W11: =IFERROR(IF(ISBLANK(D11), "", D11), "") -> 13321.95772 | X11: 6210.009759 | Y11: 8988.734061 | Z11: 12967.80336 | AA11: 7779.829055 | AB11: 6881.263845 | AC11: 7811.790769 | AD11: 5090.360564 | AE11: 13177.38843 | AF11: 15510.34562 | AG11: 4601.400298 | AH11: 10577.48633 | AI11: 5316.381751 | AJ11: 9019.101121 | AK11: 10021.9795 | AL11: 11325.35273 | AM11: 5665.411452 | AN11: 7098.474485 | AO11: 8558.041073 | AP11: 11870.67153 | AQ11: 8567.711535 | AR11: 9796.239596 | AS11: 10515.89943 | AT11: 7321.678603 | AU11: 9519.937559 | AV11: 8077.901761 | AW11: 6477.5053 | AX11: 6396.542718 | AY11: 10878.34143 | AZ11: 12405.13604 | BA11: 11422.64436 | BB11: 7304.529239 | BC11: 11371.9062 | BD11: 7699.00339 | BE11: 6446.74905 | BF11: 14982.61541 | BG11: 11402.2357 | BH11: 6093.679743 | BI11: 13072.38913 | BJ11: 10238.39794 | BK11: 18122.54306 | BL11: 4260.607437 | BM11: 8694.192156 | BN11: 17345.08136 | BO11: 14568.18681 | BP11: 11582.74625 | BQ11: 6522.057435 | BR11: 4055.52795 | BS11: 10661.64115 | BT11: 13430.25021 | BU11: 6005.123296 | BV11: 6656.956117 | BW11: 7015.008277 | BX11: 10457.26807 | BY11: 8318.877316 | BZ11: 4035.525798 | CA11: 7243.181614 | CB11: 6354.508908 | CC11: 10359.97502 | CD11: 7145.201755 | CE11: 5692.032876 | CF11: 7737.44021 | CG11: 11708.8752 | CH11: 19167.44016 | CI11: 8485.783633 | CJ11: 10853.67066 | CK11: 9015.458867 | CL11: 10827.13137 | CM11: 6169.570084 | CN11: 5564.935695 | CO11: 4751.647735 | CP11: 9288.699146 | CQ11: 10300.27049 | CR11: 6991.091267 | CS11: 9669.451871 | CT11: 4090.353485 | CU11: 6000.387238 | CV11: 12816.18811 | CW11: 11952.10468 | CX11: 6447.236341 | CY11: 11673.2119 | CZ11: 6326.866513 | DA11: 9464.333469 | DB11: 6824.645295 | DC11: 7037.891122 | DD11: 9627.184705 | DE11: 5456.138422 | DF11: 3726.894957 | DG11: 13164.95994 | DH11: 5795.959548 | DI11: 15324.93734 | DJ11: 11680.69598 | DK11: 8442.424991 | DL11: 7194.653207 | DM11: 4645.345528 | DN11: 8651.448334 | DO11: 4442.863201 | DP11: 6026.164318 | DQ11: 12533.51721 | DR11: 12047.58543 | DS11: 12193.16396 | DT11: 10990.02623 | DU11: 13349.30534 | DV11: 18109.12515 | DW11: 6651.840646 | DX11: 11487.18691 | DY11: 5631.552426 | DZ11: 12633.66104 | EA11: 6065.511311 | EB11: 7687.818173 | EC11: 8750.55092 | ED11: 13806.37976 | EE11: 13799.78516 | EF11: 7118.833326 | EG11: 7221.002703 | EH11: 8768.597821 | EI11: 8676.157168 | EJ11: 6267.462735 | EK11: 7087.017483 | EL11: 10497.78516 | EM11: 16928.26394 | EN11: 8549.036257 | EO11: 12195.32121 | EP11: 10530.02694 | EQ11: 11504.81326 | ER11: 9486.235301 | ES11: 12093.64821 | ET11: 19447.80699 | EU11: 8338.218848 | EV11: 9667.294954 | EW11: 16023.26821 | EX11: 4770.914718 | EY11: 8285.977571 | EZ11: 19092.42673 | FA11: 7764.599443 | FB11: 8796.89584 | FC11: 8152.64381 | FD11: 6186.889162 | FE11: 7644.573599 | FF11: 11129.01701 | FG11: 6096.344748 | FH11: 6234.023581 | FI11: 9236.314426 | FJ11: 6782.371135 | FK11: 11812.66816 | FL11: 8507.768036 | FM11: 6474.674463 | FN11: 7164.859293 | FO11: 9313.445361 | FP11: 8760.508322 | FQ11: 7370.00574 | FR11: 15427.83681 | FS11: 6753.041005 | FT11: 15800.47883 | FU11: 9978.847873 | FV11: 9747.590962 | FW11: 5608.275587 | FX11: 10624.6511 | FY11: 13966.58006 | FZ11: 8117.444779 | GA11: 7810.542318 | GB11: 5065.456405 | GC11: 6362.644691 | GD11: 19583.12065 | GE11: 4288.065782 | GF11: 14266.85071 | GG11: 6997.213275 | GH11: 10776.15392 | GI11: 7255.241064 | GJ11: 9711.30119 | GK11: 9062.768151 | GL11: 7336.700891 | GM11: 9034.277333 | GN11: 7455.52531 | GO11: 6206.404072 | GP11: 11786.86511 | GQ11: 8494.805141 | GR11: 8848.379652 | GS11: 6055.645804 | GT11: 7158.428896 | GU11: 9469.934691 | GV11: 4494.515096 | GW11: 15021.15034 | GX11: 9885.945067 | GY11: 11793.02646 | GZ11: 5245.704852 | HA11: 5268.267111 | HB11: 10205.98994 | HC11: 8010.312653 | HD11: 10427.96555 | HE11: 8495.972661 | HF11: 8635.220552 | HG11: 6047.096335 | HH11: 10339.2104 | HI11: 9033.0319 | HJ11: 6640.315448 | HK11: 10143.43873 | HL11: 5137.122932 | HM11: 8755.988546 | HN11: 7504.062268 | HO11: 7232.470209 | HP11: 9072.60835 | HQ11: 6842.744086 | HR11: 14465.18375 | HS11: 5726.640472 | HT11: 6901.606601 | HU11: 13031.24025 | HV11: 8097.025934 | HW11: 9856.158357 | HX11: 13842.18171 | HY11: 12991.99933 | HZ11: 5714.302986 | IA11: 6371.99171 | IB11: 8245.552137 | IC11: 7363.67736 | ID11: 9256.232837 | IE11: 9100.608493 | IF11: 12670.93231 | IG11: 10930.95744 | IH11: 9806.30163 | II11: 6275.10341 | IJ11: 4182.388489 | IK11: 6938.358914 | IL11: 6990.143703 | IM11: 12757.44433 | IN11: 11109.39641 | IO11: 14689.2352 | IP11: 6073.417543 | IQ11: 14855.43541 | IR11: 7866.165991 | IS11: 6174.279055 | IT11: 8703.642528 | IU11: 7184.407075 | IV11: 5480.311112 | IW11: 7619.066828 | IX11: 8313.863126 | IY11: 8164.826777 | IZ11: 7212.903889 | JA11: 4891.060863 | JB11: 15219.31222 | JC11: 5990.485521 | JD11: 12941.16778 | JE11: 8776.521732 | JF11: 6388.506254 | JG11: 8093.684163 | JH11: 10830.1155 | JI11: 5932.678737 | JJ11: 7841.260969 | JK11: 12822.3815 | JL11: 5569.58174 | JM11: 10558.31142 | JN11: 7051.891239 | JO11: 8741.59852 | JP11: 4000.221998 | JQ11: 10035.31236 | JR11: 6298.463328 | JS11: 11101.39223 | JT11: 13321.95772 | JU11: 9851.921799 | JV11: 9981.653379 | JW11: 5973.688717 | JX11: 7992.184604 | JY11: 13176.32785 | JZ11: 6660.536692 | KA11: 7865.191091 | KB11: 6739.01322 | KC11: 11498.70182 | KD11: 9300.40294 | KE11: 16968.53479 | KF11: 6745.300036 | KG11: 13165.36551 | KH11: 16230.84028 | KI11: 7526.337985 | KJ11: 7913.570071 | KK11: 7849.499492 | KL11: 3768.223929 | KM11: 7692.432022 | KN11: 4220.362805 | KO11: 12069.5306 | KP11: 13476.73154 | KQ11: 7669.802782 | KR11: 10180.3404 | KS11: 8245.999475 | KT11: 8035.640656 | KU11: 7712.399072 | KV11: 6312.298135 | KW11: 10479.36257 | KX11: 5234.409478 | KY11: 6429.755194 | KZ11: 10243.30983 | LA11: 11965.39956 | LB11: 7060.131161 | LC11: 8344.106196 | LD11: 7037.724519 | LE11: 6852.727577 | LF11: 11038.47423 | LG11: 8313.572158 | LH11: 7586.511661 | LI11: 6853.975719 | LJ11: 6341.036948 | LK11: 6398.387198 | LL11: 4446.543735 | LM11: 6835.341064 | LN11: 9940.862982 | LO11: 12310.47735 | LP11: 6755.19076 | LQ11: 10139.90788 | LR11: 6148.61122 | LS11: 5728.542953 | LT11: 9949.116546 | LU11: 8179.998009 | LV11: 5982.61092 | LW11: 10072.64004 | LX11: 12824.94663 | LY11: 8963.686606 | LZ11: 11183.61962 | MA11: 5937.109416 | MB11: 8528.842463 | MC11: 6751.343168 | MD11: 7439.030554 | ME11: 10479.52274 | MF11: 11102.45161 | MG11: 5240.339247 | MH11: 8744.963289 | MI11: 8709.097224 | MJ11: 9876.967566 | MK11: 6498.25615 | ML11: 9904.05792 | MM11: 5910.143118 | MN11: 11061.74384 | MO11: 7199.717637 | MP11: 5890.226845 | MQ11: 4755.297511 | MR11: 10984.92747 | MS11: 13596.08387 | MT11: 11315.14977 | MU11: 9660.843016 | MV11: 8824.735804 | MW11: 12648.04076 | MX11: 8806.196971 | MY11: 5998.944049 | MZ11: 10441.24457 | NA11: 9571.384625 | NB11: 9307.121556 | NC11: 8037.774148 | ND11: 10001.64878 | NE11: 8199.729525 | NF11: 4763.338924 | NG11: 8634.481689 | NH11: 10536.71745 | NI11: 14080.80057 | NJ11: 13971.94155 | NK11: 10162.5016 | NL11: 11454.72463 | NM11: 5616.853095 | NN11: 5817.406379 | NO11: 8396.080737 | NP11: 9156.410539 | NQ11: 12588.82808 | NR11: 11004.22663 | NS11: 5052.353965 | NT11: 6835.041277 | NU11: 5345.126738 | NV11: 9885.65649 | NW11: 4920.491584 | NX11: 12943.76888 | NY11: 13306.90564 | NZ11: 10582.76371 | OA11: 11314.05091 | OB11: 5165.838356 | OC11: 14034.64301 | OD11: 11425.44203 | OE11: 12022.53305 | OF11: 10631.90382 | OG11: 37718.54717 | OH11: 6258.55308 | OI11: 6689.268987 | OJ11: 7617.496906 | OK11: 8409.953335 | OL11: 9030.11007 | OM11: 6150.250274 | ON11: 7379.147921 | OO11: 8570.240391 | OP11: 3533.732169 | OQ11: 9136.672018 | OR11: 17492.60446 | OS11: 15629.98808 | OT11: 14498.18514 | OU11: 7156.924461 | OV11: 8884.124399 | OW11: 6132.09772 | OX11: 8449.224059 | OY11: 8328.999311 | OZ11: 10776.19716 | PA11: 7427.002176 | PB11: 7613.546693 | PC11: 8618.051965 | PD11: 3725.713468 | PE11: 4066.158418 | PF11: 12116.70743 | PG11: 7230.608625 | PH11: 10398.96454 | PI11: 16912.18329 | PJ11: 9888.669962 | PK11: 4532.433239 | PL11: 7992.013846 | PM11: 7152.091486 | PN11: 13981.22673 | PO11: 6280.548554 | PP11: 10248.27551 | PQ11: 9863.290271 | PR11: 5231.412207 | PS11: 10979.98076 | PT11: 8417.895978 | PU11: 10273.00733 | PV11: 5332.663117 | PW11: 5987.817524 | PX11: 12433.8942 | PY11: 5092.890368 | PZ11: 6593.6765 | QA11: 8385.727451 | QB11: 6354.132027 | QC11: 7448.428619 | QD11: 6452.166605 | QE11: 4229.715473 | QF11: 4349.031135 | QG11: 5377.647259 | QH11: 7140.828143 | QI11: 6746.10492 | QJ11: 9743.568792 | QK11: 8980.84352 | QL11: 20916.37787 | QM11: 7135.514933 | QN11: 4167.035819 | QO11: 8764.757781 | QP11: 12586.89073 | QQ11: 8709.658035 | QR11: 10048.32872 | QS11: 10267.9386 | QT11: 13491.08364 | QU11: 10890.69853 | QV11: 7754.615532 | QW11: 10714.89059 | QX11: 7091.443507 | QY11: 8133.45655 | QZ11: 12633.14719 | RA11: 7810.247196 | RB11: 6103.82284 | RC11: 7837.46648 | RD11: 6835.064425 | RE11: 8852.015471 | RF11: 8965.180407 | RG11: 14674.23968 | RH11: 8449.291989 | RI11: 5508.14071 | RJ11: 9225.334949 | RK11: 11513.09476 | RL11: 10711.12906 | RM11: 10116.29263 | RN11: 9816.968636 | RO11: 13405.55147 | RP11: 22070.8611 | RQ11: 7777.409782 | RR11: 4706.446171 | RS11: 4329.588504 | RT11: 6133.474019 | RU11: 7650.976539 | RV11: 6854.005494 | RW11: 11027.42663 | RX11: 5564.668389 | RY11: 9738.668535 | RZ11: 8604.955505 | SA11: 9315.098065 | SB11: 7615.548254 | SC11: 7192.564762 | SD11: 6048.681635 | SE11: 11154.18924 | SF11: 9152.164004 | SG11: 7386.626386 | SH11: 14291.78784 | SI11: 7829.928878 | SJ11: 10198.85783 | SK11: 4753.893226 | SL11: 9843.061895 | SM11: 11403.70142 | SN11: 10270.89335 | SO11: 6331.395365 | SP11: 7647.11845 | SQ11: 8306.461818 | SR11: 8336.633361 | SS11: 8578.188713 | ST11: 8218.306248 | SU11: 7641.151582 | SV11: 6232.558178 | SW11: 12252.97195 | SX11: 8054.317844 | SY11: 11029.18585 | SZ11: 7939.938399 | TA11: 11321.18345 | TB11: 8843.351251 | TC11: 11824.52248 | TD11: 7502.958428 | TE11: 10104.72984 | TF11: 9664.040603 | TG11: 8397.416246 | TH11: 10414.15072 | TI11: 7405.566771 | TJ11: 8890.444101 | TK11: 8758.134395 | TL11: 6149.166307 | TM11: 8843.13468 | TN11: 7300.697476 | TO11: 8815.595567 | TP11: 9161.346898 | TQ11: 10018.3202 | TR11: 5301.063368 | TS11: 16782.8425 | TT11: 10642.78906 | TU11: 6775.666555 | TV11: 15723.7931 | TW11: 16704.11511 | TX11: 10913.24074 | TY11: 7275.582164 | TZ11: 7640.917896 | UA11: 9668.485817 | UB11: 5331.579294 | UC11: 11717.98947 | UD11: 7515.385863 | UE11: 6233.576028 | UF11: 17424.03217 | UG11: 7751.058437 | UH11: 7990.250798 | UI11: 8209.912813 | UJ11: 8695.891882 | UK11: 5477.210271 | UL11: 8091.69027 | UM11: 13236.75664 | UN11: 6311.017157 | UO11: 6820.539017 | UP11: 8938.17911 | UQ11: 9836.135826 | UR11: 5311.539801 | US11: 12337.0633 | UT11: 10276.70502 | UU11: 11735.27234 | UV11: 8590.599739 | UW11: 7128.734473 | UX11: 15381.33413 | UY11: 5703.509853 | UZ11: 4362.803293 | VA11: 5470.478651 | VB11: 9062.240447 | VC11: 12304.42787 | VD11: 8657.942191 | VE11: 6557.482464 | VF11: 7675.004664 | VG11: 7644.732568 | VH11: 10873.28824 | VI11: 11248.1535 | VJ11: 9719.015131 | VK11: 5698.868667 | VL11: 7298.477291 | VM11: 7143.587927 | VN11: 13315.72581 | VO11: 6549.298501 | VP11: 7725.866427 | VQ11: 8108.75786 | VR11: 8513.457002 | VS11: 8341.342788 | VT11: 6418.057429 | VU11: 4610.276161 | VV11: 10386.48849 | VW11: 9806.28012 | VX11: 9081.055071 | VY11: 7740.117779 | VZ11: 6307.436218 | WA11: 9905.510233 | WB11: 5384.707017 | WC11: 10294.83989 | WD11: 17356.037 | WE11: 7522.714337 | WF11: 6318.251057 | WG11: 7799.515433 | WH11: 9054.171498 | WI11: 9904.470875 | WJ11: 7259.628744 | WK11: 6363.73471 | WL11: 5765.247682 | WM11: 9558.598297 | WN11: 6270.103904 | WO11: 6571.003381 | WP11: 8104.613706 | WQ11: 16623.11897 | WR11: 5899.194407 | WS11: 9620.456967 | WT11: 17170.59523 | WU11: 11749.54228 | WV11: 7721.123276 | WW11: 12871.95202 | WX11: 5993.058551 | WY11: 8557.716125 | WZ11: 6531.969403 | XA11: 8069.753439 | XB11: 13507.23297 | XC11: 8596.096899 | XD11: 11095.62977 | XE11: 6440.30956 | XF11: 11690.12497 | XG11: 12550.58833 | XH11: 7711.423574 | XI11: 9146.463608 | XJ11: 6734.10731 | XK11: 6430.214185 | XL11: 7893.807846 | XM11: 6966.347431 | XN11: 11856.51691 | XO11: 9049.819613 | XP11: 7077.773976 | XQ11: 8044.89324 | XR11: 10733.93927 | XS11: 13479.65367 | XT11: 8206.009598 | XU11: 12620.20546 | XV11: 4548.075208 | XW11: 7968.650475 | XX11: 9833.378595 | XY11: 7299.239489 | XZ11: 8142.685356 | YA11: 11625.05086 | YB11: 8726.571798 | YC11: 7878.102402 | YD11: 3708.094429 | YE11: 7227.390091 | YF11: 8419.958693 | YG11: 15893.80445 | YH11: 6327.648987 | YI11: 15381.26853 | YJ11: 9027.529534 | YK11: 7307.331377 | YL11: 4239.456167 | YM11: 8109.16937 | YN11: 17105.37663 | YO11: 7394.869724 | YP11: 13934.41666 | YQ11: 9184.2805 | YR11: 10797.61745 | YS11: 3385.890494 | YT11: 6760.316439 | YU11: 9784.194845 | YV11: 5662.033968 | YW11: 10539.84463 | YX11: 14065.79203 | YY11: 12441.63451 | YZ11: 4975.126789 | ZA11: 8986.817579 | ZB11: 13794.63303 | ZC11: 6870.9433 | ZD11: 8331.529121 | ZE11: 6671.917024 | ZF11: 15840.61035 | ZG11: 6755.467855 | ZH11: 10684.37622 | ZI11: 9013.043354 | ZJ11: 11699.45612 | ZK11: 13059.2753 | ZL11: 11524.69489 | ZM11: 8607.235609 | ZN11: 9691.197968 | ZO11: 7386.351665 | ZP11: 9371.85063 | ZQ11: 9292.537159 | ZR11: 4922.210266 | ZS11: 14299.87022 | ZT11: 18659.93234 | ZU11: 10500.7198 | ZV11: 9723.487684 | ZW11: 10632.70935 | ZX11: 8431.925706 | ZY11: 12420.71092 | ZZ11: 6369.868794 | AAA11: 10513.25692 | AAB11: 9388.070076 | AAC11: 10662.07984 | AAD11: 6436.874858 | AAE11: 7700.296622 | AAF11: 7756.327531 | AAG11: 6225.171102 | AAH11: 3992.04041 | AAI11: 12264.6888 | AAJ11: 6388.883756 | AAK11: 9162.550707 | AAL11: 10300.01325 | AAM11: 4517.041229 | AAN11: 5751.120971 | AAO11: 12215.61797 | AAP11: 11104.93844 | AAQ11: 8163.101877 | AAR11: 7287.248972 | AAS11: 13530.59514 | AAT11: 8062.158437 | AAU11: 5715.198979 | AAV11: 8323.886482 | AAW11: 12072.91701 | AAX11: 6244.172726 | AAY11: 5684.68019 | AAZ11: 7761.652348 | ABA11: 8091.314386 | ABB11: 11726.40961 | ABC11: 7844.676276 | ABD11: 8402.598803 | ABE11: 7029.774666 | ABF11: 8427.836079 | ABG11: 13891.67961 | ABH11: 9960.731747 | ABI11: 11338.9881 | ABJ11: 8394.57212 | ABK11: 6823.27118 | ABL11: 7884.046733 | ABM11: 5050.377008 | ABN11: 6624.227702 | ABO11: 7936.85425 | ABP11: 8409.582675 | ABQ11: 17969.74482 | ABR11: 13078.63914 | ABS11: 6984.06115 | ABT11: 9334.401145 | ABU11: 11249.52919 | ABV11: 7791.615017 | ABW11: 8720.826266 | ABX11: 12076.23859 | ABY11: 7296.404398 | ABZ11: 6481.830896 | ACA11: 10821.77587 | ACB11: 12743.15231 | ACC11: 7823.872394 | ACD11: 5960.157387 | ACE11: 13415.2792 | ACF11: 10540.40708 | ACG11: 9573.89568 | ACH11: 9597.613548 | ACI11: 9167.668403 | ACJ11: 10957.4983 | ACK11: 9933.954245 | ACL11: 6517.693568 | ACM11: 6858.286614 | ACN11: 10171.89516 | ACO11: 9859.501516 | ACP11: 6114.687034 | ACQ11: 7679.860116 | ACR11: 9063.170179 | ACS11: 7910.933267 | ACT11: 8279.864368 | ACU11: 10327.04383 | ACV11: 8773.7484 | ACW11: 13754.12885 | ACX11: 11739.16264 | ACY11: 11185.18013 | ACZ11: 6686.216861 | ADA11: 12332.19769 | ADB11: 7338.89729 | ADC11: 6667.239623 | ADD11: 5745.269571 | ADE11: 8822.730948 | ADF11: 8104.09656 | ADG11: 5401.44221 | ADH11: 8980.542671 | ADI11: 8276.9544 | ADJ11: 9459.853546 | ADK11: 8959.194736 | ADL11: 7515.986165 | ADM11: 12326.2618 | ADN11: 6742.665393 | ADO11: 13497.90569 | ADP11: 8524.296334 | ADQ11: 7606.715403 | ADR11: 8016.956355 | ADS11: 6361.57688 | ADT11: 7409.622381 | ADU11: 6950.51156 | ADV11: 10511.03072 | ADW11: 8091.063507 | ADX11: 7080.445613 | ADY11: 4107.073426 | ADZ11: 10775.21712 | AEA11: 9319.782842 | AEB11: 13462.04785 | AEC11: 6900.357728 | AED11: 7232.306248 | AEE11: 7777.47166 | AEF11: 6440.643081 | AEG11: 9187.253256 | AEH11: 6984.10691 | AEI11: 7987.208402 | AEJ11: 9116.792024 | AEK11: 8400.525275 | AEL11: 6720.47797 | AEM11: 7987.654649 | AEN11: 5141.895746 | AEO11: 10212.93466 | AEP11: 13418.84093 | AEQ11: 14775.61888 | AER11: 9993.6755 | AES11: 18394.48036 | AET11: 7874.26613 | AEU11: 6077.98854 | AEV11: 5116.901488 | AEW11: 10275.25507 | AEX11: 13236.6395 | AEY11: 11135.66168 | AEZ11: 7881.413633 | AFA11: 9593.206825 | AFB11: 11041.48835 | AFC11: 9193.835275 | AFD11: 6731.497718 | AFE11: 12277.32128 | AFF11: 8876.061154 | AFG11: 6620.538149 | AFH11: 5863.260478 | AFI11: 6086.141405 | AFJ11: 11108.01258 | AFK11: 11349.60246 | AFL11: 7799.437513 | AFM11: 7833.720059 | AFN11: 17740.80744 | AFO11: 15591.41726 | AFP11: 23577.33559 | AFQ11: 7233.596889 | AFR11: 11549.6136 | AFS11: 6654.811704 | AFT11: 5790.715518 | AFU11: 7431.96716 | AFV11: 10201.62021 | AFW11: 7425.197069 | AFX11: 12450.33258 | AFY11: 10609.82683 | AFZ11: 8277.49389 | AGA11: 8871.025822 | AGB11: 9991.729747 | AGC11: 9269.360416 | AGD11: 7579.648111 | AGE11: 8061.485987 | AGF11: 7821.0514 | AGG11: 10197.84817 | AGH11: 10525.94219 | AGI11: 8429.162859 | AGJ11: 8298.028888 | AGK11: 14900.42775 | AGL11: 6734.655001 | AGM11: 5021.269258 | AGN11: 10355.14262 | AGO11: 5664.660958 | AGP11: 4783.114218 | AGQ11: 7373.731911 | AGR11: 3476.730943 | AGS11: 7962.451311 | AGT11: 6681.008606 | AGU11: 9399.930523 | AGV11: 11805.90953 | AGW11: 7960.634577 | AGX11: 8125.60681 | AGY11: 6797.244779 | AGZ11: 10091.13256 | AHA11: 8322.604466 | AHB11: 9598.04648 | AHC11: 8341.831638 | AHD11: 10932.58379 | AHE11: 7908.934842 | AHF11: 6509.079523 | AHG11: 13122.72791 | AHH11: 11215.10326 | AHI11: 7186.105085 | AHJ11: 10957.15676 | AHK11: 7305.960509 | AHL11: 12942.05851 | AHM11: 5257.000332 | AHN11: 11668.25343 | AHO11: 10765.47395 | AHP11: 7176.671927 | AHQ11: 11196.38114 | AHR11: 8108.485441 | AHS11: 12151.74571 | AHT11: 11813.54155 | AHU11: 7575.576933 | AHV11: 7363.478699 | AHW11: 11925.43007 | AHX11: 16219.15186 | AHY11: 15767.11077 | AHZ11: 6786.885307 | AIA11: 8103.489784 | AIB11: 9120.883887 | AIC11: 20212.87628 | AID11: 5339.182637 | AIE11: 5831.907945 | AIF11: 9154.025395 | AIG11: 15565.58758 | AIH11: 5733.16572 | AII11: 7007.517101 | AIJ11: 13934.23647 | AIK11: 6029.264103 | AIL11: 9739.045511 | AIM11: 12719.57099 | AIN11: 5328.856442 | AIO11: 6982.008542 | AIP11: 10105.12004 | AIQ11: 11850.18381 | AIR11: 8856.213833 | AIS11: 6856.150611 | AIT11: 9171.656704 | AIU11: 5374.072065 | AIV11: 16689.66222 | AIW11: 16703.62966 | AIX11: 9227.970005 | AIY11: 8256.09531 | AIZ11: 11777.33392 | AJA11: 11961.92147 | AJB11: 7228.562701 | AJC11: 5703.907153 | AJD11: 5257.243985 | AJE11: 15878.37331 | AJF11: 8859.341767 | AJG11: 10032.89312 | AJH11: 4057.946266 | AJI11: 14667.84416 | AJJ11: 8703.338615 | AJK11: 9410.349848 | AJL11: 9855.010427 | AJM11: 17603.70951 | AJN11: 6808.17453 | AJO11: 8094.172521 | AJP11: 14925.01302 | AJQ11: 11844.70431 | AJR11: 7397.7386 | AJS11: 6912.388238 | AJT11: 5952.272079 | AJU11: 9550.019737 | AJV11: 7602.648119 | AJW11: 4978.829277 | AJX11: 10275.80629 | AJY11: 9264.691165 | AJZ11: 8272.444737 | AKA11: 12874.84701 | AKB11: 8988.871132 | AKC11: 5366.01183 | AKD11: 8176.348327 | AKE11: 6563.057985 | AKF11: 7025.034953 | AKG11: 15692.36906 | AKH11: 7965.732143 | AKI11: 9464.089922 | AKJ11: 6318.027609 | AKK11: 6960.696407 | AKL11: 8943.455469 | AKM11: 10901.77752 | AKN11: 9950.069771 | AKO11: 12835.61555 | AKP11: 5604.508103 | AKQ11: 13986.42462 | AKR11: 10359.59921 | AKS11: 12089.98193 | AKT11: 3901.441623 | AKU11: 11529.94591 | AKV11: 9226.582746 | AKW11: 7599.376509 | AKX11: 10857.57482 | AKY11: 6338.14908 | AKZ11: 11269.73966 | ALA11: 7061.434235 | ALB11: 8773.376361 | ALC11: 12760.76796 | ALD11: 8077.332295 | ALE11: 7259.072804 | ALF11: 8103.758213 | ALG11: 6468.08006 | ALH11: 7869.115826 | ALI11: 7660.835092 | ALJ11: 4601.103828 | ALK11: 6272.839174 | ALL11: 6136.239873 | ALM11: 10829.50735 | ALN11: 6213.183588 | ALO11: 6837.344719 | ALP11: 9176.319223 | ALQ11: 10292.52557 | ALR11: 5459.292036 | ALS11: 9615.685444 | ALT11: 11275.09328 | ALU11: 9794.772393 | ALV11: 12601.80261 | ALW11: 4979.192341 | ALX11: 6141.430123 | ALY11: 5060.182794 | ALZ11: 7026.883365 | AMA11: 7751.997165 | AMB11: 11904.48726 | AMC11: 6625.016657 | AMD11: 12833.6588 | AME11: 10668.20988 | AMF11: 6750.345379 | AMG11: 7557.336546 | AMH11: 9182.179246 | AMI11: 17022.37855 | AML11: 4873.314585 | AMM11: 5666.741754 | AMN11: 6146.331678 | AMO11: 6510.682657 | AMP11: 6855.717565 | AMQ11: 7183.340257 | AMR11: 7526.379242 | AMS11: 7852.09681 | AMT11: 8150.704035 | AMU11: 8489.149442 | AMV11: 8859.965624 | AMW11: 9283.960394 | AMX11: 9764.558615 | AMY11: 10245.19565 | AMZ11: 10765.08286 | ANA11: 11392.86668 | ANB11: 12191.68749 | ANC11: 13275.35463 | AND11: 15561.18817 | ANF11: 9170.513508 | ANG11: 8446.950371 | ANH11: 7345.25803 | ANI11: 6327.688947 | ANJ11: 7129.357179 | ANK11: 6492.817626 | ANL11: 5554.51516 | ANM11: 5762.070627 | ANN11: 6104.159018 | ANO11: 5379.542351 | ANP11: 4887.626975 | ANQ11: 4820.538924 | ANR11: 4501.840087 | ANS11: 3698.483961 | ANT11: 2440.939662 | ANU11: 1727.712381 | ANV11: 2052.025215 | ANW11: 2023.583101 | ANX11: -399.5455241 | ANY11: =IFERROR(MATCH(MIN(ABS(ANF11:ANX11)),ABS(ANF11:ANX11),0),"") -> 19 | ANZ11: =IFERROR(INDEX(ANF11:ANX11,MIN(MAX(ANY11-1,1),17)),"") -> 2052.025215 | AOA11: =IFERROR(INDEX(ANF11:ANX11,MIN(MAX(ANY11,2),18)),"") -> 2023.583101 | AOB11: =IFERROR(INDEX(ANF11:ANX11,MIN(MAX(ANY11,3),19)),"") -> -399.5455241 | AOC11: =IFERROR(INDEX(AML11:AND11,MIN(MAX(ANY11-1,1),17)),"") -> 12191.68749 | AOD11: =IFERROR(INDEX(AML11:AND11,MIN(MAX(ANY11,2),18)),"") -> 13275.35463 | AOE11: =IFERROR(INDEX(AML11:AND11,MIN(MAX(ANY11,3),19)),"") -> 15561.18817 | AOF11: 15102.28182
A12: =ROW(Variables[[#This Row],[Variable Name]])-ROW(Variables[[#Headers],[Variable Name]]) -> 4 | B12: Chance of cancellation | C12: Cancel | D12: =IF(COUNTA(Variables[[#This Row],[Lower Bound]], Variables[[#This Row],[Mode or P]], Variables[[#This Row],[Upper Bound]])=0, "", IF(Variables[[#This Row],[Shape]]="Constant",Variables[[#This Row],[Mode or P]],IF(Variables[[#This Row],[Shape]]="Lognorm",LOGINV(Variables[[#This Row],[Uniform PRNG]],((LN(Variables[[#This Row],[Lower Bound]]) + LN(Variables[[#This Row],[Upper Bound]]))/2),((LN(Variables[[#This Row],[Upper Bound]]) - LN(Variables[[#This Row],[Lower Bound]]))/3.28971)),IF(Variables[[#This Row],[Shape]]="Normal",NORMINV(Variables[[#This Row],[Uniform PRNG]],(Variables[[#This Row],[Upper Bound]]+Variables[[#This Row],[Lower Bound]])/2,(Variables[[#This Row],[Upper Bound]]-Variables[[#This Row],[Lower Bound]])/3.29),IF(Variables[[#This Row],[Shape]]="Uniform",(Variables[[#This Row],[Upper Bound]]-Variables[[#This Row],[Lower Bound]])*Variables[[#This Row],[Uniform PRNG]]+Variables[[#This Row],[Lower Bound]],IF(Variables[[#This Row],[Shape]]="Binary",IF(Variables[[#This Row],[Uniform PRNG]]<Variables[[#This Row],[Mode or P]],1,0),IF(Variables[[#This Row],[Shape]]="Triangular",IF(Variables[[#This Row],[Uniform PRNG]]<(Variables[[#This Row],[Mode or P]]-Variables[[#This Row],[Lower Bound]])/(Variables[[#This Row],[Upper Bound]]-Variables[[#This Row],[Lower Bound]]), 1, 0) * (Variables[[#This Row],[Lower Bound]] + SQRT(Variables[[#This Row],[Uniform PRNG]]*(Variables[[#This Row],[Upper Bound]]-Variables[[#This Row],[Lower Bound]])*(Variables[[#This Row],[Mode or P]]-Variables[[#This Row],[Lower Bound]]))) + IF(Variables[[#This Row],[Uniform PRNG]]>= (Variables[[#This Row],[Mode or P]]-Variables[[#This Row],[Lower Bound]])/(Variables[[#This Row],[Upper Bound]]-Variables[[#This Row],[Lower Bound]]), 1, 0) * (Variables[[#This Row],[Upper Bound]] - SQRT((1-Variables[[#This Row],[Uniform PRNG]]) * (Variables[[#This Row],[Upper Bound]] - Variables[[#This Row],[Lower Bound]]) * (Variables[[#This Row],[Upper Bound]] - Variables[[#This Row],[Mode or P]]))),""))))))) -> 0 | E12: Binary | G12: 0.04 | I12: Historical analysis of projects | J12: =IFERROR(IF(OR(MIN(Variables[[#This Row],[P(X<T)]], Variables[[#This Row],[P(X>T)]])<0.002,SIGN(Variables[[#This Row],[EOL(X<T)]])=SIGN(Variables[[#This Row],[EOL(X>T)]])),0,IFERROR(IF(B$38=1,IF(Variables[[#This Row],[EOL(X<T)]]<Variables[[#This Row],[EOL(X>T)]],-Variables[[#This Row],[EOL(X<T)]]*Variables[[#This Row],[P(X<T)]],-Variables[[#This Row],[EOL(X>T)]]*Variables[[#This Row],[P(X>T)]]),IF(Variables[[#This Row],[EOL(X<T)]]>Variables[[#This Row],[EOL(X>T)]],Variables[[#This Row],[EOL(X<T)]]*Variables[[#This Row],[P(X<T)]],Variables[[#This Row],[EOL(X>T)]]*Variables[[#This Row],[P(X>T)]])),"")),0) -> 333.116708 | K12: =IF(Variables[[#This Row],[Shape]]="Constant",Variables[[#This Row],[Mode or P]],IF(Variables[[#This Row],[Shape]]="Lognorm",EXP((LN(Variables[[#This Row],[Upper Bound]])+LN(Variables[[#This Row],[Lower Bound]]))/2+((LN(Variables[[#This Row],[Upper Bound]])-LN(Variables[[#This Row],[Lower Bound]]))/3.29)^2/2),IF(Variables[[#This Row],[Shape]]="Normal",(Variables[[#This Row],[Lower Bound]]+Variables[[#This Row],[Upper Bound]])/2,IF(Variables[[#This Row],[Shape]]="Uniform",(Variables[[#This Row],[Lower Bound]]+Variables[[#This Row],[Upper Bound]])/2,IF(Variables[[#This Row],[Shape]]="Binary",Variables[[#This Row],[Mode or P]],IF(Variables[[#This Row],[Shape]]="Triangular",(Variables[[#This Row],[Lower Bound]]+Variables[[#This Row],[Mode or P]]+Variables[[#This Row],[Upper Bound]])/3,"")))))) -> 0.04 | L12: =IF(Variables[[#This Row],[Shape]]="","",(MOD((MOD(MOD(999999999999989,MOD(ScenarioNum*2499997+Variables[[#This Row],[VarID]]*1800451,7450589)*4658+7450581)*383,99991)*231109+MOD(MOD(999999999999989,MOD(ScenarioNum*2246527+Variables[[#This Row],[VarID]]*2399993,7450987)*7580+7560584)*547,231109))*43271,4294967296)+0.5)/4294967296) -> 0.3170049769 | M12: =IF(Variables[[#This Row],[Shape]]="Binary", 1-Variables[[#This Row],[Mode or P]], IF(Variables[[#This Row],[Shape]]<>"",COUNTIF(INDEX($X$9:$AMI$159, ROW(Variables[[#This Row],[Variable Name]])-ROW(Variables[[#Headers],[Variable Name]]), ),"<"&Variables[[#This Row],[Threshold Estimate]])/1000,"")) -> 0.96 | N12: =IF(Variables[[#This Row],[Shape]]<>"",1-Variables[[#This Row],[P(X<T)]],"") -> 0.04 | O12: =IFERROR(AVERAGEIFS(X$7:AMI$7,INDEX(X$9:$AMI$159, ROW(Variables[[#This Row],[Variable Name]])-ROW(Variables[[#Headers],[Variable Name]]), ),IF(Variables[[#This Row],[Shape]]="Binary","=0","<"&Variables[[#This Row],[Threshold Estimate]])),"") -> 5378.912058 | P12: =IFERROR(AVERAGEIFS(X$7:AMI$7,INDEX($X$9:$AMI$159, ROW(Variables[[#This Row],[Variable Name]])-ROW(Variables[[#Headers],[Variable Name]]), ),IF(Variables[[#This Row],[Shape]]="Binary","=1",">"&Variables[[#This Row],[Threshold Estimate]])),"") -> -8327.917701 | Q12: =IFERROR(IF(Variables[[#This Row],[Shape]]="Binary",IF(B$38=1,IF(Variables[[#This Row],[EOL(X<T)]]<Variables[[#This Row],[EOL(X>T)]],0,1),IF(Variables[[#This Row],[EOL(X<T)]]<Variables[[#This Row],[EOL(X>T)]],1,0)), INDEX($AOF$9:$AOF$159, ROW(Variables[[#This Row],[Variable Name]])-ROW(Variables[[#Headers],[Variable Name]]))),"") -> 1 | S12: Triangular | V12: =IFERROR(IF(ISBLANK(Variables[[#This Row],[Variable Name]]), "", Variables[[#This Row],[Variable Name]]), "") -> Chance of cancellation | W12: =IFERROR(IF(ISBLANK(D12), "", D12), "") -> 0 | X12: 0 | Y12: 0 | Z12: 0 | AA12: 0 | AB12: 0 | AC12: 0 | AD12: 0 | AE12: 0 | AF12: 0 | AG12: 0 | AH12: 1 | AI12: 0 | AJ12: 0 | AK12: 0 | AL12: 0 | AM12: 0 | AN12: 0 | AO12: 0 | AP12: 0 | AQ12: 0 | AR12: 0 | AS12: 0 | AT12: 0 | AU12: 0 | AV12: 0 | AW12: 0 | AX12: 0 | AY12: 0 | AZ12: 0 | BA12: 0 | BB12: 0 | BC12: 0 | BD12: 0 | BE12: 0 | BF12: 0 | BG12: 0 | BH12: 0 | BI12: 0 | BJ12: 0 | BK12: 0 | BL12: 0 | BM12: 0 | BN12: 0 | BO12: 0 | BP12: 0 | BQ12: 0 | BR12: 1 | BS12: 0 | BT12: 0 | BU12: 0 | BV12: 0 | BW12: 0 | BX12: 0 | BY12: 0 | BZ12: 0 | CA12: 0 | CB12: 0 | CC12: 0 | CD12: 0 | CE12: 0 | CF12: 0 | CG12: 0 | CH12: 0 | CI12: 1 | CJ12: 0 | CK12: 0 | CL12: 0 | CM12: 0 | CN12: 0 | CO12: 0 | CP12: 0 | CQ12: 0 | CR12: 0 | CS12: 0 | CT12: 0 | CU12: 0 | CV12: 0 | CW12: 0 | CX12: 0 | CY12: 0 | CZ12: 0 | DA12: 0 | DB12: 0 | DC12: 0 | DD12: 0 | DE12: 0 | DF12: 0 | DG12: 0 | DH12: 0 | DI12: 0 | DJ12: 1 | DK12: 0 | DL12: 0 | DM12: 0 | DN12: 0 | DO12: 0 | DP12: 1 | DQ12: 0 | DR12: 0 | DS12: 0 | DT12: 0 | DU12: 0 | DV12: 0 | DW12: 0 | DX12: 0 | DY12: 0 | DZ12: 0 | EA12: 0 | EB12: 0 | EC12: 0 | ED12: 0 | EE12: 0 | EF12: 0 | EG12: 0 | EH12: 0 | EI12: 0 | EJ12: 0 | EK12: 0 | EL12: 0 | EM12: 0 | EN12: 0 | EO12: 0 | EP12: 0 | EQ12: 0 | ER12: 0 | ES12: 0 | ET12: 0 | EU12: 0 | EV12: 0 | EW12: 0 | EX12: 0 | EY12: 0 | EZ12: 0 | FA12: 0 | FB12: 0 | FC12: 0 | FD12: 0 | FE12: 0 | FF12: 0 | FG12: 0 | FH12: 0 | FI12: 0 | FJ12: 0 | FK12: 0 | FL12: 0 | FM12: 0 | FN12: 0 | FO12: 0 | FP12: 0 | FQ12: 0 | FR12: 0 | FS12: 0 | FT12: 0 | FU12: 0 | FV12: 0 | FW12: 0 | FX12: 0 | FY12: 0 | FZ12: 0 | GA12: 0 | GB12: 0 | GC12: 0 | GD12: 0 | GE12: 0 | GF12: 0 | GG12: 0 | GH12: 0 | GI12: 0 | GJ12: 0 | GK12: 0 | GL12: 0 | GM12: 0 | GN12: 0 | GO12: 0 | GP12: 0 | GQ12: 0 | GR12: 0 | GS12: 0 | GT12: 0 | GU12: 0 | GV12: 0 | GW12: 0 | GX12: 0 | GY12: 0 | GZ12: 0 | HA12: 0 | HB12: 0 | HC12: 0 | HD12: 0 | HE12: 0 | HF12: 0 | HG12: 0 | HH12: 1 | HI12: 0 | HJ12: 0 | HK12: 0 | HL12: 0 | HM12: 0 | HN12: 0 | HO12: 0 | HP12: 0 | HQ12: 0 | HR12: 0 | HS12: 0 | HT12: 0 | HU12: 0 | HV12: 0 | HW12: 0 | HX12: 0 | HY12: 0 | HZ12: 0 | IA12: 0 | IB12: 0 | IC12: 0 | ID12: 0 | IE12: 0 | IF12: 0 | IG12: 0 | IH12: 0 | II12: 0 | IJ12: 0 | IK12: 1 | IL12: 0 | IM12: 0 | IN12: 0 | IO12: 0 | IP12: 0 | IQ12: 0 | IR12: 0 | IS12: 0 | IT12: 0 | IU12: 0 | IV12: 0 | IW12: 0 | IX12: 0 | IY12: 0 | IZ12: 0 | JA12: 0 | JB12: 0 | JC12: 0 | JD12: 0 | JE12: 0 | JF12: 0 | JG12: 0 | JH12: 0 | JI12: 0 | JJ12: 0 | JK12: 0 | JL12: 0 | JM12: 0 | JN12: 0 | JO12: 0 | JP12: 0 | JQ12: 0 | JR12: 0 | JS12: 1 | JT12: 0 | JU12: 0 | JV12: 0 | JW12: 0 | JX12: 0 | JY12: 0 | JZ12: 0 | KA12: 0 | KB12: 0 | KC12: 0 | KD12: 0 | KE12: 0 | KF12: 0 | KG12: 0 | KH12: 0 | KI12: 0 | KJ12: 0 | KK12: 0 | KL12: 0 | KM12: 0 | KN12: 0 | KO12: 0 | KP12: 0 | KQ12: 0 | KR12: 0 | KS12: 0 | KT12: 0 | KU12: 0 | KV12: 0 | KW12: 0 | KX12: 1 | KY12: 0 | KZ12: 0 | LA12: 0 | LB12: 0 | LC12: 0 | LD12: 0 | LE12: 0 | LF12: 0 | LG12: 0 | LH12: 0 | LI12: 0 | LJ12: 0 | LK12: 0 | LL12: 0 | LM12: 0 | LN12: 0 | LO12: 0 | LP12: 0 | LQ12: 0 | LR12: 0 | LS12: 0 | LT12: 0 | LU12: 0 | LV12: 0 | LW12: 0 | LX12: 0 | LY12: 0 | LZ12: 0 | MA12: 0 | MB12: 0 | MC12: 0 | MD12: 0 | ME12: 0 | MF12: 0 | MG12: 0 | MH12: 0 | MI12: 0 | MJ12: 0 | MK12: 0 | ML12: 0 | MM12: 0 | MN12: 0 | MO12: 0 | MP12: 1 | MQ12: 0 | MR12: 1 | MS12: 0 | MT12: 0 | MU12: 0 | MV12: 0 | MW12: 0 | MX12: 0 | MY12: 0 | MZ12: 0 | NA12: 0 | NB12: 0 | NC12: 0 | ND12: 0 | NE12: 0 | NF12: 0 | NG12: 0 | NH12: 0 | NI12: 0 | NJ12: 0 | NK12: 0 | NL12: 0 | NM12: 0 | NN12: 0 | NO12: 0 | NP12: 0 | NQ12: 0 | NR12: 0 | NS12: 0 | NT12: 0 | NU12: 1 | NV12: 0 | NW12: 0 | NX12: 0 | NY12: 0 | NZ12: 1 | OA12: 0 | OB12: 0 | OC12: 0 | OD12: 0 | OE12: 0 | OF12: 0 | OG12: 0 | OH12: 0 | OI12: 0 | OJ12: 0 | OK12: 0 | OL12: 0 | OM12: 0 | ON12: 0 | OO12: 0 | OP12: 0 | OQ12: 0 | OR12: 0 | OS12: 0 | OT12: 0 | OU12: 0 | OV12: 0 | OW12: 0 | OX12: 0 | OY12: 0 | OZ12: 0 | PA12: 0 | PB12: 0 | PC12: 0 | PD12: 0 | PE12: 0 | PF12: 0 | PG12: 0 | PH12: 0 | PI12: 0 | PJ12: 0 | PK12: 0 | PL12: 0 | PM12: 0 | PN12: 1 | PO12: 0 | PP12: 0 | PQ12: 0 | PR12: 0 | PS12: 0 | PT12: 0 | PU12: 0 | PV12: 0 | PW12: 0 | PX12: 0 | PY12: 0 | PZ12: 0 | QA12: 0 | QB12: 0 | QC12: 0 | QD12: 0 | QE12: 0 | QF12: 0 | QG12: 0 | QH12: 0 | QI12: 0 | QJ12: 0 | QK12: 0 | QL12: 0 | QM12: 0 | QN12: 1 | QO12: 0 | QP12: 0 | QQ12: 0 | QR12: 0 | QS12: 0 | QT12: 0 | QU12: 0 | QV12: 0 | QW12: 0 | QX12: 0 | QY12: 0 | QZ12: 0 | RA12: 0 | RB12: 0 | RC12: 0 | RD12: 0 | RE12: 0 | RF12: 0 | RG12: 0 | RH12: 0 | RI12: 0 | RJ12: 0 | RK12: 0 | RL12: 0 | RM12: 0 | RN12: 0 | RO12: 0 | RP12: 0 | RQ12: 0 | RR12: 0 | RS12: 0 | RT12: 0 | RU12: 0 | RV12: 0 | RW12: 1 | RX12: 0 | RY12: 0 | RZ12: 0 | SA12: 0 | SB12: 0 | SC12: 0 | SD12: 0 | SE12: 0 | SF12: 0 | SG12: 0 | SH12: 0 | SI12: 0 | SJ12: 0 | SK12: 0 | SL12: 0 | SM12: 0 | SN12: 0 | SO12: 0 | SP12: 0 | SQ12: 0 | SR12: 0 | SS12: 0 | ST12: 0 | SU12: 0 | SV12: 0 | SW12: 0 | SX12: 0 | SY12: 0 | SZ12: 0 | TA12: 0 | TB12: 0 | TC12: 0 | TD12: 0 | TE12: 0 | TF12: 0 | TG12: 0 | TH12: 0 | TI12: 0 | TJ12: 0 | TK12: 0 | TL12: 0 | TM12: 0 | TN12: 0 | TO12: 0 | TP12: 0 | TQ12: 0 | TR12: 0 | TS12: 0 | TT12: 0 | TU12: 0 | TV12: 0 | TW12: 0 | TX12: 0 | TY12: 0 | TZ12: 0 | UA12: 0 | UB12: 0 | UC12: 0 | UD12: 0 | UE12: 0 | UF12: 0 | UG12: 0 | UH12: 0 | UI12: 0 | UJ12: 0 | UK12: 0 | UL12: 1 | UM12: 0 | UN12: 0 | UO12: 0 | UP12: 0 | UQ12: 0 | UR12: 0 | US12: 0 | UT12: 0 | UU12: 0 | UV12: 0 | UW12: 0 | UX12: 0 | UY12: 0 | UZ12: 0 | VA12: 0 | VB12: 0 | VC12: 0 | VD12: 0 | VE12: 0 | VF12: 0 | VG12: 0 | VH12: 0 | VI12: 0 | VJ12: 0 | VK12: 0 | VL12: 0 | VM12: 0 | VN12: 0 | VO12: 0 | VP12: 0 | VQ12: 0 | VR12: 0 | VS12: 0 | VT12: 0 | VU12: 0 | VV12: 0 | VW12: 0 | VX12: 0 | VY12: 0 | VZ12: 0 | WA12: 0 | WB12: 0 | WC12: 0 | WD12: 0 | WE12: 0 | WF12: 0 | WG12: 0 | WH12: 0 | WI12: 0 | WJ12: 0 | WK12: 1 | WL12: 0 | WM12: 0 | WN12: 0 | WO12: 0 | WP12: 0 | WQ12: 0 | WR12: 0 | WS12: 0 | WT12: 0 | WU12: 0 | WV12: 0 | WW12: 0 | WX12: 0 | WY12: 0 | WZ12: 0 | XA12: 0 | XB12: 0 | XC12: 0 | XD12: 0 | XE12: 0 | XF12: 0 | XG12: 0 | XH12: 0 | XI12: 0 | XJ12: 0 | XK12: 0 | XL12: 0 | XM12: 0 | XN12: 0 | XO12: 0 | XP12: 0 | XQ12: 0 | XR12: 0 | XS12: 0 | XT12: 0 | XU12: 0 | XV12: 0 | XW12: 0 | XX12: 0 | XY12: 0 | XZ12: 0 | YA12: 0 | YB12: 0 | YC12: 0 | YD12: 0 | YE12: 1 | YF12: 0 | YG12: 0 | YH12: 0 | YI12: 0 | YJ12: 0 | YK12: 0 | YL12: 0 | YM12: 0 | YN12: 0 | YO12: 0 | YP12: 0 | YQ12: 0 | YR12: 0 | YS12: 0 | YT12: 0 | YU12: 0 | YV12: 0 | YW12: 0 | YX12: 0 | YY12: 0 | YZ12: 0 | ZA12: 0 | ZB12: 0 | ZC12: 0 | ZD12: 0 | ZE12: 1 | ZF12: 0 | ZG12: 0 | ZH12: 0 | ZI12: 0 | ZJ12: 0 | ZK12: 0 | ZL12: 0 | ZM12: 0 | ZN12: 0 | ZO12: 1 | ZP12: 0 | ZQ12: 0 | ZR12: 0 | ZS12: 0 | ZT12: 0 | ZU12: 0 | ZV12: 0 | ZW12: 0 | ZX12: 0 | ZY12: 0 | ZZ12: 0 | AAA12: 0 | AAB12: 0 | AAC12: 0 | AAD12: 0 | AAE12: 0 | AAF12: 0 | AAG12: 0 | AAH12: 0 | AAI12: 0 | AAJ12: 0 | AAK12: 0 | AAL12: 0 | AAM12: 0 | AAN12: 0 | AAO12: 0 | AAP12: 0 | AAQ12: 0 | AAR12: 0 | AAS12: 0 | AAT12: 0 | AAU12: 0 | AAV12: 0 | AAW12: 0 | AAX12: 0 | AAY12: 0 | AAZ12: 0 | ABA12: 0 | ABB12: 0 | ABC12: 0 | ABD12: 0 | ABE12: 0 | ABF12: 0 | ABG12: 0 | ABH12: 1 | ABI12: 0 | ABJ12: 0 | ABK12: 0 | ABL12: 0 | ABM12: 0 | ABN12: 0 | ABO12: 0 | ABP12: 0 | ABQ12: 0 | ABR12: 0 | ABS12: 0 | ABT12: 0 | ABU12: 0 | ABV12: 0 | ABW12: 0 | ABX12: 0 | ABY12: 0 | ABZ12: 0 | ACA12: 0 | ACB12: 0 | ACC12: 0 | ACD12: 0 | ACE12: 0 | ACF12: 0 | ACG12: 0 | ACH12: 0 | ACI12: 0 | ACJ12: 0 | ACK12: 0 | ACL12: 0 | ACM12: 0 | ACN12: 0 | ACO12: 0 | ACP12: 0 | ACQ12: 0 | ACR12: 0 | ACS12: 0 | ACT12: 0 | ACU12: 0 | ACV12: 1 | ACW12: 0 | ACX12: 0 | ACY12: 0 | ACZ12: 0 | ADA12: 0 | ADB12: 0 | ADC12: 0 | ADD12: 0 | ADE12: 0 | ADF12: 0 | ADG12: 0 | ADH12: 0 | ADI12: 0 | ADJ12: 0 | ADK12: 0 | ADL12: 0 | ADM12: 0 | ADN12: 0 | ADO12: 0 | ADP12: 1 | ADQ12: 0 | ADR12: 0 | ADS12: 0 | ADT12: 0 | ADU12: 0 | ADV12: 0 | ADW12: 0 | ADX12: 0 | ADY12: 0 | ADZ12: 0 | AEA12: 0 | AEB12: 1 | AEC12: 0 | AED12: 0 | AEE12: 0 | AEF12: 0 | AEG12: 0 | AEH12: 0 | AEI12: 0 | AEJ12: 0 | AEK12: 0 | AEL12: 1 | AEM12: 0 | AEN12: 0 | AEO12: 0 | AEP12: 1 | AEQ12: 0 | AER12: 0 | AES12: 0 | AET12: 0 | AEU12: 0 | AEV12: 0 | AEW12: 0 | AEX12: 0 | AEY12: 0 | AEZ12: 0 | AFA12: 0 | AFB12: 0 | AFC12: 0 | AFD12: 1 | AFE12: 0 | AFF12: 0 | AFG12: 0 | AFH12: 0 | AFI12: 0 | AFJ12: 0 | AFK12: 0 | AFL12: 0 | AFM12: 0 | AFN12: 0 | AFO12: 0 | AFP12: 0 | AFQ12: 0 | AFR12: 0 | AFS12: 1 | AFT12: 0 | AFU12: 0 | AFV12: 0 | AFW12: 0 | AFX12: 0 | AFY12: 0 | AFZ12: 0 | AGA12: 1 | AGB12: 0 | AGC12: 0 | AGD12: 0 | AGE12: 1 | AGF12: 0 | AGG12: 0 | AGH12: 0 | AGI12: 0 | AGJ12: 0 | AGK12: 0 | AGL12: 0 | AGM12: 0 | AGN12: 0 | AGO12: 0 | AGP12: 0 | AGQ12: 0 | AGR12: 0 | AGS12: 0 | AGT12: 0 | AGU12: 0 | AGV12: 0 | AGW12: 0 | AGX12: 0 | AGY12: 0 | AGZ12: 0 | AHA12: 0 | AHB12: 0 | AHC12: 0 | AHD12: 0 | AHE12: 0 | AHF12: 0 | AHG12: 0 | AHH12: 0 | AHI12: 0 | AHJ12: 0 | AHK12: 0 | AHL12: 1 | AHM12: 0 | AHN12: 0 | AHO12: 0 | AHP12: 0 | AHQ12: 0 | AHR12: 0 | AHS12: 0 | AHT12: 0 | AHU12: 1 | AHV12: 0 | AHW12: 1 | AHX12: 0 | AHY12: 0 | AHZ12: 0 | AIA12: 0 | AIB12: 0 | AIC12: 0 | AID12: 0 | AIE12: 0 | AIF12: 0 | AIG12: 0 | AIH12: 0 | AII12: 0 | AIJ12: 0 | AIK12: 0 | AIL12: 0 | AIM12: 0 | AIN12: 0 | AIO12: 0 | AIP12: 0 | AIQ12: 0 | AIR12: 0 | AIS12: 0 | AIT12: 0 | AIU12: 0 | AIV12: 0 | AIW12: 0 | AIX12: 0 | AIY12: 0 | AIZ12: 0 | AJA12: 1 | AJB12: 0 | AJC12: 0 | AJD12: 1 | AJE12: 0 | AJF12: 0 | AJG12: 0 | AJH12: 0 | AJI12: 0 | AJJ12: 0 | AJK12: 0 | AJL12: 0 | AJM12: 0 | AJN12: 0 | AJO12: 0 | AJP12: 0 | AJQ12: 0 | AJR12: 0 | AJS12: 0 | AJT12: 0 | AJU12: 0 | AJV12: 0 | AJW12: 0 | AJX12: 0 | AJY12: 0 | AJZ12: 0 | AKA12: 0 | AKB12: 0 | AKC12: 0 | AKD12: 0 | AKE12: 0 | AKF12: 0 | AKG12: 0 | AKH12: 0 | AKI12: 0 | AKJ12: 0 | AKK12: 0 | AKL12: 0 | AKM12: 1 | AKN12: 0 | AKO12: 0 | AKP12: 0 | AKQ12: 0 | AKR12: 0 | AKS12: 0 | AKT12: 0 | AKU12: 0 | AKV12: 0 | AKW12: 0 | AKX12: 0 | AKY12: 0 | AKZ12: 0 | ALA12: 0 | ALB12: 0 | ALC12: 0 | ALD12: 0 | ALE12: 0 | ALF12: 0 | ALG12: 0 | ALH12: 0 | ALI12: 0 | ALJ12: 0 | ALK12: 0 | ALL12: 0 | ALM12: 0 | ALN12: 0 | ALO12: 0 | ALP12: 1 | ALQ12: 0 | ALR12: 0 | ALS12: 0 | ALT12: 0 | ALU12: 0 | ALV12: 0 | ALW12: 0 | ALX12: 0 | ALY12: 0 | ALZ12: 0 | AMA12: 0 | AMB12: 0 | AMC12: 0 | AMD12: 0 | AME12: 0 | AMF12: 0 | AMG12: 0 | AMH12: 0 | AMI12: 0 | ANY12: =IFERROR(MATCH(MIN(ABS(ANF12:ANX12)),ABS(ANF12:ANX12),0),"") ->  | ANZ12: =IFERROR(INDEX(ANF12:ANX12,MIN(MAX(ANY12-1,1),17)),"") ->  | AOA12: =IFERROR(INDEX(ANF12:ANX12,MIN(MAX(ANY12,2),18)),"") ->  | AOB12: =IFERROR(INDEX(ANF12:ANX12,MIN(MAX(ANY12,3),19)),"") ->  | AOC12: =IFERROR(INDEX(AML12:AND12,MIN(MAX(ANY12-1,1),17)),"") ->  | AOD12: =IFERROR(INDEX(AML12:AND12,MIN(MAX(ANY12,2),18)),"") ->  | AOE12: =IFERROR(INDEX(AML12:AND12,MIN(MAX(ANY12,3),19)),"") -> 
A13: =ROW(Variables[[#This Row],[Variable Name]])-ROW(Variables[[#Headers],[Variable Name]]) -> 5 | B13: Cost of money | C13: CostM | D13: =IF(COUNTA(Variables[[#This Row],[Lower Bound]], Variables[[#This Row],[Mode or P]], Variables[[#This Row],[Upper Bound]])=0, "", IF(Variables[[#This Row],[Shape]]="Constant",Variables[[#This Row],[Mode or P]],IF(Variables[[#This Row],[Shape]]="Lognorm",LOGINV(Variables[[#This Row],[Uniform PRNG]],((LN(Variables[[#This Row],[Lower Bound]]) + LN(Variables[[#This Row],[Upper Bound]]))/2),((LN(Variables[[#This Row],[Upper Bound]]) - LN(Variables[[#This Row],[Lower Bound]]))/3.28971)),IF(Variables[[#This Row],[Shape]]="Normal",NORMINV(Variables[[#This Row],[Uniform PRNG]],(Variables[[#This Row],[Upper Bound]]+Variables[[#This Row],[Lower Bound]])/2,(Variables[[#This Row],[Upper Bound]]-Variables[[#This Row],[Lower Bound]])/3.29),IF(Variables[[#This Row],[Shape]]="Uniform",(Variables[[#This Row],[Upper Bound]]-Variables[[#This Row],[Lower Bound]])*Variables[[#This Row],[Uniform PRNG]]+Variables[[#This Row],[Lower Bound]],IF(Variables[[#This Row],[Shape]]="Binary",IF(Variables[[#This Row],[Uniform PRNG]]<Variables[[#This Row],[Mode or P]],1,0),IF(Variables[[#This Row],[Shape]]="Triangular",IF(Variables[[#This Row],[Uniform PRNG]]<(Variables[[#This Row],[Mode or P]]-Variables[[#This Row],[Lower Bound]])/(Variables[[#This Row],[Upper Bound]]-Variables[[#This Row],[Lower Bound]]), 1, 0) * (Variables[[#This Row],[Lower Bound]] + SQRT(Variables[[#This Row],[Uniform PRNG]]*(Variables[[#This Row],[Upper Bound]]-Variables[[#This Row],[Lower Bound]])*(Variables[[#This Row],[Mode or P]]-Variables[[#This Row],[Lower Bound]]))) + IF(Variables[[#This Row],[Uniform PRNG]]>= (Variables[[#This Row],[Mode or P]]-Variables[[#This Row],[Lower Bound]])/(Variables[[#This Row],[Upper Bound]]-Variables[[#This Row],[Lower Bound]]), 1, 0) * (Variables[[#This Row],[Upper Bound]] - SQRT((1-Variables[[#This Row],[Uniform PRNG]]) * (Variables[[#This Row],[Upper Bound]] - Variables[[#This Row],[Lower Bound]]) * (Variables[[#This Row],[Upper Bound]] - Variables[[#This Row],[Mode or P]]))),""))))))) -> 0.02204861082 | E13: Lognorm | F13: 0.03 | H13: 0.09 | I13: CFO estimate | J13: =IFERROR(IF(OR(MIN(Variables[[#This Row],[P(X<T)]], Variables[[#This Row],[P(X>T)]])<0.002,SIGN(Variables[[#This Row],[EOL(X<T)]])=SIGN(Variables[[#This Row],[EOL(X>T)]])),0,IFERROR(IF(B$38=1,IF(Variables[[#This Row],[EOL(X<T)]]<Variables[[#This Row],[EOL(X>T)]],-Variables[[#This Row],[EOL(X<T)]]*Variables[[#This Row],[P(X<T)]],-Variables[[#This Row],[EOL(X>T)]]*Variables[[#This Row],[P(X>T)]]),IF(Variables[[#This Row],[EOL(X<T)]]>Variables[[#This Row],[EOL(X>T)]],Variables[[#This Row],[EOL(X<T)]]*Variables[[#This Row],[P(X<T)]],Variables[[#This Row],[EOL(X>T)]]*Variables[[#This Row],[P(X>T)]])),"")),0) -> 0 | K13: =IF(Variables[[#This Row],[Shape]]="Constant",Variables[[#This Row],[Mode or P]],IF(Variables[[#This Row],[Shape]]="Lognorm",EXP((LN(Variables[[#This Row],[Upper Bound]])+LN(Variables[[#This Row],[Lower Bound]]))/2+((LN(Variables[[#This Row],[Upper Bound]])-LN(Variables[[#This Row],[Lower Bound]]))/3.29)^2/2),IF(Variables[[#This Row],[Shape]]="Normal",(Variables[[#This Row],[Lower Bound]]+Variables[[#This Row],[Upper Bound]])/2,IF(Variables[[#This Row],[Shape]]="Uniform",(Variables[[#This Row],[Lower Bound]]+Variables[[#This Row],[Upper Bound]])/2,IF(Variables[[#This Row],[Shape]]="Binary",Variables[[#This Row],[Mode or P]],IF(Variables[[#This Row],[Shape]]="Triangular",(Variables[[#This Row],[Lower Bound]]+Variables[[#This Row],[Mode or P]]+Variables[[#This Row],[Upper Bound]])/3,"")))))) -> 0.05494080766 | L13: =IF(Variables[[#This Row],[Shape]]="","",(MOD((MOD(MOD(999999999999989,MOD(ScenarioNum*2499997+Variables[[#This Row],[VarID]]*1800451,7450589)*4658+7450581)*383,99991)*231109+MOD(MOD(999999999999989,MOD(ScenarioNum*2246527+Variables[[#This Row],[VarID]]*2399993,7450987)*7580+7560584)*547,231109))*43271,4294967296)+0.5)/4294967296) -> 0.005129412399 | M13: =IF(Variables[[#This Row],[Shape]]="Binary", 1-Variables[[#This Row],[Mode or P]], IF(Variables[[#This Row],[Shape]]<>"",COUNTIF(INDEX($X$9:$AMI$159, ROW(Variables[[#This Row],[Variable Name]])-ROW(Variables[[#Headers],[Variable Name]]), ),"<"&Variables[[#This Row],[Threshold Estimate]])/1000,"")) -> 0.999 | N13: =IF(Variables[[#This Row],[Shape]]<>"",1-Variables[[#This Row],[P(X<T)]],"") -> 0.001 | O13: =IFERROR(AVERAGEIFS(X$7:AMI$7,INDEX(X$9:$AMI$159, ROW(Variables[[#This Row],[Variable Name]])-ROW(Variables[[#Headers],[Variable Name]]), ),IF(Variables[[#This Row],[Shape]]="Binary","=0","<"&Variables[[#This Row],[Threshold Estimate]])),"") -> 4857.19382 | P13: =IFERROR(AVERAGEIFS(X$7:AMI$7,INDEX($X$9:$AMI$159, ROW(Variables[[#This Row],[Variable Name]])-ROW(Variables[[#Headers],[Variable Name]]), ),IF(Variables[[#This Row],[Shape]]="Binary","=1",">"&Variables[[#This Row],[Threshold Estimate]])),"") -> 5715.901192 | Q13: =IFERROR(IF(Variables[[#This Row],[Shape]]="Binary",IF(B$38=1,IF(Variables[[#This Row],[EOL(X<T)]]<Variables[[#This Row],[EOL(X>T)]],0,1),IF(Variables[[#This Row],[EOL(X<T)]]<Variables[[#This Row],[EOL(X>T)]],1,0)), INDEX($AOF$9:$AOF$159, ROW(Variables[[#This Row],[Variable Name]])-ROW(Variables[[#Headers],[Variable Name]]))),"") -> 0.1345590481 | S13: Constant | V13: =IFERROR(IF(ISBLANK(Variables[[#This Row],[Variable Name]]), "", Variables[[#This Row],[Variable Name]]), "") -> Cost of money | W13: =IFERROR(IF(ISBLANK(D13), "", D13), "") -> 0.02204861082 | X13: 0.05893346021 | Y13: 0.02409186028 | Z13: 0.05062072669 | AA13: 0.05634365097 | AB13: 0.06372496879 | AC13: 0.08188012612 | AD13: 0.06788841157 | AE13: 0.09346155393 | AF13: 0.08696015333 | AG13: 0.05759737702 | AH13: 0.04245953365 | AI13: 0.03108271647 | AJ13: 0.05918372581 | AK13: 0.06110806132 | AL13: 0.03843201022 | AM13: 0.03599049025 | AN13: 0.04274480928 | AO13: 0.04850015377 | AP13: 0.06446178014 | AQ13: 0.1151261919 | AR13: 0.06442615754 | AS13: 0.03024775052 | AT13: 0.07720376482 | AU13: 0.03538964102 | AV13: 0.03609347007 | AW13: 0.06472712154 | AX13: 0.03539142751 | AY13: 0.05117583989 | AZ13: 0.03610743243 | BA13: 0.05823594931 | BB13: 0.068155527 | BC13: 0.05433836815 | BD13: 0.07395712257 | BE13: 0.05774400217 | BF13: 0.0370960134 | BG13: 0.0619350275 | BH13: 0.0551073504 | BI13: 0.04507191589 | BJ13: 0.07727193187 | BK13: 0.08491112324 | BL13: 0.05140426469 | BM13: 0.09253030145 | BN13: 0.04603988373 | BO13: 0.056144481 | BP13: 0.06512610548 | BQ13: 0.09932351763 | BR13: 0.0431046062 | BS13: 0.06792356735 | BT13: 0.04503250364 | BU13: 0.05506310829 | BV13: 0.04097419403 | BW13: 0.04347810247 | BX13: 0.03961101815 | BY13: 0.05012177767 | BZ13: 0.09190826876 | CA13: 0.03683528329 | CB13: 0.05543881358 | CC13: 0.04485502438 | CD13: 0.05144592888 | CE13: 0.05656143063 | CF13: 0.04845860097 | CG13: 0.02659279621 | CH13: 0.02928247854 | CI13: 0.0752027884 | CJ13: 0.03403392681 | CK13: 0.03423130312 | CL13: 0.03138995316 | CM13: 0.03468008055 | CN13: 0.05310400065 | CO13: 0.05068634668 | CP13: 0.05220747733 | CQ13: 0.1156682698 | CR13: 0.05439461574 | CS13: 0.05364666935 | CT13: 0.04587553708 | CU13: 0.05632929325 | CV13: 0.02212820861 | CW13: 0.05986520737 | CX13: 0.04903173351 | CY13: 0.09132494149 | CZ13: 0.08587479192 | DA13: 0.05613705353 | DB13: 0.04958768603 | DC13: 0.06925862808 | DD13: 0.06612718531 | DE13: 0.06462580351 | DF13: 0.04512588839 | DG13: 0.0401784392 | DH13: 0.0538898578 | DI13: 0.0432121003 | DJ13: 0.05558901436 | DK13: 0.02895519752 | DL13: 0.09973895533 | DM13: 0.03157756969 | DN13: 0.04184189824 | DO13: 0.04454801086 | DP13: 0.07245083654 | DQ13: 0.03738426447 | DR13: 0.0525604883 | DS13: 0.07384556275 | DT13: 0.03945432018 | DU13: 0.08065271196 | DV13: 0.04698918527 | DW13: 0.04113930878 | DX13: 0.06577211998 | DY13: 0.06535039672 | DZ13: 0.03972377318 | EA13: 0.06087018899 | EB13: 0.0921527857 | EC13: 0.08388061298 | ED13: 0.1059928139 | EE13: 0.06398238359 | EF13: 0.06325265849 | EG13: 0.04407010806 | EH13: 0.03686176078 | EI13: 0.09579611534 | EJ13: 0.03953819186 | EK13: 0.03817241958 | EL13: 0.04837584469 | EM13: 0.04603926713 | EN13: 0.04765186382 | EO13: 0.04447642359 | EP13: 0.0774637259 | EQ13: 0.04857714493 | ER13: 0.0656361901 | ES13: 0.07744758268 | ET13: 0.0258177577 | EU13: 0.06383414335 | EV13: 0.07418806133 | EW13: 0.064901445 | EX13: 0.0416408831 | EY13: 0.05541557985 | EZ13: 0.04098659485 | FA13: 0.08652598062 | FB13: 0.04877925266 | FC13: 0.04914653456 | FD13: 0.09543175846 | FE13: 0.04494699916 | FF13: 0.03802565682 | FG13: 0.04020767536 | FH13: 0.04452342548 | FI13: 0.06182896218 | FJ13: 0.08089294378 | FK13: 0.03528500544 | FL13: 0.04402406716 | FM13: 0.04128811257 | FN13: 0.05285477378 | FO13: 0.02422028667 | FP13: 0.04310854824 | FQ13: 0.04431813231 | FR13: 0.03769545097 | FS13: 0.05530589095 | FT13: 0.04124926699 | FU13: 0.05622611036 | FV13: 0.07538978341 | FW13: 0.03315548391 | FX13: 0.02563449057 | FY13: 0.02989603981 | FZ13: 0.04510486972 | GA13: 0.0559492388 | GB13: 0.03115343204 | GC13: 0.0534606543 | GD13: 0.05983971287 | GE13: 0.06097021852 | GF13: 0.0612923568 | GG13: 0.04381278055 | GH13: 0.05673412361 | GI13: 0.05440272966 | GJ13: 0.04876447208 | GK13: 0.07749380161 | GL13: 0.05707850919 | GM13: 0.1338634132 | GN13: 0.03534197542 | GO13: 0.04622933419 | GP13: 0.05546821161 | GQ13: 0.08815572901 | GR13: 0.04977681027 | GS13: 0.05253965357 | GT13: 0.04758703693 | GU13: 0.06019156751 | GV13: 0.04625349095 | GW13: 0.05614589513 | GX13: 0.03153976205 | GY13: 0.05119002471 | GZ13: 0.06509333476 | HA13: 0.04947835711 | HB13: 0.0767434287 | HC13: 0.03584405933 | HD13: 0.02675522233 | HE13: 0.03258529141 | HF13: 0.05933319513 | HG13: 0.04622524577 | HH13: 0.03615388137 | HI13: 0.08113363911 | HJ13: 0.07810206462 | HK13: 0.09988365278 | HL13: 0.04122247724 | HM13: 0.0482289112 | HN13: 0.0430466142 | HO13: 0.03672193995 | HP13: 0.0315416641 | HQ13: 0.04678704244 | HR13: 0.07017485305 | HS13: 0.09440237648 | HT13: 0.05155752394 | HU13: 0.03135513707 | HV13: 0.04583424384 | HW13: 0.03302692733 | HX13: 0.04241716278 | HY13: 0.04214172292 | HZ13: 0.06916203852 | IA13: 0.04996065206 | IB13: 0.05439323474 | IC13: 0.06806001578 | ID13: 0.03121820944 | IE13: 0.03782340331 | IF13: 0.0544010298 | IG13: 0.05803764132 | IH13: 0.1038446477 | II13: 0.04792471626 | IJ13: 0.05793046026 | IK13: 0.06489694586 | IL13: 0.05707551154 | IM13: 0.03923724 | IN13: 0.02920096939 | IO13: 0.07779378125 | IP13: 0.02795571499 | IQ13: 0.05134126625 | IR13: 0.03146181633 | IS13: 0.04665123073 | IT13: 0.03701999417 | IU13: 0.05771796244 | IV13: 0.0401381919 | IW13: 0.07229769937 | IX13: 0.09036395779 | IY13: 0.0443616848 | IZ13: 0.04686007702 | JA13: 0.05224821953 | JB13: 0.09676008565 | JC13: 0.06087365354 | JD13: 0.05493399146 | JE13: 0.07174193682 | JF13: 0.04523241035 | JG13: 0.05495275593 | JH13: 0.06872837598 | JI13: 0.07656459317 | JJ13: 0.06984685135 | JK13: 0.05814394849 | JL13: 0.0468565307 | JM13: 0.04267773169 | JN13: 0.06580822279 | JO13: 0.04648303993 | JP13: 0.05289408089 | JQ13: 0.06890280598 | JR13: 0.05007515245 | JS13: 0.08745650523 | JT13: 0.02204861082 | JU13: 0.03672465533 | JV13: 0.03456570398 | JW13: 0.03544447357 | JX13: 0.05849993448 | JY13: 0.03776280867 | JZ13: 0.07562947317 | KA13: 0.0342543771 | KB13: 0.03513680941 | KC13: 0.06185533214 | KD13: 0.1069791511 | KE13: 0.06155465021 | KF13: 0.0378122932 | KG13: 0.04227581869 | KH13: 0.06747245618 | KI13: 0.05190542206 | KJ13: 0.04420414513 | KK13: 0.03353719242 | KL13: 0.07962631865 | KM13: 0.1035804988 | KN13: 0.05678912794 | KO13: 0.0509545969 | KP13: 0.05448958941 | KQ13: 0.04960878033 | KR13: 0.04291978779 | KS13: 0.03834249812 | KT13: 0.04724229621 | KU13: 0.0474491248 | KV13: 0.04564449652 | KW13: 0.05181644701 | KX13: 0.02257123453 | KY13: 0.03814692113 | KZ13: 0.04721950959 | LA13: 0.04398417486 | LB13: 0.05441202816 | LC13: 0.09917362068 | LD13: 0.03622905797 | LE13: 0.02778154891 | LF13: 0.04826148745 | LG13: 0.05735635877 | LH13: 0.03524456498 | LI13: 0.061433346 | LJ13: 0.04341389671 | LK13: 0.04417925772 | LL13: 0.06973129646 | LM13: 0.07422019262 | LN13: 0.08928050254 | LO13: 0.03633056046 | LP13: 0.04869115505 | LQ13: 0.03205433282 | LR13: 0.08653301826 | LS13: 0.08094723747 | LT13: 0.05749548957 | LU13: 0.06123058718 | LV13: 0.07395591772 | LW13: 0.03579840495 | LX13: 0.05864442381 | LY13: 0.03378854062 | LZ13: 0.03598924112 | MA13: 0.08104521387 | MB13: 0.0478517319 | MC13: 0.04763869885 | MD13: 0.05223784166 | ME13: 0.0370793951 | MF13: 0.06143099456 | MG13: 0.07010939956 | MH13: 0.03557578576 | MI13: 0.05010584901 | MJ13: 0.02811058203 | MK13: 0.05684694521 | ML13: 0.05190360433 | MM13: 0.06931117059 | MN13: 0.0537251195 | MO13: 0.05825814348 | MP13: 0.04714107625 | MQ13: 0.04381304488 | MR13: 0.03058155442 | MS13: 0.06228434461 | MT13: 0.08534016326 | MU13: 0.04346188925 | MV13: 0.09599617717 | MW13: 0.03126943243 | MX13: 0.06661825902 | MY13: 0.04760455086 | MZ13: 0.05257135954 | NA13: 0.04639158959 | NB13: 0.07334604614 | NC13: 0.03462486806 | ND13: 0.0523749278 | NE13: 0.03853533661 | NF13: 0.05206029997 | NG13: 0.05326530568 | NH13: 0.05565864071 | NI13: 0.04415986419 | NJ13: 0.03677725996 | NK13: 0.03722256164 | NL13: 0.05520478116 | NM13: 0.07643339131 | NN13: 0.06409178117 | NO13: 0.05189355639 | NP13: 0.04976393371 | NQ13: 0.05569713407 | NR13: 0.04744885379 | NS13: 0.02705927418 | NT13: 0.06578130566 | NU13: 0.03822645199 | NV13: 0.02962474883 | NW13: 0.04399757805 | NX13: 0.07665098132 | NY13: 0.1231846184 | NZ13: 0.03148124648 | OA13: 0.0417610902 | OB13: 0.05647131879 | OC13: 0.02807559327 | OD13: 0.03580651407 | OE13: 0.0299147809 | OF13: 0.03304587193 | OG13: 0.05524772931 | OH13: 0.05111250719 | OI13: 0.06728406707 | OJ13: 0.05266191882 | OK13: 0.0338352556 | OL13: 0.09032489415 | OM13: 0.0310450614 | ON13: 0.06601631809 | OO13: 0.07809981588 | OP13: 0.02846065947 | OQ13: 0.1691378436 | OR13: 0.04747752916 | OS13: 0.07001788546 | OT13: 0.05463205639 | OU13: 0.03878704424 | OV13: 0.06504909736 | OW13: 0.06159717736 | OX13: 0.0511957978 | OY13: 0.06757589354 | OZ13: 0.05402721762 | PA13: 0.03693152943 | PB13: 0.03563097411 | PC13: 0.04281721823 | PD13: 0.0361631352 | PE13: 0.03587063938 | PF13: 0.05781104423 | PG13: 0.06103366085 | PH13: 0.06942360573 | PI13: 0.06160390611 | PJ13: 0.05249299979 | PK13: 0.02708326473 | PL13: 0.03866755971 | PM13: 0.07015761446 | PN13: 0.03061492546 | PO13: 0.04268712557 | PP13: 0.06681994128 | PQ13: 0.09596804384 | PR13: 0.04819158882 | PS13: 0.06538020413 | PT13: 0.06107025301 | PU13: 0.09477538051 | PV13: 0.03766164331 | PW13: 0.04709685738 | PX13: 0.0567294044 | PY13: 0.04727407692 | PZ13: 0.08336672771 | QA13: 0.05324254648 | QB13: 0.05830357193 | QC13: 0.07082690875 | QD13: 0.06771723311 | QE13: 0.07826306827 | QF13: 0.05199852159 | QG13: 0.0460899451 | QH13: 0.04246844657 | QI13: 0.05252454245 | QJ13: 0.05288715656 | QK13: 0.05595118713 | QL13: 0.07851378313 | QM13: 0.03260470902 | QN13: 0.06515730909 | QO13: 0.04502458764 | QP13: 0.04628923841 | QQ13: 0.03352007248 | QR13: 0.0344054443 | QS13: 0.02570306882 | QT13: 0.03605628005 | QU13: 0.05303079343 | QV13: 0.08725007957 | QW13: 0.02368467366 | QX13: 0.04986410875 | QY13: 0.03721267751 | QZ13: 0.03945888659 | RA13: 0.05669951213 | RB13: 0.04977795828 | RC13: 0.04877758348 | RD13: 0.0616827539 | RE13: 0.06093372664 | RF13: 0.03412811148 | RG13: 0.03760500603 | RH13: 0.0364743712 | RI13: 0.06821897868 | RJ13: 0.09626685691 | RK13: 0.03328139367 | RL13: 0.09136565558 | RM13: 0.05206120966 | RN13: 0.04874261168 | RO13: 0.08259803017 | RP13: 0.06480897509 | RQ13: 0.07584632823 | RR13: 0.0400356982 | RS13: 0.0528274455 | RT13: 0.06227497681 | RU13: 0.07553145525 | RV13: 0.02882915617 | RW13: 0.07007773657 | RX13: 0.05730216308 | RY13: 0.06978640263 | RZ13: 0.05035796606 | SA13: 0.07336952483 | SB13: 0.04545923391 | SC13: 0.08469305353 | SD13: 0.06034403263 | SE13: 0.05237134146 | SF13: 0.04936705844 | SG13: 0.04869534711 | SH13: 0.04767818383 | SI13: 0.03960822405 | SJ13: 0.05509575183 | SK13: 0.03588692087 | SL13: 0.0318377214 | SM13: 0.04852327834 | SN13: 0.0728277878 | SO13: 0.07954895476 | SP13: 0.04065006715 | SQ13: 0.05401276079 | SR13: 0.05003928099 | SS13: 0.08020699626 | ST13: 0.05010987086 | SU13: 0.04630189022 | SV13: 0.06227954867 | SW13: 0.04104620139 | SX13: 0.05959727479 | SY13: 0.04310572993 | SZ13: 0.06466879158 | TA13: 0.05701268702 | TB13: 0.06299807876 | TC13: 0.05899951779 | TD13: 0.1266653615 | TE13: 0.05205777909 | TF13: 0.0460566825 | TG13: 0.04434188762 | TH13: 0.04886024827 | TI13: 0.04769302436 | TJ13: 0.06054293952 | TK13: 0.0345965783 | TL13: 0.02833314428 | TM13: 0.03865640027 | TN13: 0.03599248625 | TO13: 0.05273612374 | TP13: 0.06699367703 | TQ13: 0.06270039236 | TR13: 0.08340836771 | TS13: 0.07585166174 | TT13: 0.05080278249 | TU13: 0.08643015004 | TV13: 0.04259601132 | TW13: 0.05816335382 | TX13: 0.04779912032 | TY13: 0.05624608656 | TZ13: 0.106744243 | UA13: 0.08203433585 | UB13: 0.02989004035 | UC13: 0.04307483659 | UD13: 0.10664403 | UE13: 0.05804342527 | UF13: 0.04080638836 | UG13: 0.03642436154 | UH13: 0.04803543175 | UI13: 0.04556934418 | UJ13: 0.07596611445 | UK13: 0.04564502889 | UL13: 0.06674042427 | UM13: 0.07597185556 | UN13: 0.09339354144 | UO13: 0.04805298107 | UP13: 0.06029543132 | UQ13: 0.05963178842 | UR13: 0.05875121517 | US13: 0.03414884662 | UT13: 0.06308220322 | UU13: 0.04375731885 | UV13: 0.08664248727 | UW13: 0.06432523646 | UX13: 0.03161619675 | UY13: 0.06609287559 | UZ13: 0.0630829072 | VA13: 0.06207732173 | VB13: 0.04996806239 | VC13: 0.02730182565 | VD13: 0.03619702231 | VE13: 0.02643536065 | VF13: 0.08575229248 | VG13: 0.05214355936 | VH13: 0.04501136463 | VI13: 0.0495951347 | VJ13: 0.03696264666 | VK13: 0.08675568381 | VL13: 0.0342986104 | VM13: 0.03019666713 | VN13: 0.03017320514 | VO13: 0.03118586003 | VP13: 0.04212901266 | VQ13: 0.02979037968 | VR13: 0.04210386842 | VS13: 0.02560758358 | VT13: 0.04190532299 | VU13: 0.04276171155 | VV13: 0.03669558122 | VW13: 0.03420338274 | VX13: 0.03507741492 | VY13: 0.0393069263 | VZ13: 0.03897067523 | WA13: 0.05475943513 | WB13: 0.09904528513 | WC13: 0.07263223729 | WD13: 0.06072100798 | WE13: 0.04922922329 | WF13: 0.07612457045 | WG13: 0.05515518782 | WH13: 0.05597584224 | WI13: 0.02313584527 | WJ13: 0.03766687668 | WK13: 0.1047873339 | WL13: 0.02953480946 | WM13: 0.07508555135 | WN13: 0.04343486617 | WO13: 0.06841659686 | WP13: 0.04556592267 | WQ13: 0.0861457946 | WR13: 0.02605919375 | WS13: 0.05002412678 | WT13: 0.03834433789 | WU13: 0.03293569075 | WV13: 0.06132509946 | WW13: 0.0396569759 | WX13: 0.04306893828 | WY13: 0.032343107 | WZ13: 0.06330483226 | XA13: 0.05336503185 | XB13: 0.06231900523 | XC13: 0.04523209613 | XD13: 0.04474592967 | XE13: 0.04866408981 | XF13: 0.08334040643 | XG13: 0.07540533457 | XH13: 0.03507064988 | XI13: 0.02929445825 | XJ13: 0.08693350475 | XK13: 0.04557386451 | XL13: 0.05935063207 | XM13: 0.04376433849 | XN13: 0.05942945201 | XO13: 0.0685438428 | XP13: 0.03795723893 | XQ13: 0.05589197928 | XR13: 0.06482271366 | XS13: 0.05083007423 | XT13: 0.052807198 | XU13: 0.054121685 | XV13: 0.0779942523 | XW13: 0.08108713292 | XX13: 0.06960993183 | XY13: 0.03544444933 | XZ13: 0.04980090902 | YA13: 0.08963841605 | YB13: 0.03417671222 | YC13: 0.05622019909 | YD13: 0.03702284976 | YE13: 0.06403217585 | YF13: 0.08577102727 | YG13: 0.03312282306 | YH13: 0.05991215645 | YI13: 0.1159471043 | YJ13: 0.04849746899 | YK13: 0.07440689744 | YL13: 0.02796926192 | YM13: 0.06626160929 | YN13: 0.1009953948 | YO13: 0.05290640115 | YP13: 0.06275028154 | YQ13: 0.09233859328 | YR13: 0.06059050901 | YS13: 0.05655111149 | YT13: 0.03473587569 | YU13: 0.05652241167 | YV13: 0.03488508875 | YW13: 0.05209475681 | YX13: 0.08293958639 | YY13: 0.04995643369 | YZ13: 0.05087974041 | ZA13: 0.0788940947 | ZB13: 0.05073886968 | ZC13: 0.05654343638 | ZD13: 0.05307589412 | ZE13: 0.0407752937 | ZF13: 0.07029296872 | ZG13: 0.07580793447 | ZH13: 0.05864368622 | ZI13: 0.06640994706 | ZJ13: 0.08289008181 | ZK13: 0.04465390545 | ZL13: 0.03769319764 | ZM13: 0.06850649182 | ZN13: 0.05125070737 | ZO13: 0.05022992158 | ZP13: 0.07499195796 | ZQ13: 0.05269146888 | ZR13: 0.04308522159 | ZS13: 0.02536645733 | ZT13: 0.08195004065 | ZU13: 0.08705486383 | ZV13: 0.04445741204 | ZW13: 0.07871060813 | ZX13: 0.05453626526 | ZY13: 0.05242678195 | ZZ13: 0.03975106089 | AAA13: 0.05121975995 | AAB13: 0.05390566189 | AAC13: 0.07171192302 | AAD13: 0.04896487511 | AAE13: 0.04815134731 | AAF13: 0.06193744818 | AAG13: 0.04705478238 | AAH13: 0.07105413089 | AAI13: 0.05602610301 | AAJ13: 0.04596643966 | AAK13: 0.05883662331 | AAL13: 0.03920230438 | AAM13: 0.08196623608 | AAN13: 0.05774632726 | AAO13: 0.06660309902 | AAP13: 0.04052054118 | AAQ13: 0.05076174104 | AAR13: 0.06605689366 | AAS13: 0.07640693234 | AAT13: 0.08347312617 | AAU13: 0.0472811009 | AAV13: 0.0400106186 | AAW13: 0.06785426894 | AAX13: 0.01889205054 | AAY13: 0.05605382705 | AAZ13: 0.05097918508 | ABA13: 0.05426281201 | ABB13: 0.0682387216 | ABC13: 0.05255286197 | ABD13: 0.04106988323 | ABE13: 0.04160227373 | ABF13: 0.08578671923 | ABG13: 0.03997053214 | ABH13: 0.04167607518 | ABI13: 0.03829512967 | ABJ13: 0.06630645465 | ABK13: 0.03707995608 | ABL13: 0.05625231472 | ABM13: 0.06837101816 | ABN13: 0.04131099141 | ABO13: 0.07554816472 | ABP13: 0.03953883153 | ABQ13: 0.06822877134 | ABR13: 0.02711555377 | ABS13: 0.04205603299 | ABT13: 0.0387160572 | ABU13: 0.0446007183 | ABV13: 0.1077858603 | ABW13: 0.08815848168 | ABX13: 0.05472373992 | ABY13: 0.04241135882 | ABZ13: 0.09212888898 | ACA13: 0.08399294538 | ACB13: 0.04515630404 | ACC13: 0.07246403229 | ACD13: 0.07630599529 | ACE13: 0.0510655696 | ACF13: 0.05745001721 | ACG13: 0.07450368187 | ACH13: 0.03957623048 | ACI13: 0.04110337718 | ACJ13: 0.05910778263 | ACK13: 0.04757556937 | ACL13: 0.04107946399 | ACM13: 0.05494721657 | ACN13: 0.08799482927 | ACO13: 0.03876464069 | ACP13: 0.07444921542 | ACQ13: 0.06252084723 | ACR13: 0.07275612435 | ACS13: 0.04073884679 | ACT13: 0.03948518262 | ACU13: 0.08100316951 | ACV13: 0.06009904371 | ACW13: 0.04446000939 | ACX13: 0.04599291116 | ACY13: 0.04339166416 | ACZ13: 0.05644118636 | ADA13: 0.08659106697 | ADB13: 0.03538946325 | ADC13: 0.05118154297 | ADD13: 0.05398266339 | ADE13: 0.04321636952 | ADF13: 0.03819108322 | ADG13: 0.07038945746 | ADH13: 0.08058081965 | ADI13: 0.05361941415 | ADJ13: 0.07755527279 | ADK13: 0.07274878188 | ADL13: 0.04091576136 | ADM13: 0.06764331139 | ADN13: 0.04248722515 | ADO13: 0.1016882542 | ADP13: 0.02943696794 | ADQ13: 0.05531882632 | ADR13: 0.06069278958 | ADS13: 0.04263372323 | ADT13: 0.06681249702 | ADU13: 0.05340985354 | ADV13: 0.05027549237 | ADW13: 0.0298189613 | ADX13: 0.03902877477 | ADY13: 0.03228093684 | ADZ13: 0.04988054084 | AEA13: 0.07178812843 | AEB13: 0.05674076839 | AEC13: 0.04832010102 | AED13: 0.02850081457 | AEE13: 0.05165399814 | AEF13: 0.02596497006 | AEG13: 0.04096979622 | AEH13: 0.04982747316 | AEI13: 0.09321437453 | AEJ13: 0.02947605301 | AEK13: 0.02569135137 | AEL13: 0.03689740985 | AEM13: 0.04082585616 | AEN13: 0.05318766069 | AEO13: 0.05621765287 | AEP13: 0.06509453792 | AEQ13: 0.03167888787 | AER13: 0.05140726892 | AES13: 0.03660109328 | AET13: 0.05448433782 | AEU13: 0.02859189923 | AEV13: 0.03026326853 | AEW13: 0.0396177113 | AEX13: 0.04996051412 | AEY13: 0.07009817183 | AEZ13: 0.0429311528 | AFA13: 0.03251444063 | AFB13: 0.07115159672 | AFC13: 0.04054729872 | AFD13: 0.03242499925 | AFE13: 0.06494495418 | AFF13: 0.05992323872 | AFG13: 0.06523671101 | AFH13: 0.04612742689 | AFI13: 0.07893885035 | AFJ13: 0.04269799356 | AFK13: 0.04953981148 | AFL13: 0.0327754107 | AFM13: 0.06428213202 | AFN13: 0.03846378294 | AFO13: 0.04947486604 | AFP13: 0.09048718469 | AFQ13: 0.05485275063 | AFR13: 0.03838412151 | AFS13: 0.04902007287 | AFT13: 0.04387867795 | AFU13: 0.05549428636 | AFV13: 0.06183937755 | AFW13: 0.04139840656 | AFX13: 0.05701215195 | AFY13: 0.06116550303 | AFZ13: 0.04705276812 | AGA13: 0.06783809919 | AGB13: 0.04285554181 | AGC13: 0.04914829249 | AGD13: 0.06036190419 | AGE13: 0.05866623289 | AGF13: 0.06751074924 | AGG13: 0.04747018696 | AGH13: 0.049478664 | AGI13: 0.05335560583 | AGJ13: 0.07564189987 | AGK13: 0.03361051377 | AGL13: 0.03835719157 | AGM13: 0.02033211476 | AGN13: 0.05694437676 | AGO13: 0.04935470137 | AGP13: 0.03396888751 | AGQ13: 0.05033818204 | AGR13: 0.04524797151 | AGS13: 0.01789181608 | AGT13: 0.04059129671 | AGU13: 0.1066906292 | AGV13: 0.04745345573 | AGW13: 0.04059611377 | AGX13: 0.04665048208 | AGY13: 0.09832182107 | AGZ13: 0.06175388984 | AHA13: 0.07300477766 | AHB13: 0.03258785087 | AHC13: 0.05175081009 | AHD13: 0.07057086669 | AHE13: 0.02587024654 | AHF13: 0.03214201425 | AHG13: 0.05442051049 | AHH13: 0.0355458257 | AHI13: 0.04414783033 | AHJ13: 0.03738068851 | AHK13: 0.03855792223 | AHL13: 0.07677362925 | AHM13: 0.03565804939 | AHN13: 0.05031244253 | AHO13: 0.03975878177 | AHP13: 0.07910555014 | AHQ13: 0.04491372253 | AHR13: 0.08038067745 | AHS13: 0.06209152199 | AHT13: 0.07218226173 | AHU13: 0.0648435026 | AHV13: 0.07244180017 | AHW13: 0.05557406254 | AHX13: 0.055807418 | AHY13: 0.03853289552 | AHZ13: 0.05047674282 | AIA13: 0.05575609328 | AIB13: 0.06303811166 | AIC13: 0.05939648249 | AID13: 0.06588559944 | AIE13: 0.06208004176 | AIF13: 0.06170726126 | AIG13: 0.06364467377 | AIH13: 0.06646318957 | AII13: 0.03988481961 | AIJ13: 0.04308400025 | AIK13: 0.08404292174 | AIL13: 0.0557678399 | AIM13: 0.04066359754 | AIN13: 0.03302599175 | AIO13: 0.07987743972 | AIP13: 0.06512655773 | AIQ13: 0.05050926036 | AIR13: 0.04778454044 | AIS13: 0.06468716516 | AIT13: 0.04907462199 | AIU13: 0.05642675437 | AIV13: 0.03948767423 | AIW13: 0.03418794648 | AIX13: 0.06108402225 | AIY13: 0.0552092476 | AIZ13: 0.04324261056 | AJA13: 0.02515183402 | AJB13: 0.03194878585 | AJC13: 0.03833465132 | AJD13: 0.06175172542 | AJE13: 0.08374126004 | AJF13: 0.0511322918 | AJG13: 0.0577593287 | AJH13: 0.06692711348 | AJI13: 0.06136785872 | AJJ13: 0.03177245544 | AJK13: 0.05469410849 | AJL13: 0.06431973894 | AJM13: 0.04073207748 | AJN13: 0.05091786213 | AJO13: 0.05249380312 | AJP13: 0.0527797501 | AJQ13: 0.0513532678 | AJR13: 0.0659638912 | AJS13: 0.04252827724 | AJT13: 0.05781276737 | AJU13: 0.05744978045 | AJV13: 0.02991566236 | AJW13: 0.08078670126 | AJX13: 0.04113315531 | AJY13: 0.05556881244 | AJZ13: 0.03892887901 | AKA13: 0.03824339537 | AKB13: 0.06031214687 | AKC13: 0.079537382 | AKD13: 0.04957201543 | AKE13: 0.04100945366 | AKF13: 0.02206548531 | AKG13: 0.07301362566 | AKH13: 0.0503708316 | AKI13: 0.04888989753 | AKJ13: 0.05479796465 | AKK13: 0.0525453069 | AKL13: 0.09145074681 | AKM13: 0.03719592692 | AKN13: 0.06399475404 | AKO13: 0.06621159925 | AKP13: 0.04053006568 | AKQ13: 0.05030542468 | AKR13: 0.03014562143 | AKS13: 0.06983386489 | AKT13: 0.04954256644 | AKU13: 0.07367740559 | AKV13: 0.0384091534 | AKW13: 0.09432777556 | AKX13: 0.058453862 | AKY13: 0.05385648099 | AKZ13: 0.04214764397 | ALA13: 0.1013934421 | ALB13: 0.03371857076 | ALC13: 0.06914061137 | ALD13: 0.05747481813 | ALE13: 0.0348689868 | ALF13: 0.03948989658 | ALG13: 0.08574771779 | ALH13: 0.09195414726 | ALI13: 0.03801822814 | ALJ13: 0.06427026681 | ALK13: 0.0393239426 | ALL13: 0.06985147574 | ALM13: 0.05579287101 | ALN13: 0.09065223621 | ALO13: 0.04108316546 | ALP13: 0.05663228753 | ALQ13: 0.074646015 | ALR13: 0.03670806889 | ALS13: 0.06170342372 | ALT13: 0.0866793356 | ALU13: 0.06184076347 | ALV13: 0.03427370442 | ALW13: 0.07768445044 | ALX13: 0.0591010144 | ALY13: 0.02747224413 | ALZ13: 0.06145970974 | AMA13: 0.03606112441 | AMB13: 0.07020619462 | AMC13: 0.05239224436 | AMD13: 0.06550340082 | AME13: 0.05478548514 | AMF13: 0.03304687754 | AMG13: 0.02775051913 | AMH13: 0.06155141226 | AMI13: 0.06196259889 | AML13: 0.02912891454 | AMM13: 0.03337729021 | AMN13: 0.03620079118 | AMO13: 0.03848524796 | AMP13: 0.04076509279 | AMQ13: 0.04304747805 | AMR13: 0.04543333011 | AMS13: 0.04783681805 | AMT13: 0.04991262106 | AMU13: 0.05187713496 | AMV13: 0.0540251364 | AMW13: 0.05612231897 | AMX13: 0.05864424206 | AMY13: 0.06164913555 | AMZ13: 0.06479690196 | ANA13: 0.06874392793 | ANB13: 0.0739496635 | ANC13: 0.08067548914 | AND13: 0.09232871311 | ANF13: 5055.623935 | ANG13: 5744.22375 | ANH13: 6712.350059 | ANI13: 6584.326451 | ANJ13: 6148.743044 | ANK13: 5765.617288 | ANL13: 6083.30724 | ANM13: 6020.667043 | ANN13: 5115.377445 | ANO13: 5571.021357 | ANP13: 5328.19521 | ANQ13: 4388.31941 | ANR13: 3397.993806 | ANS13: 3314.170384 | ANT13: 3598.301143 | ANU13: 3419.388737 | ANV13: 4176.746632 | ANW13: 3441.835503 | ANX13: 2979.950263 | ANY13: =IFERROR(MATCH(MIN(ABS(ANF13:ANX13)),ABS(ANF13:ANX13),0),"") -> 19 | ANZ13: =IFERROR(INDEX(ANF13:ANX13,MIN(MAX(ANY13-1,1),17)),"") -> 4176.746632 | AOA13: =IFERROR(INDEX(ANF13:ANX13,MIN(MAX(ANY13,2),18)),"") -> 3441.835503 | AOB13: =IFERROR(INDEX(ANF13:ANX13,MIN(MAX(ANY13,3),19)),"") -> 2979.950263 | AOC13: =IFERROR(INDEX(AML13:AND13,MIN(MAX(ANY13-1,1),17)),"") -> 0.0739496635 | AOD13: =IFERROR(INDEX(AML13:AND13,MIN(MAX(ANY13,2),18)),"") -> 0.08067548914 | AOE13: =IFERROR(INDEX(AML13:AND13,MIN(MAX(ANY13,3),19)),"") -> 0.09232871311 | AOF13: 0.1345590481
V14: =IFERROR(IF(ISBLANK(Variables[[#This Row],[Variable Name]]), "", Variables[[#This Row],[Variable Name]]), "") -> 
A15: Decision Model Summary
A16: Use this space to describe your decision model or cash flow.
D17: Years
C18: 0 | D18: 1 | E18: 2 | F18: 3 | G18: 4 | H18: 5
A19: Costs
A20: Initial Development Costs | C20: =-DevC -> -13321.95772
A21: Cancellation? (1=cancelled) | C21: =Canc -> 0
A23: Benefits
A24: Labor savings | D24: =LoadLab*Reduc*(1-$C21) -> 2823.595624 | E24: =LoadLab*Reduc*(1-$C21) -> 2823.595624 | F24: =LoadLab*Reduc*(1-$C21) -> 2823.595624 | G24: =LoadLab*Reduc*(1-$C21) -> 2823.595624 | H24: =LoadLab*Reduc*(1-$C21) -> 2823.595624
A26: Net Cash Flow | C26: =C24+C20 -> -13321.95772 | D26: =D24+D20 -> 2823.595624 | E26: =E24+E20 -> 2823.595624 | F26: 2823.595624 | G26: 2823.595624 | H26: 2823.595624
A28: Results Summary
A29: This section shows the output of the simulation in two charts: a histogram of NPVs and a loss exceedance curve. Certain Monetary Equivalent (CME) is also computed. Enter chart min and increment size to modify how the histogram is displayed.
C31: Histogram of Simulated NPV | G31: Loss Exceedance Curve
A33: Average NPV | B33: =IFERROR(AVERAGE(X7:AMI7), 0) -> 4858.052527
A34: Average Loss | B34: =IFERROR(SUMIF(X7:AMI7,"<0")/COUNTIF(X7:AMI7,"<0"), 0) -> -3573.819853
A35: Base EOL | B35: =IFERROR(IF(B38=1,-AVERAGEIF(X7:AMI7,"<=0")*B36,AVERAGEIF(X7:AMI7,">=0")*(1-B36)),0) -> 814.8309265
A36: P(NPV<0) | B36: =COUNTIF(X7:AMI7,"<0")/1000 -> 0.228
A37: RRA CME | B37: =IFERROR((EXP(LN(AVERAGE(X8:AMI8)*(1-'Risk Tolerance Table'!F9)+1)/(1-'Risk Tolerance Table'!F9))-'Risk Tolerance Table'!F10)*'Risk Tolerance Table'!C3, 0) -> 4225.148058
A38: Default Action (1=Invest) | B38: =IF(B33>0,1,0) -> 1
A39: Sum of Individual EVPIs | B39: =SUM(J9:J13) -> 605.2806309
A41: Chart Min | B41: -20000
A42: Increment | B42: 1000
A43: Chart Max | B43: =B41+B42*30 -> 10000
A45: The probability of losing more than | B45: -4000
A46: is | B46: =_xlfn.PERCENTRANK.INC(X7:AMI7,B45,) -> 0.079
A49: Relative Risk Aversion (Use RiskTolerance Ws Tab) | C49: Data for Graphs
A50: Utility Coefficients: | B50: ='Risk Tolerance Table'!F9 -> 0.695746569 | C50: The table below ais used to construct the above histogram and loss exceedance tolerance curve. The size of the bins can be changed using the above yellow cells
A51: Initial Wealth: | B51: ='Risk Tolerance Table'!F10*'Risk Tolerance Table'!C3 -> 21000 | C51: Increment Midpoint | D51: Increment Lower Bound | E51: Increment Upper Bound | F51: Count less than Upper Bound | G51: Number within Increment | H51: Loss Exceedance Probability | I51: Loss Exceeded
A52: Maximum Simulated loss | B52: =MIN(X7:AMI7) -> -13565.90749 | C52: =B41 -> -20000 | D52: =C52-B$42/2 -> -20500 | E52: =C52+B$42/2 -> -19500 | F52: =COUNTIF(X$7:AMI$7,"<="&E52) -> 0 | G52: =F52 -> 0 | H52: =COUNTIF(X$7:AMI$7,"<"&C52)/1000 -> 0 | I52: =-C52 -> 20000
A53: Wealth Check | B53: =IF(-1*B51<B52,"Good", "Insufficient Wealth") -> Good | C53: =C52+B$42 -> -19000 | D53: =C53-B$42/2 -> -19500 | E53: =C53+B$42/2 -> -18500 | F53: =COUNTIF(X$7:AMI$7,"<="&E53) -> 0 | G53: =F53-F52 -> 0 | H53: =COUNTIF(X$7:AMI$7,"<"&C53)/1000 -> 0 | I53: 19000
A54: Scale | B54: ='Risk Tolerance Table'!C3 -> 10000 | C54: =C53+B$42 -> -18000 | D54: =C54-B$42/2 -> -18500 | E54: =C54+B$42/2 -> -17500 | F54: =COUNTIF(X$7:AMI$7,"<="&E54) -> 0 | G54: 0 | H54: =COUNTIF(X$7:AMI$7,"<"&C54)/1000 -> 0 | I54: 18000
A55: Risk Tolerance | C55: -17000 | D55: -17500 | E55: -16500 | F55: 0 | G55: 0 | H55: 0 | I55: 17000
A56: To use the stated loss exceedance tolerance curve with the loss exceedance curve above fill in a set of loss and probabilities such that the loss at each probability is barely acceptable. | C56: -16000 | D56: -16500 | E56: -15500 | F56: 0 | G56: 0 | H56: 0 | I56: 16000
A57: Loss (per year) | B57: Acceptable P Loss Exceeded | C57: -15000 | D57: -15500 | E57: -14500 | F57: 0 | G57: 0 | H57: 0 | I57: 15000
A58: 1000 | B58: 0.1 | C58: -14000 | D58: -14500 | E58: -13500 | F58: 2 | G58: 2 | H58: 0 | I58: 14000
A59: 2000 | B59: 0.05 | C59: -13000 | D59: -13500 | E59: -12500 | F59: 5 | G59: 3 | H59: 0.002 | I59: 13000
A60: 10000 | B60: 0.01 | C60: -12000 | D60: -12500 | E60: -11500 | F60: 7 | G60: 2 | H60: 0.006 | I60: 12000
A61: 50000 | B61: 0.0001 | C61: -11000 | D61: -11500 | E61: -10500 | F61: 11 | G61: 4 | H61: 0.009 | I61: 11000
C62: -10000 | D62: -10500 | E62: -9500 | F62: 18 | G62: 7 | H62: 0.015 | I62: 10000
C63: -9000 | D63: -9500 | E63: -8500 | F63: 19 | G63: 1 | H63: 0.018 | I63: 9000
C64: -8000 | D64: -8500 | E64: -7500 | F64: 29 | G64: 10 | H64: 0.023 | I64: 8000
C65: -7000 | D65: -7500 | E65: -6500 | F65: 37 | G65: 8 | H65: 0.031 | I65: 7000
C66: -6000 | D66: -6500 | E66: -5500 | F66: 53 | G66: 16 | H66: 0.044 | I66: 6000
C67: -5000 | D67: -5500 | E67: -4500 | F67: 71 | G67: 18 | H67: 0.061 | I67: 5000
C68: -4000 | D68: -4500 | E68: -3500 | F68: 93 | G68: 22 | H68: 0.08 | I68: 4000
C69: -3000 | D69: -3500 | E69: -2500 | F69: 119 | G69: 26 | H69: 0.104 | I69: 3000
C70: -2000 | D70: -2500 | E70: -1500 | F70: 158 | G70: 39 | H70: 0.138 | I70: 2000
C71: -1000 | D71: -1500 | E71: -500 | F71: 197 | G71: 39 | H71: 0.173 | I71: 1000
C72: 0 | D72: -500 | E72: 500 | F72: 255 | G72: 58 | H72: 0.228 | I72: 0
C73: 1000 | D73: 500 | E73: 1500 | F73: 314 | G73: 59 | H73: 0.283 | I73: -1000
C74: 2000 | D74: 1500 | E74: 2500 | F74: 380 | G74: 66 | H74: 0.353 | I74: -2000
C75: 3000 | D75: 2500 | E75: 3500 | F75: 445 | G75: 65 | H75: 0.415 | I75: -3000
C76: 4000 | D76: 3500 | E76: 4500 | F76: 516 | G76: 71 | H76: 0.489 | I76: -4000
C77: 5000 | D77: 4500 | E77: 5500 | F77: 566 | G77: 50 | H77: 0.541 | I77: -5000
C78: 6000 | D78: 5500 | E78: 6500 | F78: 625 | G78: 59 | H78: 0.601 | I78: -6000
C79: 7000 | D79: 6500 | E79: 7500 | F79: 675 | G79: 50 | H79: 0.644 | I79: -7000
C80: 8000 | D80: 7500 | E80: 8500 | F80: 727 | G80: 52 | H80: 0.705 | I80: -8000
C81: 9000 | D81: 8500 | E81: 9500 | F81: 768 | G81: 41 | H81: 0.746 | I81: -9000
C82: 10000 | D82: 9500 | E82: 10500 | F82: 799 | G82: 31 | H82: 0.781 | I82: -10000
C83: 11000 | D83: 10500 | E83: 11500 | F83: 833 | G83: 34 | H83: 0.817 | I83: -11000
C84: 12000 | D84: 11500 | E84: 12500 | F84: 856 | G84: 23 | H84: 0.847 | I84: -12000
C85: 13000 | D85: 12500 | E85: 13500 | F85: 888 | G85: 32 | H85: 0.876 | I85: -13000
C86: 14000 | D86: 13500 | E86: 14500 | F86: 910 | G86: 22 | H86: 0.899 | I86: -14000
C87: 15000 | D87: 14500 | E87: 15500 | F87: 934 | G87: 24 | H87: 0.92 | I87: -15000
C88: 16000 | D88: 15500 | E88: 16500 | F88: 949 | G88: 15 | H88: 0.942 | I88: -16000
C89: 17000 | D89: 16500 | E89: 17500 | F89: 966 | G89: 17 | H89: 0.962 | I89: -17000
C90: 18000 | D90: 17500 | E90: 18500 | F90: 974 | G90: 8 | H90: 0.972 | I90: -18000
C91: 19000 | D91: 18500 | E91: 19500 | F91: 982 | G91: 8 | H91: 0.979 | I91: -19000
C92: 20000 | D92: 19500 | E92: 20500 | F92: 988 | G92: 6 | H92: 0.987 | I92: -20000
C93: 21000 | D93: 20500 | E93: 21500 | F93: 991 | G93: 3 | H93: 0.989 | I93: -21000
C94: 22000 | D94: 21500 | E94: 22500 | F94: 993 | G94: 2 | H94: 0.992 | I94: -22000
C95: 23000 | D95: 22500 | E95: 23500 | F95: 995 | G95: 2 | H95: 0.994 | I95: -23000
C96: 24000 | D96: 23500 | E96: 24500 | F96: 997 | G96: 2 | H96: 0.995 | I96: -24000
C97: 25000 | D97: 24500 | E97: 25500 | F97: 998 | G97: 1 | H97: 0.997 | I97: -25000
C98: 26000 | D98: 25500 | E98: 26500 | F98: 998 | G98: 0 | H98: 0.998 | I98: -26000
C99: 27000 | D99: 26500 | E99: 27500 | F99: 998 | G99: 0 | H99: 0.998 | I99: -27000
C100: 28000 | D100: 27500 | E100: 28500 | F100: 999 | G100: 1 | H100: 0.999 | I100: -28000
C101: 29000 | D101: 28500 | E101: 29500 | F101: 999 | G101: 0 | H101: 0.999 | I101: -29000
C102: 30000 | D102: 29500 | E102: 30500 | F102: 999 | G102: 0 | H102: 0.999 | I102: -30000
C103: 31000 | D103: 30500 | E103: 31500 | F103: 999 | G103: 0 | H103: 0.999 | I103: -31000
W156: =IFERROR(IF(ISBLANK(Variables[[#This Row],[Simulated Value]]), "", Variables[[#This Row],[Simulated Value]]), "") -> 
W157: =IFERROR(IF(ISBLANK(Variables[[#This Row],[Simulated Value]]), "", Variables[[#This Row],[Simulated Value]]), "") -> 
W158: =IFERROR(IF(ISBLANK(Variables[[#This Row],[Simulated Value]]), "", Variables[[#This Row],[Simulated Value]]), "") -> 
W159: =IFERROR(IF(ISBLANK(Variables[[#This Row],[Simulated Value]]), "", Variables[[#This Row],[Simulated Value]]), "") -> 

Sheet InfoValNormal
A1: Example: Continuous Information Value Calculation Using a Normal Distribution
A3: Instructions: This is an example of an information value calculation for a continuous quantity that is normally distributed (see the next worksheet tab for the example with a uniform distribution). One way to compute the value of reducing uncertainty about a range is to chop up the range into hundreds of small slices, compute the probability and loss for each slice, multiply each probability and loss, and add them all up. This is what this spreadsheet does. It slices the possible range of values of the quantity into 2000 pieces up to 5 standard deviations from the mean. For each slice, it computes the loss and the probability of that slice. The product of each loss & probability pair is added to all the other such products to get the Expected Value of Perfect Information (EVPI) for the uncertain quantity.
A5: This spreadsheet can give a slightly more accurate answer than the chart in the book for two reasons. First, it doesn't depend on "eyeballing" the lines on the chart. Second, the chart doesn't allow for truncated values. That is, the quantity which we are computing the information value for, could be much farther beyond either of the bounds of the 90% CI. But, in reality, we might want to put realistic "hard stops" on these values. This spreadsheet asks for "absolute" min and max bounds in addition to the 90% CI bounds. However, even this is still less accurate than the VIA calculation tools for many special cases. For example, the rate of loss in this spreadsheet is fixed and many loss functions accelerate as things get worse, or it may level off. Hubbard's more sophisticated Monte Carlo tool handles all of these issues. See Hubbard's tools on the catalog page at www.howtomeasureanything.com for more info. Input values into yellow shaded cells
A7: Inputs to Information Value Calculation
A8: 90% CI Upper Bound | D8: 1000000
A9: 90% CI Lower Bound | D9: -1000000
A10: Interval Range | D10: =D8-D9 -> 2000000
A11: Threshold | D11: 0
A12: Loss rate (on the undesirable side of the threshold) | D12: 1
A13: Mean | D13: =(D8+D9)/2 -> 0
A14: Standard deviation | D14: =(D8-D9)/3.29 -> 607902.7356
A15: Does the loss occur under or over the threshold? | D15: under
A16: The absolute minimum the quantity can reach | D16: -9999999999 | AG16: over
A17: The absolute maximum the quantity can reach | D17: 9999999999 | AG17: under
A18: Estimated Information Value for a normally distributed uncertain quantity with the 90% confidence interval adjusted for absolute constraints | D18: =SUMPRODUCT(C23:C2023,D23:D2023)*SUM(D23:D2023) -> 241757.6885
A22: Standard deviation | B22: Quantity | C22: Loss | D22: Incremental Probability | F22: cpf for Data | G22: Incremental P for Data | H22: Parameter Values | I22: Confidence Interval Bars | K22: Threshold Bars | N22: Truncated probabilities
A23: -5 | B23: =A23*D$14+D$13 -> -3039513.678 | C23: =IF(EXACT(D$15,"under"),IF(B23<D$11,D$12*(D$11-B23),0),IF(B23>D$11,D$12*(B23-D$11),0)) -> 3039513.678 | D23: 0 | F23: =NORMDIST(B23,D$13,D$14,1) -> 2.866515719e-07 | I23: =D9 -> -1000000 | J23: 0 | K23: =D11 -> 0 | L23: 0 | N23: Absolute lower | O23: =NORMDIST(D16,D13,D14,1) -> 0
A24: -4.995 | B24: -3036474.164 | C24: 3036474.164 | D24: =IF(OR(B24<D$16,B24>D$17),0,NORMDIST(B24,D$13,D$14,1)-NORMDIST(B23,D$13,D$14,1)) -> 7.527265181e-09 | F24: 2.941788371e-07 | G24: =IF(AND(H24>=D$16,H24<=D$17),(F24-F23)/(1-O$23-O$24),0) -> 7.527265181e-09 | H24: =D$13+A24*D$14 -> -3036474.164 | I24: =D9 -> -1000000 | J24: 0.0005 | K24: =D11 -> 0 | L24: 0.0019 | N24: Absolute upper | O24: =1-NORMDIST(D17,D13,D14,1) -> 0
A25: -4.99 | B25: -3033434.65 | C25: 3033434.65 | D25: 7.717625461e-09 | F25: 3.018964625e-07 | G25: 7.717625461e-09 | H25: -3033434.65 | I25: =D8 -> 1000000 | J25: 0 | AP25: 0
A26: -4.985 | B26: -3030395.137 | C26: 3030395.137 | D26: 7.912602029e-09 | F26: 3.098090645e-07 | G26: 7.912602029e-09 | H26: -3030395.137 | I26: =D8 -> 1000000 | J26: 0.0005 | AP26: 0
A27: -4.98 | B27: -3027355.623 | C27: 3027355.623 | D27: 8.112301636e-09 | F27: 3.179213662e-07 | G27: 8.112301636e-09 | H27: -3027355.623 | AP27: 0
A28: -4.975 | B28: -3024316.109 | C28: 3024316.109 | D28: 8.316833373e-09 | F28: 3.262381996e-07 | G28: 8.316833373e-09 | H28: -3024316.109 | AP28: 0
A29: -4.97 | B29: -3021276.596 | C29: 3021276.596 | D29: 8.526308715e-09 | F29: 3.347645083e-07 | G29: 8.526308715e-09 | H29: -3021276.596 | AP29: 0
A30: -4.965 | B30: -3018237.082 | C30: 3018237.082 | D30: 8.740841571e-09 | F30: 3.435053498e-07 | G30: 8.740841571e-09 | H30: -3018237.082 | AP30: 0
A31: -4.96 | B31: -3015197.568 | C31: 3015197.568 | D31: 8.960548332e-09 | F31: 3.524658982e-07 | G31: 8.960548332e-09 | H31: -3015197.568 | AP31: 0
A32: -4.955 | B32: -3012158.055 | C32: 3012158.055 | D32: 9.185547925e-09 | F32: 3.616514461e-07 | G32: 9.185547925e-09 | H32: -3012158.055 | AP32: 0
A33: -4.95 | B33: -3009118.541 | C33: 3009118.541 | D33: 9.415961862e-09 | F33: 3.71067408e-07 | G33: 9.415961862e-09 | H33: -3009118.541 | AP33: 0
A34: -4.945 | B34: -3006079.027 | C34: 3006079.027 | D34: 9.651914293e-09 | F34: 3.807193223e-07 | G34: 9.651914293e-09 | H34: -3006079.027 | AP34: 0
A35: -4.94 | B35: -3003039.514 | C35: 3003039.514 | D35: 9.893532062e-09 | F35: 3.906128543e-07 | G35: 9.893532062e-09 | H35: -3003039.514 | AP35: 0
A36: -4.935 | B36: -3000000 | C36: 3000000 | D36: 1.014094476e-08 | F36: 4.007537991e-07 | G36: 1.014094476e-08 | H36: -3000000 | AP36: 0
A37: -4.93 | B37: -2996960.486 | C37: 2996960.486 | D37: 1.039428477e-08 | F37: 4.111480838e-07 | G37: 1.039428477e-08 | H37: -2996960.486 | AP37: 0
A38: -4.925 | B38: -2993920.973 | C38: 2993920.973 | D38: 1.065368735e-08 | F38: 4.218017712e-07 | G38: 1.065368735e-08 | H38: -2993920.973 | AP38: 0
A39: -4.92 | B39: -2990881.459 | C39: 2990881.459 | D39: 1.091929067e-08 | F39: 4.327210619e-07 | G39: 1.091929067e-08 | H39: -2990881.459 | AP39: 0
A40: -4.915 | B40: -2987841.945 | C40: 2987841.945 | D40: 1.119123586e-08 | F40: 4.439122977e-07 | G40: 1.119123586e-08 | H40: -2987841.945 | AP40: 0
A41: -4.91 | B41: -2984802.432 | C41: 2984802.432 | D41: 1.146966712e-08 | F41: 4.553819648e-07 | G41: 1.146966712e-08 | H41: -2984802.432 | AP41: 0
A42: -4.905 | B42: -2981762.918 | C42: 2981762.918 | D42: 1.17547317e-08 | F42: 4.671366965e-07 | G42: 1.17547317e-08 | H42: -2981762.918 | AP42: 0
A43: -4.9 | B43: -2978723.404 | C43: 2978723.404 | D43: 1.204658005e-08 | F43: 4.791832766e-07 | G43: 1.204658005e-08 | H43: -2978723.404 | AP43: 0
A44: -4.895 | B44: -2975683.891 | C44: 2975683.891 | D44: 1.234536582e-08 | F44: 4.915286424e-07 | G44: 1.234536582e-08 | H44: -2975683.891 | AP44: 0
A45: -4.89 | B45: -2972644.377 | C45: 2972644.377 | D45: 1.265124595e-08 | F45: 5.041798884e-07 | G45: 1.265124595e-08 | H45: -2972644.377 | AP45: 0
A46: -4.885 | B46: -2969604.863 | C46: 2969604.863 | D46: 1.296438073e-08 | F46: 5.171442691e-07 | G46: 1.296438073e-08 | H46: -2969604.863 | AP46: 0
A47: -4.88 | B47: -2966565.35 | C47: 2966565.35 | D47: 1.328493388e-08 | F47: 5.30429203e-07 | G47: 1.328493388e-08 | H47: -2966565.35 | AP47: 0
A48: -4.875 | B48: -2963525.836 | C48: 2963525.836 | D48: 1.36130726e-08 | F48: 5.440422756e-07 | G48: 1.36130726e-08 | H48: -2963525.836 | AP48: 0
A49: -4.87 | B49: -2960486.322 | C49: 2960486.322 | D49: 1.394896763e-08 | F49: 5.579912432e-07 | G49: 1.394896763e-08 | H49: -2960486.322 | AP49: 0
A50: -4.865 | B50: -2957446.809 | C50: 2957446.809 | D50: 1.429279337e-08 | F50: 5.722840366e-07 | G50: 1.429279337e-08 | H50: -2957446.809 | AP50: 0
A51: -4.86 | B51: -2954407.295 | C51: 2954407.295 | D51: 1.464472789e-08 | F51: 5.869287645e-07 | G51: 1.464472789e-08 | H51: -2954407.295 | AP51: 0
A52: -4.855 | B52: -2951367.781 | C52: 2951367.781 | D52: 1.500495303e-08 | F52: 6.019337175e-07 | G52: 1.500495303e-08 | H52: -2951367.781 | AP52: 0
A53: -4.85 | B53: -2948328.267 | C53: 2948328.267 | D53: 1.537365451e-08 | F53: 6.17307372e-07 | G53: 1.537365451e-08 | H53: -2948328.267 | AP53: 0
A54: -4.845 | B54: -2945288.754 | C54: 2945288.754 | D54: 1.575102193e-08 | F54: 6.330583939e-07 | G54: 1.575102193e-08 | H54: -2945288.754 | AP54: 0
A55: -4.84 | B55: -2942249.24 | C55: 2942249.24 | D55: 1.613724892e-08 | F55: 6.491956429e-07 | G55: 1.613724892e-08 | H55: -2942249.24 | AP55: 0
A56: -4.835 | B56: -2939209.726 | C56: 2939209.726 | D56: 1.653253317e-08 | F56: 6.65728176e-07 | G56: 1.653253317e-08 | H56: -2939209.726 | AP56: 0
A57: -4.83 | B57: -2936170.213 | C57: 2936170.213 | D57: 1.693707653e-08 | F57: 6.826652526e-07 | G57: 1.693707653e-08 | H57: -2936170.213 | AP57: 0
A58: -4.825 | B58: -2933130.699 | C58: 2933130.699 | D58: 1.73510851e-08 | F58: 7.000163377e-07 | G58: 1.73510851e-08 | H58: -2933130.699 | AP58: 0
A59: -4.82 | B59: -2930091.185 | C59: 2930091.185 | D59: 1.777476929e-08 | F59: 7.177911069e-07 | G59: 1.777476929e-08 | H59: -2930091.185 | AP59: 0
A60: -4.815 | B60: -2927051.672 | C60: 2927051.672 | D60: 1.820834391e-08 | F60: 7.359994509e-07 | G60: 1.820834391e-08 | H60: -2927051.672 | AP60: 0
A61: -4.81 | B61: -2924012.158 | C61: 2924012.158 | D61: 1.865202829e-08 | F61: 7.546514791e-07 | G61: 1.865202829e-08 | H61: -2924012.158 | AP61: 0
A62: -4.805 | B62: -2920972.644 | C62: 2920972.644 | D62: 1.910604631e-08 | F62: 7.737575255e-07 | G62: 1.910604631e-08 | H62: -2920972.644 | AP62: 0
A63: -4.8 | B63: -2917933.131 | C63: 2917933.131 | D63: 1.957062652e-08 | F63: 7.93328152e-07 | G63: 1.957062652e-08 | H63: -2917933.131 | AP63: 0
A64: -4.795 | B64: -2914893.617 | C64: 2914893.617 | D64: 2.004600226e-08 | F64: 8.133741542e-07 | G64: 2.004600226e-08 | H64: -2914893.617 | AP64: 0
A65: -4.79 | B65: -2911854.103 | C65: 2911854.103 | D65: 2.053241169e-08 | F65: 8.339065659e-07 | G65: 2.053241169e-08 | H65: -2911854.103 | AP65: 0
A66: -4.785 | B66: -2908814.59 | C66: 2908814.59 | D66: 2.103009791e-08 | F66: 8.549366638e-07 | G66: 2.103009791e-08 | H66: -2908814.59 | AP66: 0
A67: -4.78 | B67: -2905775.076 | C67: 2905775.076 | D67: 2.153930909e-08 | F67: 8.764759729e-07 | G67: 2.153930909e-08 | H67: -2905775.076 | AP67: 0
A68: -4.775 | B68: -2902735.562 | C68: 2902735.562 | D68: 2.206029852e-08 | F68: 8.985362714e-07 | G68: 2.206029852e-08 | H68: -2902735.562 | AP68: 0
A69: -4.77 | B69: -2899696.049 | C69: 2899696.049 | D69: 2.259332472e-08 | F69: 9.211295962e-07 | G69: 2.259332472e-08 | H69: -2899696.049 | AP69: 0
A70: -4.765 | B70: -2896656.535 | C70: 2896656.535 | D70: 2.313865155e-08 | F70: 9.442682477e-07 | G70: 2.313865155e-08 | H70: -2896656.535 | AP70: 0
A71: -4.76 | B71: -2893617.021 | C71: 2893617.021 | D71: 2.369654832e-08 | F71: 9.67964796e-07 | G71: 2.369654832e-08 | H71: -2893617.021 | AP71: 0
A72: -4.755 | B72: -2890577.508 | C72: 2890577.508 | D72: 2.426728986e-08 | F72: 9.922320859e-07 | G72: 2.426728986e-08 | H72: -2890577.508 | AP72: 0
A73: -4.75 | B73: -2887537.994 | C73: 2887537.994 | D73: 2.485115668e-08 | F73: 1.017083243e-06 | G73: 2.485115668e-08 | H73: -2887537.994 | AP73: 0
A74: -4.745 | B74: -2884498.48 | C74: 2884498.48 | D74: 2.544843501e-08 | F74: 1.042531678e-06 | G74: 2.544843501e-08 | H74: -2884498.48 | AP74: 0
A75: -4.74 | B75: -2881458.967 | C75: 2881458.967 | D75: 2.605941697e-08 | F75: 1.068591095e-06 | G75: 2.605941697e-08 | H75: -2881458.967 | AP75: 0
A76: -4.735 | B76: -2878419.453 | C76: 2878419.453 | D76: 2.668440065e-08 | F76: 1.095275495e-06 | G76: 2.668440065e-08 | H76: -2878419.453 | AP76: 0
A77: -4.73 | B77: -2875379.939 | C77: 2875379.939 | D77: 2.732369024e-08 | F77: 1.122599185e-06 | G77: 2.732369024e-08 | H77: -2875379.939 | AP77: 0
A78: -4.725 | B78: -2872340.426 | C78: 2872340.426 | D78: 2.797759611e-08 | F78: 1.150576782e-06 | G78: 2.797759611e-08 | H78: -2872340.426 | AP78: 0
A79: -4.72 | B79: -2869300.912 | C79: 2869300.912 | D79: 2.864643497e-08 | F79: 1.179223217e-06 | G79: 2.864643497e-08 | H79: -2869300.912 | AP79: 0
A80: -4.715 | B80: -2866261.398 | C80: 2866261.398 | D80: 2.933052998e-08 | F80: 1.208553746e-06 | G80: 2.933052998e-08 | H80: -2866261.398 | AP80: 0
A81: -4.71 | B81: -2863221.884 | C81: 2863221.884 | D81: 3.003021085e-08 | F81: 1.238583957e-06 | G81: 3.003021085e-08 | H81: -2863221.884 | AP81: 0
A82: -4.705 | B82: -2860182.371 | C82: 2860182.371 | D82: 3.074581398e-08 | F82: 1.269329771e-06 | G82: 3.074581398e-08 | H82: -2860182.371 | AP82: 0
A83: -4.7 | B83: -2857142.857 | C83: 2857142.857 | D83: 3.147768258e-08 | F83: 1.300807454e-06 | G83: 3.147768258e-08 | H83: -2857142.857 | AP83: 0
A84: -4.695 | B84: -2854103.343 | C84: 2854103.343 | D84: 3.222616681e-08 | F84: 1.333033621e-06 | G84: 3.222616681e-08 | H84: -2854103.343 | AP84: 0
A85: -4.69 | B85: -2851063.83 | C85: 2851063.83 | D85: 3.299162388e-08 | F85: 1.366025245e-06 | G85: 3.299162388e-08 | H85: -2851063.83 | AP85: 0
A86: -4.685 | B86: -2848024.316 | C86: 2848024.316 | D86: 3.377441822e-08 | F86: 1.399799663e-06 | G86: 3.377441822e-08 | H86: -2848024.316 | AP86: 0
A87: -4.68 | B87: =A87*D$14+D$13 -> -2844984.802 | C87: =IF(EXACT(D$15,"under"),IF(B87<D$11,D$12*(D$11-B87),0),IF(B87>D$11,D$12*(B87-D$11),0)) -> 2844984.802 | D87: 3.457492159e-08 | F87: =NORMDIST(B87,D$13,D$14,1) -> 1.434374584e-06 | G87: 3.457492159e-08 | H87: -2844984.802 | AP87: 0
A88: -4.675 | B88: -2841945.289 | C88: 2841945.289 | D88: =IF(OR(B88<D$16,B88>D$17),0,NORMDIST(B88,D$13,D$14,1)-NORMDIST(B87,D$13,D$14,1)) -> 3.539351322e-08 | F88: 1.469768098e-06 | G88: =IF(AND(H88>=D$16,H88<=D$17),(F88-F87)/(1-O$23-O$24),0) -> 3.539351322e-08 | H88: =D$13+A88*D$14 -> -2841945.289 | AP88: 0
A89: -4.67 | B89: -2838905.775 | C89: 2838905.775 | D89: 3.623057995e-08 | F89: 1.505998678e-06 | G89: 3.623057995e-08 | H89: -2838905.775 | AP89: 0
A90: -4.665 | B90: -2835866.261 | C90: 2835866.261 | D90: 3.708651638e-08 | F90: 1.543085194e-06 | G90: 3.708651638e-08 | H90: -2835866.261 | AP90: 0
A91: -4.66 | B91: -2832826.748 | C91: 2832826.748 | D91: 3.796172499e-08 | F91: 1.581046919e-06 | G91: 3.796172499e-08 | H91: -2832826.748 | AP91: 0
A92: -4.655 | B92: -2829787.234 | C92: 2829787.234 | D92: 3.885661632e-08 | F92: 1.619903535e-06 | G92: 3.885661632e-08 | H92: -2829787.234 | AP92: 0
A93: -4.65 | B93: -2826747.72 | C93: 2826747.72 | D93: 3.977160908e-08 | F93: 1.659675144e-06 | G93: 3.977160908e-08 | H93: -2826747.72 | AP93: 0
A94: -4.645 | B94: -2823708.207 | C94: 2823708.207 | D94: 4.070713034e-08 | F94: 1.700382275e-06 | G94: 4.070713034e-08 | H94: -2823708.207 | AP94: 0
A95: -4.64 | B95: -2820668.693 | C95: 2820668.693 | D95: 4.166361564e-08 | F95: 1.74204589e-06 | G95: 4.166361564e-08 | H95: -2820668.693 | AP95: 0
A96: -4.635 | B96: -2817629.179 | C96: 2817629.179 | D96: 4.264150919e-08 | F96: 1.7846874e-06 | G96: 4.264150919e-08 | H96: -2817629.179 | AP96: 0
A97: -4.63 | B97: -2814589.666 | C97: 2814589.666 | D97: 4.364126399e-08 | F97: 1.828328664e-06 | G97: 4.364126399e-08 | H97: -2814589.666 | AP97: 0
A98: -4.625 | B98: -2811550.152 | C98: 2811550.152 | D98: 4.466334203e-08 | F98: 1.872992006e-06 | G98: 4.466334203e-08 | H98: -2811550.152 | AP98: 0
A99: -4.62 | B99: -2808510.638 | C99: 2808510.638 | D99: 4.570821441e-08 | F99: 1.91870022e-06 | G99: 4.570821441e-08 | H99: -2808510.638 | AP99: 0
A100: -4.615 | B100: -2805471.125 | C100: 2805471.125 | D100: 4.677636154e-08 | F100: 1.965476582e-06 | G100: 4.677636154e-08 | H100: -2805471.125 | AP100: 0
A101: -4.61 | B101: -2802431.611 | C101: 2802431.611 | D101: 4.786827329e-08 | F101: 2.013344855e-06 | G101: 4.786827329e-08 | H101: -2802431.611 | AP101: 0
A102: -4.605 | B102: -2799392.097 | C102: 2799392.097 | D102: 4.898444918e-08 | F102: 2.062329304e-06 | G102: 4.898444918e-08 | H102: -2799392.097 | AP102: 0
A103: -4.6 | B103: -2796352.584 | C103: 2796352.584 | D103: 5.012539852e-08 | F103: 2.112454703e-06 | G103: 5.012539852e-08 | H103: -2796352.584 | AP103: 0
A104: -4.595 | B104: -2793313.07 | C104: 2793313.07 | D104: 5.129164063e-08 | F104: 2.163746343e-06 | G104: 5.129164063e-08 | H104: -2793313.07 | AP104: 0
A105: -4.59 | B105: -2790273.556 | C105: 2790273.556 | D105: 5.248370499e-08 | F105: 2.216230048e-06 | G105: 5.248370499e-08 | H105: -2790273.556 | AP105: 0
A106: -4.585 | B106: -2787234.043 | C106: 2787234.043 | D106: 5.370213145e-08 | F106: 2.26993218e-06 | G106: 5.370213145e-08 | H106: -2787234.043 | AP106: 0
A107: -4.58 | B107: -2784194.529 | C107: 2784194.529 | D107: 5.494747037e-08 | F107: 2.32487965e-06 | G107: 5.494747037e-08 | H107: -2784194.529 | AP107: 0
A108: -4.575 | B108: -2781155.015 | C108: 2781155.015 | D108: 5.622028287e-08 | F108: 2.381099933e-06 | G108: 5.622028287e-08 | H108: -2781155.015 | AP108: 0
A109: -4.57 | B109: -2778115.502 | C109: 2778115.502 | D109: 5.752114097e-08 | F109: 2.438621074e-06 | G109: 5.752114097e-08 | H109: -2778115.502 | AP109: 0
A110: -4.565 | B110: -2775075.988 | C110: 2775075.988 | D110: 5.885062782e-08 | F110: 2.497471702e-06 | G110: 5.885062782e-08 | H110: -2775075.988 | AP110: 0
A111: -4.56 | B111: -2772036.474 | C111: 2772036.474 | D111: 6.020933786e-08 | F111: 2.557681039e-06 | G111: 6.020933786e-08 | H111: -2772036.474 | AP111: 0
A112: -4.555 | B112: -2768996.96 | C112: 2768996.96 | D112: 6.159787706e-08 | F112: 2.619278917e-06 | G112: 6.159787706e-08 | H112: -2768996.96 | AP112: 0
A113: -4.55 | B113: -2765957.447 | C113: 2765957.447 | D113: 6.301686312e-08 | F113: 2.68229578e-06 | G113: 6.301686312e-08 | H113: -2765957.447 | AP113: 0
A114: -4.545 | B114: -2762917.933 | C114: 2762917.933 | D114: 6.446692566e-08 | F114: 2.746762705e-06 | G114: 6.446692566e-08 | H114: -2762917.933 | AP114: 0
A115: -4.54 | B115: -2759878.419 | C115: 2759878.419 | D115: 6.594870642e-08 | F115: 2.812711412e-06 | G115: 6.594870642e-08 | H115: -2759878.419 | AP115: 0
A116: -4.535 | B116: -2756838.906 | C116: 2756838.906 | D116: 6.746285953e-08 | F116: 2.880174271e-06 | G116: 6.746285953e-08 | H116: -2756838.906 | AP116: 0
A117: -4.53 | B117: -2753799.392 | C117: 2753799.392 | D117: 6.901005164e-08 | F117: 2.949184323e-06 | G117: 6.901005164e-08 | H117: -2753799.392 | AP117: 0
A118: -4.525 | B118: -2750759.878 | C118: 2750759.878 | D118: 7.059096224e-08 | F118: 3.019775285e-06 | G118: 7.059096224e-08 | H118: -2750759.878 | AP118: 0
A119: -4.52 | B119: -2747720.365 | C119: 2747720.365 | D119: 7.220628382e-08 | F119: 3.091981569e-06 | G119: 7.220628382e-08 | H119: -2747720.365 | AP119: 0
A120: -4.515 | B120: -2744680.851 | C120: 2744680.851 | D120: 7.38567221e-08 | F120: 3.165838291e-06 | G120: 7.38567221e-08 | H120: -2744680.851 | AP120: 0
A121: -4.51 | B121: -2741641.337 | C121: 2741641.337 | D121: 7.55429963e-08 | F121: 3.241381287e-06 | G121: 7.55429963e-08 | H121: -2741641.337 | AP121: 0
A122: -4.505 | B122: -2738601.824 | C122: 2738601.824 | D122: 7.726583932e-08 | F122: 3.318647127e-06 | G122: 7.726583932e-08 | H122: -2738601.824 | AP122: 0
A123: -4.5 | B123: -2735562.31 | C123: 2735562.31 | D123: 7.902599805e-08 | F123: 3.397673125e-06 | G123: 7.902599805e-08 | H123: -2735562.31 | AP123: 0
A124: -4.495 | B124: -2732522.796 | C124: 2732522.796 | D124: 8.082423355e-08 | F124: 3.478497358e-06 | G124: 8.082423355e-08 | H124: -2732522.796 | AP124: 0
A125: -4.49 | B125: -2729483.283 | C125: 2729483.283 | D125: 8.266132132e-08 | F125: 3.56115868e-06 | G125: 8.266132132e-08 | H125: -2729483.283 | AP125: 0
A126: -4.485 | B126: -2726443.769 | C126: 2726443.769 | D126: 8.453805155e-08 | F126: 3.645696731e-06 | G126: 8.453805155e-08 | H126: -2726443.769 | AP126: 0
A127: -4.48 | B127: -2723404.255 | C127: 2723404.255 | D127: 8.645522937e-08 | F127: 3.732151961e-06 | G127: 8.645522937e-08 | H127: -2723404.255 | AP127: 0
A128: -4.475 | B128: -2720364.742 | C128: 2720364.742 | D128: 8.841367513e-08 | F128: 3.820565636e-06 | G128: 8.841367513e-08 | H128: -2720364.742 | AP128: 0
A129: -4.47 | B129: -2717325.228 | C129: 2717325.228 | D129: 9.041422463e-08 | F129: 3.91097986e-06 | G129: 9.041422463e-08 | H129: -2717325.228 | AP129: 0
A130: -4.465 | B130: -2714285.714 | C130: 2714285.714 | D130: 9.24577294e-08 | F130: 4.00343759e-06 | G130: 9.24577294e-08 | H130: -2714285.714 | AP130: 0
A131: -4.46 | B131: -2711246.201 | C131: 2711246.201 | D131: 9.454505696e-08 | F131: 4.097982647e-06 | G131: 9.454505696e-08 | H131: -2711246.201 | AP131: 0
A132: -4.455 | B132: -2708206.687 | C132: 2708206.687 | D132: 9.667709111e-08 | F132: 4.194659738e-06 | G132: 9.667709111e-08 | H132: -2708206.687 | AP132: 0
A133: -4.45 | B133: -2705167.173 | C133: 2705167.173 | D133: 9.885473222e-08 | F133: 4.29351447e-06 | G133: 9.885473222e-08 | H133: -2705167.173 | AP133: 0
A134: -4.445 | B134: -2702127.66 | C134: 2702127.66 | D134: 1.010788975e-07 | F134: 4.394593367e-06 | G134: 1.010788975e-07 | H134: -2702127.66 | AP134: 0
A135: -4.44 | B135: -2699088.146 | C135: 2699088.146 | D135: 1.033505211e-07 | F135: 4.497943889e-06 | G135: 1.033505211e-07 | H135: -2699088.146 | AP135: 0
A136: -4.435 | B136: -2696048.632 | C136: 2696048.632 | D136: 1.05670555e-07 | F136: 4.603614444e-06 | G136: 1.05670555e-07 | H136: -2696048.632 | AP136: 0
A137: -4.43 | B137: -2693009.119 | C137: 2693009.119 | D137: 1.080399684e-07 | F137: 4.711654412e-06 | G137: 1.080399684e-07 | H137: -2693009.119 | AP137: 0
A138: -4.425 | B138: -2689969.605 | C138: 2689969.605 | D138: 1.104597488e-07 | F138: 4.822114161e-06 | G138: 1.104597488e-07 | H138: -2689969.605 | AP138: 0
A139: -4.42 | B139: -2686930.091 | C139: 2686930.091 | D139: 1.129309019e-07 | F139: 4.935045063e-06 | G139: 1.129309019e-07 | H139: -2686930.091 | AP139: 0
A140: -4.415 | B140: -2683890.578 | C140: 2683890.578 | D140: 1.154544521e-07 | F140: 5.050499515e-06 | G140: 1.154544521e-07 | H140: -2683890.578 | AP140: 0
A141: -4.41 | B141: -2680851.064 | C141: 2680851.064 | D141: 1.180314426e-07 | F141: 5.168530957e-06 | G141: 1.180314426e-07 | H141: -2680851.064 | AP141: 0
A142: -4.405 | B142: -2677811.55 | C142: 2677811.55 | D142: 1.20662936e-07 | F142: 5.289193893e-06 | G142: 1.20662936e-07 | H142: -2677811.55 | AP142: 0
A143: -4.4 | B143: -2674772.036 | C143: 2674772.036 | D143: 1.233500144e-07 | F143: 5.412543908e-06 | G143: 1.233500144e-07 | H143: -2674772.036 | AP143: 0
A144: -4.395 | B144: -2671732.523 | C144: 2671732.523 | D144: 1.260937798e-07 | F144: 5.538637687e-06 | G144: 1.260937798e-07 | H144: -2671732.523 | AP144: 0
A145: -4.39 | B145: -2668693.009 | C145: 2668693.009 | D145: 1.288953543e-07 | F145: 5.667533042e-06 | G145: 1.288953543e-07 | H145: -2668693.009 | AP145: 0
A146: -4.385 | B146: -2665653.495 | C146: 2665653.495 | D146: 1.317558808e-07 | F146: 5.799288923e-06 | G146: 1.317558808e-07 | H146: -2665653.495 | AP146: 0
A147: -4.38 | B147: -2662613.982 | C147: 2662613.982 | D147: 1.34676523e-07 | F147: 5.933965446e-06 | G147: 1.34676523e-07 | H147: -2662613.982 | AP147: 0
A148: -4.375 | B148: -2659574.468 | C148: 2659574.468 | D148: 1.376584657e-07 | F148: 6.071623911e-06 | G148: 1.376584657e-07 | H148: -2659574.468 | AP148: 0
A149: -4.37 | B149: -2656534.954 | C149: 2656534.954 | D149: 1.407029156e-07 | F149: 6.212326827e-06 | G149: 1.407029156e-07 | H149: -2656534.954 | AP149: 0
A150: -4.365 | B150: -2653495.441 | C150: 2653495.441 | D150: 1.438111011e-07 | F150: 6.356137928e-06 | G150: 1.438111011e-07 | H150: -2653495.441 | AP150: 0
A151: -4.36 | B151: =A151*D$14+D$13 -> -2650455.927 | C151: =IF(EXACT(D$15,"under"),IF(B151<D$11,D$12*(D$11-B151),0),IF(B151>D$11,D$12*(B151-D$11),0)) -> 2650455.927 | D151: 1.46984273e-07 | F151: =NORMDIST(B151,D$13,D$14,1) -> 6.503122201e-06 | G151: 1.46984273e-07 | H151: -2650455.927 | AP151: 0
A152: -4.355 | B152: -2647416.413 | C152: 2647416.413 | D152: =IF(OR(B152<D$16,B152>D$17),0,NORMDIST(B152,D$13,D$14,1)-NORMDIST(B151,D$13,D$14,1)) -> 1.502237049e-07 | F152: 6.653345906e-06 | G152: =IF(AND(H152>=D$16,H152<=D$17),(F152-F151)/(1-O$23-O$24),0) -> 1.502237049e-07 | H152: =D$13+A152*D$14 -> -2647416.413 | AP152: 0
A153: -4.35 | B153: -2644376.9 | C153: 2644376.9 | D153: 1.535306934e-07 | F153: 6.806876599e-06 | G153: 1.535306934e-07 | H153: -2644376.9 | AP153: 0
A154: -4.345 | B154: -2641337.386 | C154: 2641337.386 | D154: 1.569065584e-07 | F154: 6.963783158e-06 | G154: 1.569065584e-07 | H154: -2641337.386 | AP154: 0
A155: -4.34 | B155: -2638297.872 | C155: 2638297.872 | D155: 1.603526438e-07 | F155: 7.124135801e-06 | G155: 1.603526438e-07 | H155: -2638297.872 | AP155: 0
A156: -4.335 | B156: -2635258.359 | C156: 2635258.359 | D156: 1.638703175e-07 | F156: 7.288006119e-06 | G156: 1.638703175e-07 | H156: -2635258.359 | AP156: 0
A157: -4.33 | B157: -2632218.845 | C157: 2632218.845 | D157: 1.674609723e-07 | F157: 7.455467091e-06 | G157: 1.674609723e-07 | H157: -2632218.845 | AP157: 0
A158: -4.325 | B158: -2629179.331 | C158: 2629179.331 | D158: 1.711260258e-07 | F158: 7.626593117e-06 | G158: 1.711260258e-07 | H158: -2629179.331 | AP158: 0
A159: -4.32 | B159: -2626139.818 | C159: 2626139.818 | D159: 1.74866921e-07 | F159: 7.801460038e-06 | G159: 1.74866921e-07 | H159: -2626139.818 | AP159: 0
A160: -4.315 | B160: -2623100.304 | C160: 2623100.304 | D160: 1.786851267e-07 | F160: 7.980145165e-06 | G160: 1.786851267e-07 | H160: -2623100.304 | AP160: 0
A161: -4.31 | B161: -2620060.79 | C161: 2620060.79 | D161: 1.82582138e-07 | F161: 8.162727303e-06 | G161: 1.82582138e-07 | H161: -2620060.79 | AP161: 0
A162: -4.305 | B162: -2617021.277 | C162: 2617021.277 | D162: 1.865594767e-07 | F162: 8.349286779e-06 | G162: 1.865594767e-07 | H162: -2617021.277 | AP162: 0
A163: -4.3 | B163: -2613981.763 | C163: 2613981.763 | D163: 1.906186915e-07 | F163: 8.539905471e-06 | G163: 1.906186915e-07 | H163: -2613981.763 | AP163: 0
A164: -4.295 | B164: -2610942.249 | C164: 2610942.249 | D164: 1.947613589e-07 | F164: 8.73466683e-06 | G164: 1.947613589e-07 | H164: -2610942.249 | AP164: 0
A165: -4.29 | B165: -2607902.736 | C165: 2607902.736 | D165: 1.98989083e-07 | F165: 8.933655913e-06 | G165: 1.98989083e-07 | H165: -2607902.736 | AP165: 0
A166: -4.285 | B166: -2604863.222 | C166: 2604863.222 | D166: 2.033034965e-07 | F166: 9.136959409e-06 | G166: 2.033034965e-07 | H166: -2604863.222 | AP166: 0
A167: -4.28 | B167: -2601823.708 | C167: 2601823.708 | D167: 2.077062609e-07 | F167: 9.34466567e-06 | G167: 2.077062609e-07 | H167: -2601823.708 | AP167: 0
A168: -4.275 | B168: -2598784.195 | C168: 2598784.195 | D168: 2.121990671e-07 | F168: 9.556864737e-06 | G168: 2.121990671e-07 | H168: -2598784.195 | AP168: 0
A169: -4.27 | B169: -2595744.681 | C169: 2595744.681 | D169: 2.167836356e-07 | F169: 9.773648373e-06 | G169: 2.167836356e-07 | H169: -2595744.681 | AP169: 0
A170: -4.265 | B170: -2592705.167 | C170: 2592705.167 | D170: 2.214617173e-07 | F170: 9.99511009e-06 | G170: 2.214617173e-07 | H170: -2592705.167 | AP170: 0
A171: -4.26 | B171: -2589665.653 | C171: 2589665.653 | D171: 2.262350937e-07 | F171: 1.022134518e-05 | G171: 2.262350937e-07 | H171: -2589665.653 | AP171: 0
A172: -4.255 | B172: -2586626.14 | C172: 2586626.14 | D172: 2.311055776e-07 | F172: 1.045245076e-05 | G172: 2.311055776e-07 | H172: -2586626.14 | AP172: 0
A173: -4.25 | B173: -2583586.626 | C173: 2583586.626 | D173: 2.360750133e-07 | F173: 1.068852577e-05 | G173: 2.360750133e-07 | H173: -2583586.626 | AP173: 0
A174: -4.245 | B174: -2580547.112 | C174: 2580547.112 | D174: 2.411452776e-07 | F174: 1.092967105e-05 | G174: 2.411452776e-07 | H174: -2580547.112 | AP174: 0
A175: -4.24 | B175: -2577507.599 | C175: 2577507.599 | D175: 2.463182796e-07 | F175: 1.117598933e-05 | G175: 2.463182796e-07 | H175: -2577507.599 | AP175: 0
A176: -4.235 | B176: -2574468.085 | C176: 2574468.085 | D176: 2.515959619e-07 | F176: 1.142758529e-05 | G176: 2.515959619e-07 | H176: -2574468.085 | AP176: 0
A177: -4.23 | B177: -2571428.571 | C177: 2571428.571 | D177: 2.569803007e-07 | F177: 1.168456559e-05 | G177: 2.569803007e-07 | H177: -2571428.571 | AP177: 0
A178: -4.225 | B178: -2568389.058 | C178: 2568389.058 | D178: 2.624733064e-07 | F178: 1.19470389e-05 | G178: 2.624733064e-07 | H178: -2568389.058 | AP178: 0
A179: -4.22 | B179: -2565349.544 | C179: 2565349.544 | D179: 2.680770242e-07 | F179: 1.221511593e-05 | G179: 2.680770242e-07 | H179: -2565349.544 | AP179: 0
A180: -4.215 | B180: -2562310.03 | C180: 2562310.03 | D180: 2.737935346e-07 | F180: 1.248890946e-05 | G180: 2.737935346e-07 | H180: -2562310.03 | AP180: 0
A181: -4.21 | B181: -2559270.517 | C181: 2559270.517 | D181: 2.796249539e-07 | F181: 1.276853441e-05 | G181: 2.796249539e-07 | H181: -2559270.517 | AP181: 0
A182: -4.205 | B182: -2556231.003 | C182: 2556231.003 | D182: 2.855734349e-07 | F182: 1.305410785e-05 | G182: 2.855734349e-07 | H182: -2556231.003 | AP182: 0
A183: -4.2 | B183: -2553191.489 | C183: 2553191.489 | D183: 2.916411673e-07 | F183: 1.334574902e-05 | G183: 2.916411673e-07 | H183: -2553191.489 | AP183: 0
A184: -4.195 | B184: -2550151.976 | C184: 2550151.976 | D184: 2.978303781e-07 | F184: 1.364357939e-05 | G184: 2.978303781e-07 | H184: -2550151.976 | AP184: 0
A185: -4.19 | B185: -2547112.462 | C185: 2547112.462 | D185: 3.041433328e-07 | F185: 1.394772273e-05 | G185: 3.041433328e-07 | H185: -2547112.462 | AP185: 0
A186: -4.185 | B186: -2544072.948 | C186: 2544072.948 | D186: 3.105823353e-07 | F186: 1.425830506e-05 | G186: 3.105823353e-07 | H186: -2544072.948 | AP186: 0
A187: -4.18 | B187: -2541033.435 | C187: 2541033.435 | D187: 3.171497287e-07 | F187: 1.457545479e-05 | G187: 3.171497287e-07 | H187: -2541033.435 | AP187: 0
A188: -4.175 | B188: -2537993.921 | C188: 2537993.921 | D188: 3.238478961e-07 | F188: 1.489930269e-05 | G188: 3.238478961e-07 | H188: -2537993.921 | AP188: 0
A189: -4.17 | B189: -2534954.407 | C189: 2534954.407 | D189: 3.30679261e-07 | F189: 1.522998195e-05 | G189: 3.30679261e-07 | H189: -2534954.407 | AP189: 0
A190: -4.165 | B190: -2531914.894 | C190: 2531914.894 | D190: 3.376462879e-07 | F190: 1.556762824e-05 | G190: 3.376462879e-07 | H190: -2531914.894 | AP190: 0
A191: -4.16 | B191: -2528875.38 | C191: 2528875.38 | D191: 3.447514832e-07 | F191: 1.591237972e-05 | G191: 3.447514832e-07 | H191: -2528875.38 | AP191: 0
A192: -4.155 | B192: -2525835.866 | C192: 2525835.866 | D192: 3.519973952e-07 | F192: 1.626437711e-05 | G192: 3.519973952e-07 | H192: -2525835.866 | AP192: 0
A193: -4.15 | B193: -2522796.353 | C193: 2522796.353 | D193: 3.593866154e-07 | F193: 1.662376373e-05 | G193: 3.593866154e-07 | H193: -2522796.353 | AP193: 0
A194: -4.145 | B194: -2519756.839 | C194: 2519756.839 | D194: 3.669217789e-07 | F194: 1.699068551e-05 | G194: 3.669217789e-07 | H194: -2519756.839 | AP194: 0
A195: -4.14 | B195: -2516717.325 | C195: 2516717.325 | D195: 3.74605565e-07 | F195: 1.736529107e-05 | G195: 3.74605565e-07 | H195: -2516717.325 | AP195: 0
A196: -4.135 | B196: -2513677.812 | C196: 2513677.812 | D196: 3.824406977e-07 | F196: 1.774773177e-05 | G196: 3.824406977e-07 | H196: -2513677.812 | AP196: 0
A197: -4.13 | B197: -2510638.298 | C197: 2510638.298 | D197: 3.904299468e-07 | F197: 1.813816172e-05 | G197: 3.904299468e-07 | H197: -2510638.298 | AP197: 0
A198: -4.125 | B198: -2507598.784 | C198: 2507598.784 | D198: 3.985761281e-07 | F198: 1.853673785e-05 | G198: 3.985761281e-07 | H198: -2507598.784 | AP198: 0
A199: -4.12 | B199: -2504559.271 | C199: 2504559.271 | D199: 4.068821044e-07 | F199: 1.894361995e-05 | G199: 4.068821044e-07 | H199: -2504559.271 | AP199: 0
A200: -4.115 | B200: -2501519.757 | C200: 2501519.757 | D200: 4.15350786e-07 | F200: 1.935897074e-05 | G200: 4.15350786e-07 | H200: -2501519.757 | AP200: 0
A201: -4.11 | B201: -2498480.243 | C201: 2498480.243 | D201: 4.239851317e-07 | F201: 1.978295587e-05 | G201: 4.239851317e-07 | H201: -2498480.243 | AP201: 0
A202: -4.105 | B202: -2495440.729 | C202: 2495440.729 | D202: 4.32788149e-07 | F202: 2.021574402e-05 | G202: 4.32788149e-07 | H202: -2495440.729 | AP202: 0
A203: -4.1 | B203: -2492401.216 | C203: 2492401.216 | D203: 4.417628953e-07 | F203: 2.065750691e-05 | G203: 4.417628953e-07 | H203: -2492401.216 | AP203: 0
A204: -4.095 | B204: -2489361.702 | C204: 2489361.702 | D204: 4.509124784e-07 | F204: 2.110841939e-05 | G204: 4.509124784e-07 | H204: -2489361.702 | AP204: 0
A205: -4.09 | B205: -2486322.188 | C205: 2486322.188 | D205: 4.602400572e-07 | F205: 2.156865945e-05 | G205: 4.602400572e-07 | H205: -2486322.188 | AP205: 0
A206: -4.085 | B206: -2483282.675 | C206: 2483282.675 | D206: 4.697488425e-07 | F206: 2.203840829e-05 | G206: 4.697488425e-07 | H206: -2483282.675 | AP206: 0
... 1819 more rows

Sheet InfoValUniform
A1: Example: Continuous Information Value Calculation Using a Uniform Distribution
A2: Instructions: This is an example of an information value calculation for a continuous quantity with a uniform distribution. This calculation is different from the information value calculation for a normal because it can be calculated exactly without needing to "slice up" the distribution as we did with the normal distribution. Input values are the yellow cells.
A4: As with the normal distribution, this spreadsheet can give a slightly more accurate answer than the chart in Doug's book HTMA. The lower and upper bounds of this spreadsheet are "absolute" bounds. Unlike the 90% confidence interval, there is no chance the value can be outside of the stated bounds. The only problem in using this spreadsheet is that for many special cases the "loss rate" may change depending on the quantity estimated. For example, the rate of loss in this spreadsheet is fixed and many loss functions accelerate as things get worse, or it may level off. Hubbard's more advanced Monte Carlo simulation tools address of these issues. See Hubbard's tools on the catalog page at www.howtomeasureanything.com for more info.
A5: Inputs to Information Value Calculation
A6: Upper Bound | D6: 700 | Z6: over
A7: Lower Bound | D7: 450 | Z7: under
A8: Interval Range | D8: =D6-D7 -> 250
A9: Threshold | D9: 500
A10: Loss rate (on the undesirable side of the threshold) | D10: 75000
A11: Mean | D11: =(D6+D7)/2 -> 575
A12: Standard deviation | D12: =(D6-D7)/12^0.5 -> 72.16878365
A13: Does the loss occur under or over the threshold? | D13: under
A14: Information Value if it were a uniform distribution with the absolute constraints above | D14: =IF(EXACT(D13,"under"),MAX(0,D9-D7)^2/2*D10/(D6-D7),MAX(0,D6-D9)^2/2*D10/(D6-D7)) -> 375000
A18: Confidence Interval Bars | C18: Mean Bar | E18: Threshold Bar | G18: Loss Function
A19: =D7 -> 450 | B19: 0 | C19: =D11 -> 575 | D19: 0 | E19: =D9 -> 500 | F19: 0 | G19: =IF(D13="under",D10*ABS(H19-D9),0) -> 13125000 | H19: =D11-D8 -> 325
A20: =D7 -> 450 | B20: 0.1 | C20: =D11 -> 575 | D20: 0.1 | E20: =D9 -> 500 | F20: 0.15 | G20: 0 | H20: =D9 -> 500
A21: =D6 -> 700 | B21: 0.1 | G21: =IF(D13="over",D10*ABS(D9-H21),0) -> 0 | H21: =D11+D8 -> 825
A22: =D6 -> 700 | B22: 0

Sheet InfoValTriangle
A1: Example: Continuous Information Value Calculation Using a Triangular Distribution
A2: Instructions: As with the normal distribution, this spreadsheet can calculate Information value using a triangular distribution. The lower and upper bounds of this spreadsheet are "absolute" bounds. Unlike the 90% confidence interval, there is no chance the value can be outside of the stated bounds. It also takes a mode and a threshold for loss.
A7: Parameters
A8: Lower Bound | B8: 0.1
A9: Mode | B9: 0.4
A10: Upper Bound | B10: 1.1
A11: Threshold | B11: 0.9
A12: Loss Rate | B12: 1
A13: Mean | B13: =AVERAGE(B8:B10) -> 0.5333333333
A14: EVPI | B14: =B18 -> 0.00188069
A15: threshold P | B15: =IF(B11<=B9,IF(B11<=B13,B17*B19,(1-B19)*B17+D19),IF(B11<B13,(1-D21)*D19+B17,D19*D21)) -> 0
A16: X Increment | B16: =(B10-B8)/1000 -> 0.001
A17: Prob of left Side | B17: =(B9-B8)/(B10-B8) -> 0.3
A18: OL | B18: =SUM(E40:E1039) -> 0.00188069
A19: partial triangle P | B19: =IF(B11<B9,IF(B8<B11,((B11-B8)/(B9-B8))^2,0),1) -> 1
A21: Triangle
A22: =B8 -> 0.1 | B22: 0
A23: =B9 -> 0.4 | B23: =2/(A24-A22) -> 2
A24: =B10 -> 1.1 | B24: 0
A26: Threshold
A27: =B11 -> 0.9 | B27: 0
A28: =B11 -> 0.9 | B28: =B23 -> 2
A30: Mean
A31: =($B$8+$B$9+$B$10)/3 -> 0.5333333333 | B31: 0
A32: =($B$8+$B$9+$B$10)/3 -> 0.5333333333 | B32: =B23 -> 2
A38: X Value | B38: Probability | C38: Probability Increment | D38: OL | E38: EOL
A39: =B8 -> 0.1 | B39: =IF(A39<$B$9,(A39-$B$8)^2/(($B$10-$B$8)*($B$9-$B$8)),1-(($B$10-A39)^2)/($B$10-$B$8)*($B$10-$B$9)) -> 0
A40: =A39+B$16 -> 0.101 | B40: =IF(A40<$B$9,(A40-$B$8)^2/(($B$10-$B$8)*($B$9-$B$8)),1-(($B$10-A40)^2)/($B$10-$B$8)*($B$10-$B$9)) -> 3.333333333e-06 | C40: =B40-B39 -> 3.333333333e-06 | D40: =IF(B$8=B$10,0,IF(OR(AND(A40<=B$11,B$11<=B$13),AND(A40>B$11,B$11>B$13)),ABS(A40-B$11)*B$12,0)) -> 0 | E40: =C40*D40 -> 0
A41: 0.102 | B41: =IF(A41<$B$9,(A41-$B$8)^2/(($B$10-$B$8)*($B$9-$B$8)),1-(($B$10-A41)^2)/($B$10-$B$8)*($B$10-$B$9)) -> 1.333333333e-05 | C41: =B41-B40 -> 1e-05 | D41: 0 | E41: =C41*D41 -> 0
A42: 0.103 | B42: 3e-05 | C42: 1.666666667e-05 | D42: 0 | E42: =C42*D42 -> 0
A43: 0.104 | B43: 5.333333333e-05 | C43: 2.333333333e-05 | D43: 0 | E43: 0
A44: 0.105 | B44: 8.333333333e-05 | C44: 3e-05 | D44: 0 | E44: 0
A45: 0.106 | B45: 0.00012 | C45: 3.666666667e-05 | D45: 0 | E45: 0
A46: 0.107 | B46: 0.0001633333333 | C46: 4.333333333e-05 | D46: 0 | E46: 0
A47: 0.108 | B47: 0.0002133333333 | C47: 5e-05 | D47: 0 | E47: 0
A48: 0.109 | B48: 0.00027 | C48: 5.666666667e-05 | D48: 0 | E48: 0
A49: 0.11 | B49: 0.0003333333333 | C49: 6.333333333e-05 | D49: 0 | E49: 0
A50: 0.111 | B50: 0.0004033333333 | C50: 7e-05 | D50: 0 | E50: 0
A51: 0.112 | B51: 0.00048 | C51: 7.666666667e-05 | D51: 0 | E51: 0
A52: 0.113 | B52: 0.0005633333333 | C52: 8.333333333e-05 | D52: 0 | E52: 0
A53: 0.114 | B53: 0.0006533333333 | C53: 9e-05 | D53: 0 | E53: 0
A54: 0.115 | B54: 0.00075 | C54: 9.666666667e-05 | D54: 0 | E54: 0
A55: 0.116 | B55: 0.0008533333333 | C55: 0.0001033333333 | D55: 0 | E55: 0
A56: 0.117 | B56: 0.0009633333333 | C56: 0.00011 | D56: 0 | E56: 0
A57: 0.118 | B57: 0.00108 | C57: 0.0001166666667 | D57: 0 | E57: 0
A58: 0.119 | B58: 0.001203333333 | C58: 0.0001233333333 | D58: 0 | E58: 0
A59: 0.12 | B59: 0.001333333333 | C59: 0.00013 | D59: 0 | E59: 0
A60: 0.121 | B60: 0.00147 | C60: 0.0001366666667 | D60: 0 | E60: 0
A61: 0.122 | B61: 0.001613333333 | C61: 0.0001433333333 | D61: 0 | E61: 0
A62: 0.123 | B62: 0.001763333333 | C62: 0.00015 | D62: 0 | E62: 0
A63: 0.124 | B63: 0.00192 | C63: 0.0001566666667 | D63: 0 | E63: 0
A64: 0.125 | B64: 0.002083333333 | C64: 0.0001633333333 | D64: 0 | E64: 0
A65: 0.126 | B65: 0.002253333333 | C65: 0.00017 | D65: 0 | E65: 0
A66: 0.127 | B66: 0.00243 | C66: 0.0001766666667 | D66: 0 | E66: 0
A67: 0.128 | B67: 0.002613333333 | C67: 0.0001833333333 | D67: 0 | E67: 0
A68: 0.129 | B68: 0.002803333333 | C68: 0.00019 | D68: 0 | E68: 0
A69: 0.13 | B69: 0.003 | C69: 0.0001966666667 | D69: 0 | E69: 0
A70: 0.131 | B70: 0.003203333333 | C70: 0.0002033333333 | D70: 0 | E70: 0
A71: 0.132 | B71: 0.003413333333 | C71: 0.00021 | D71: 0 | E71: 0
A72: 0.133 | B72: 0.00363 | C72: 0.0002166666667 | D72: 0 | E72: 0
A73: 0.134 | B73: 0.003853333333 | C73: 0.0002233333333 | D73: 0 | E73: 0
A74: 0.135 | B74: 0.004083333333 | C74: 0.00023 | D74: 0 | E74: 0
A75: 0.136 | B75: 0.00432 | C75: 0.0002366666667 | D75: 0 | E75: 0
A76: 0.137 | B76: 0.004563333333 | C76: 0.0002433333333 | D76: 0 | E76: 0
A77: 0.138 | B77: 0.004813333333 | C77: 0.00025 | D77: 0 | E77: 0
A78: 0.139 | B78: 0.00507 | C78: 0.0002566666667 | D78: 0 | E78: 0
A79: 0.14 | B79: 0.005333333333 | C79: 0.0002633333333 | D79: 0 | E79: 0
A80: 0.141 | B80: 0.005603333333 | C80: 0.00027 | D80: 0 | E80: 0
A81: 0.142 | B81: 0.00588 | C81: 0.0002766666667 | D81: 0 | E81: 0
A82: 0.143 | B82: 0.006163333333 | C82: 0.0002833333333 | D82: 0 | E82: 0
A83: 0.144 | B83: 0.006453333333 | C83: 0.00029 | D83: 0 | E83: 0
A84: 0.145 | B84: 0.00675 | C84: 0.0002966666667 | D84: 0 | E84: 0
A85: 0.146 | B85: 0.007053333333 | C85: 0.0003033333333 | D85: 0 | E85: 0
A86: 0.147 | B86: 0.007363333333 | C86: 0.00031 | D86: 0 | E86: 0
A87: 0.148 | B87: 0.00768 | C87: 0.0003166666667 | D87: 0 | E87: 0
A88: 0.149 | B88: 0.008003333333 | C88: 0.0003233333333 | D88: 0 | E88: 0
A89: 0.15 | B89: 0.008333333333 | C89: 0.00033 | D89: 0 | E89: 0
A90: 0.151 | B90: 0.00867 | C90: 0.0003366666667 | D90: 0 | E90: 0
A91: 0.152 | B91: 0.009013333333 | C91: 0.0003433333333 | D91: 0 | E91: 0
A92: 0.153 | B92: 0.009363333333 | C92: 0.00035 | D92: 0 | E92: 0
A93: 0.154 | B93: 0.00972 | C93: 0.0003566666667 | D93: 0 | E93: 0
A94: 0.155 | B94: 0.01008333333 | C94: 0.0003633333333 | D94: 0 | E94: 0
A95: 0.156 | B95: 0.01045333333 | C95: 0.00037 | D95: 0 | E95: 0
A96: 0.157 | B96: 0.01083 | C96: 0.0003766666667 | D96: 0 | E96: 0
A97: 0.158 | B97: 0.01121333333 | C97: 0.0003833333333 | D97: 0 | E97: 0
A98: 0.159 | B98: 0.01160333333 | C98: 0.00039 | D98: 0 | E98: 0
A99: 0.16 | B99: 0.012 | C99: 0.0003966666667 | D99: 0 | E99: 0
A100: 0.161 | B100: 0.01240333333 | C100: 0.0004033333333 | D100: 0 | E100: 0
A101: 0.162 | B101: 0.01281333333 | C101: 0.00041 | D101: 0 | E101: 0
A102: 0.163 | B102: 0.01323 | C102: 0.0004166666667 | D102: 0 | E102: 0
A103: 0.164 | B103: 0.01365333333 | C103: 0.0004233333333 | D103: 0 | E103: 0
A104: =A103+B$16 -> 0.165 | B104: =IF(A104<$B$9,(A104-$B$8)^2/(($B$10-$B$8)*($B$9-$B$8)),1-(($B$10-A104)^2)/($B$10-$B$8)*($B$10-$B$9)) -> 0.01408333333 | C104: 0.00043 | D104: =IF(B$8=B$10,0,IF(OR(AND(A104<=B$11,B$11<=B$13),AND(A104>B$11,B$11>B$13)),ABS(A104-B$11)*B$12,0)) -> 0 | E104: 0
A105: 0.166 | B105: 0.01452 | C105: =B105-B104 -> 0.0004366666667 | D105: 0 | E105: =C105*D105 -> 0
A106: 0.167 | B106: 0.01496333333 | C106: 0.0004433333333 | D106: 0 | E106: 0
A107: 0.168 | B107: 0.01541333333 | C107: 0.00045 | D107: 0 | E107: 0
A108: 0.169 | B108: 0.01587 | C108: 0.0004566666667 | D108: 0 | E108: 0
A109: 0.17 | B109: 0.01633333333 | C109: 0.0004633333333 | D109: 0 | E109: 0
A110: 0.171 | B110: 0.01680333333 | C110: 0.00047 | D110: 0 | E110: 0
A111: 0.172 | B111: 0.01728 | C111: 0.0004766666667 | D111: 0 | E111: 0
A112: 0.173 | B112: 0.01776333333 | C112: 0.0004833333333 | D112: 0 | E112: 0
A113: 0.174 | B113: 0.01825333333 | C113: 0.00049 | D113: 0 | E113: 0
A114: 0.175 | B114: 0.01875 | C114: 0.0004966666667 | D114: 0 | E114: 0
A115: 0.176 | B115: 0.01925333333 | C115: 0.0005033333333 | D115: 0 | E115: 0
A116: 0.177 | B116: 0.01976333333 | C116: 0.00051 | D116: 0 | E116: 0
A117: 0.178 | B117: 0.02028 | C117: 0.0005166666667 | D117: 0 | E117: 0
A118: 0.179 | B118: 0.02080333333 | C118: 0.0005233333333 | D118: 0 | E118: 0
A119: 0.18 | B119: 0.02133333333 | C119: 0.00053 | D119: 0 | E119: 0
A120: 0.181 | B120: 0.02187 | C120: 0.0005366666667 | D120: 0 | E120: 0
A121: 0.182 | B121: 0.02241333333 | C121: 0.0005433333333 | D121: 0 | E121: 0
A122: 0.183 | B122: 0.02296333333 | C122: 0.00055 | D122: 0 | E122: 0
A123: 0.184 | B123: 0.02352 | C123: 0.0005566666667 | D123: 0 | E123: 0
A124: 0.185 | B124: 0.02408333333 | C124: 0.0005633333333 | D124: 0 | E124: 0
A125: 0.186 | B125: 0.02465333333 | C125: 0.00057 | D125: 0 | E125: 0
A126: 0.187 | B126: 0.02523 | C126: 0.0005766666667 | D126: 0 | E126: 0
A127: 0.188 | B127: 0.02581333333 | C127: 0.0005833333333 | D127: 0 | E127: 0
A128: 0.189 | B128: 0.02640333333 | C128: 0.00059 | D128: 0 | E128: 0
A129: 0.19 | B129: 0.027 | C129: 0.0005966666667 | D129: 0 | E129: 0
A130: 0.191 | B130: 0.02760333333 | C130: 0.0006033333333 | D130: 0 | E130: 0
A131: 0.192 | B131: 0.02821333333 | C131: 0.00061 | D131: 0 | E131: 0
A132: 0.193 | B132: 0.02883 | C132: 0.0006166666667 | D132: 0 | E132: 0
A133: 0.194 | B133: 0.02945333333 | C133: 0.0006233333333 | D133: 0 | E133: 0
A134: 0.195 | B134: 0.03008333333 | C134: 0.00063 | D134: 0 | E134: 0
A135: 0.196 | B135: 0.03072 | C135: 0.0006366666667 | D135: 0 | E135: 0
A136: 0.197 | B136: 0.03136333333 | C136: 0.0006433333333 | D136: 0 | E136: 0
A137: 0.198 | B137: 0.03201333333 | C137: 0.00065 | D137: 0 | E137: 0
A138: 0.199 | B138: 0.03267 | C138: 0.0006566666667 | D138: 0 | E138: 0
A139: 0.2 | B139: 0.03333333333 | C139: 0.0006633333333 | D139: 0 | E139: 0
A140: 0.201 | B140: 0.03400333333 | C140: 0.00067 | D140: 0 | E140: 0
A141: 0.202 | B141: 0.03468 | C141: 0.0006766666667 | D141: 0 | E141: 0
A142: 0.203 | B142: 0.03536333333 | C142: 0.0006833333333 | D142: 0 | E142: 0
A143: 0.204 | B143: 0.03605333333 | C143: 0.00069 | D143: 0 | E143: 0
A144: 0.205 | B144: 0.03675 | C144: 0.0006966666667 | D144: 0 | E144: 0
A145: 0.206 | B145: 0.03745333333 | C145: 0.0007033333333 | D145: 0 | E145: 0
A146: 0.207 | B146: 0.03816333333 | C146: 0.00071 | D146: 0 | E146: 0
A147: 0.208 | B147: 0.03888 | C147: 0.0007166666667 | D147: 0 | E147: 0
A148: 0.209 | B148: 0.03960333333 | C148: 0.0007233333333 | D148: 0 | E148: 0
A149: 0.21 | B149: 0.04033333333 | C149: 0.00073 | D149: 0 | E149: 0
A150: 0.211 | B150: 0.04107 | C150: 0.0007366666667 | D150: 0 | E150: 0
A151: 0.212 | B151: 0.04181333333 | C151: 0.0007433333333 | D151: 0 | E151: 0
A152: 0.213 | B152: 0.04256333333 | C152: 0.00075 | D152: 0 | E152: 0
A153: 0.214 | B153: 0.04332 | C153: 0.0007566666667 | D153: 0 | E153: 0
A154: 0.215 | B154: 0.04408333333 | C154: 0.0007633333333 | D154: 0 | E154: 0
A155: 0.216 | B155: 0.04485333333 | C155: 0.00077 | D155: 0 | E155: 0
A156: 0.217 | B156: 0.04563 | C156: 0.0007766666667 | D156: 0 | E156: 0
A157: 0.218 | B157: 0.04641333333 | C157: 0.0007833333333 | D157: 0 | E157: 0
A158: 0.219 | B158: 0.04720333333 | C158: 0.00079 | D158: 0 | E158: 0
A159: 0.22 | B159: 0.048 | C159: 0.0007966666667 | D159: 0 | E159: 0
A160: 0.221 | B160: 0.04880333333 | C160: 0.0008033333333 | D160: 0 | E160: 0
A161: 0.222 | B161: 0.04961333333 | C161: 0.00081 | D161: 0 | E161: 0
A162: 0.223 | B162: 0.05043 | C162: 0.0008166666667 | D162: 0 | E162: 0
A163: 0.224 | B163: 0.05125333333 | C163: 0.0008233333333 | D163: 0 | E163: 0
A164: 0.225 | B164: 0.05208333333 | C164: 0.00083 | D164: 0 | E164: 0
A165: 0.226 | B165: 0.05292 | C165: 0.0008366666667 | D165: 0 | E165: 0
A166: 0.227 | B166: 0.05376333333 | C166: 0.0008433333333 | D166: 0 | E166: 0
A167: 0.228 | B167: 0.05461333333 | C167: 0.00085 | D167: 0 | E167: 0
A168: =A167+B$16 -> 0.229 | B168: =IF(A168<$B$9,(A168-$B$8)^2/(($B$10-$B$8)*($B$9-$B$8)),1-(($B$10-A168)^2)/($B$10-$B$8)*($B$10-$B$9)) -> 0.05547 | C168: 0.0008566666667 | D168: =IF(B$8=B$10,0,IF(OR(AND(A168<=B$11,B$11<=B$13),AND(A168>B$11,B$11>B$13)),ABS(A168-B$11)*B$12,0)) -> 0 | E168: 0
A169: 0.23 | B169: 0.05633333333 | C169: =B169-B168 -> 0.0008633333333 | D169: 0 | E169: =C169*D169 -> 0
A170: 0.231 | B170: 0.05720333333 | C170: 0.00087 | D170: 0 | E170: 0
A171: 0.232 | B171: 0.05808 | C171: 0.0008766666667 | D171: 0 | E171: 0
A172: 0.233 | B172: 0.05896333333 | C172: 0.0008833333333 | D172: 0 | E172: 0
A173: 0.234 | B173: 0.05985333333 | C173: 0.00089 | D173: 0 | E173: 0
A174: 0.235 | B174: 0.06075 | C174: 0.0008966666667 | D174: 0 | E174: 0
A175: 0.236 | B175: 0.06165333333 | C175: 0.0009033333333 | D175: 0 | E175: 0
A176: 0.237 | B176: 0.06256333333 | C176: 0.00091 | D176: 0 | E176: 0
A177: 0.238 | B177: 0.06348 | C177: 0.0009166666667 | D177: 0 | E177: 0
A178: 0.239 | B178: 0.06440333333 | C178: 0.0009233333333 | D178: 0 | E178: 0
A179: 0.24 | B179: 0.06533333333 | C179: 0.00093 | D179: 0 | E179: 0
A180: 0.241 | B180: 0.06627 | C180: 0.0009366666667 | D180: 0 | E180: 0
A181: 0.242 | B181: 0.06721333333 | C181: 0.0009433333333 | D181: 0 | E181: 0
A182: 0.243 | B182: 0.06816333333 | C182: 0.00095 | D182: 0 | E182: 0
A183: 0.244 | B183: 0.06912 | C183: 0.0009566666667 | D183: 0 | E183: 0
A184: 0.245 | B184: 0.07008333333 | C184: 0.0009633333333 | D184: 0 | E184: 0
A185: 0.246 | B185: 0.07105333333 | C185: 0.00097 | D185: 0 | E185: 0
A186: 0.247 | B186: 0.07203 | C186: 0.0009766666667 | D186: 0 | E186: 0
A187: 0.248 | B187: 0.07301333333 | C187: 0.0009833333333 | D187: 0 | E187: 0
A188: 0.249 | B188: 0.07400333333 | C188: 0.00099 | D188: 0 | E188: 0
A189: 0.25 | B189: 0.075 | C189: 0.0009966666667 | D189: 0 | E189: 0
A190: 0.251 | B190: 0.07600333333 | C190: 0.001003333333 | D190: 0 | E190: 0
A191: 0.252 | B191: 0.07701333333 | C191: 0.00101 | D191: 0 | E191: 0
A192: 0.253 | B192: 0.07803 | C192: 0.001016666667 | D192: 0 | E192: 0
A193: 0.254 | B193: 0.07905333333 | C193: 0.001023333333 | D193: 0 | E193: 0
A194: 0.255 | B194: 0.08008333333 | C194: 0.00103 | D194: 0 | E194: 0
A195: 0.256 | B195: 0.08112 | C195: 0.001036666667 | D195: 0 | E195: 0
A196: 0.257 | B196: 0.08216333333 | C196: 0.001043333333 | D196: 0 | E196: 0
A197: 0.258 | B197: 0.08321333333 | C197: 0.00105 | D197: 0 | E197: 0
A198: 0.259 | B198: 0.08427 | C198: 0.001056666667 | D198: 0 | E198: 0
A199: 0.26 | B199: 0.08533333333 | C199: 0.001063333333 | D199: 0 | E199: 0
A200: 0.261 | B200: 0.08640333333 | C200: 0.00107 | D200: 0 | E200: 0
A201: 0.262 | B201: 0.08748 | C201: 0.001076666667 | D201: 0 | E201: 0
A202: 0.263 | B202: 0.08856333333 | C202: 0.001083333333 | D202: 0 | E202: 0
A203: 0.264 | B203: 0.08965333333 | C203: 0.00109 | D203: 0 | E203: 0
A204: 0.265 | B204: 0.09075 | C204: 0.001096666667 | D204: 0 | E204: 0
A205: 0.266 | B205: 0.09185333333 | C205: 0.001103333333 | D205: 0 | E205: 0
A206: 0.267 | B206: 0.09296333333 | C206: 0.00111 | D206: 0 | E206: 0
A207: 0.268 | B207: 0.09408 | C207: 0.001116666667 | D207: 0 | E207: 0
A208: 0.269 | B208: 0.09520333333 | C208: 0.001123333333 | D208: 0 | E208: 0
A209: 0.27 | B209: 0.09633333333 | C209: 0.00113 | D209: 0 | E209: 0
A210: 0.271 | B210: 0.09747 | C210: 0.001136666667 | D210: 0 | E210: 0
A211: 0.272 | B211: 0.09861333333 | C211: 0.001143333333 | D211: 0 | E211: 0
A212: 0.273 | B212: 0.09976333333 | C212: 0.00115 | D212: 0 | E212: 0
... 827 more rows
